Body Name,Date Paid,Transaction Number,Amount,Supplier Name,Supplier Type,Expense Area,Cost Centre Description,Expense Type
Cambridgeshire County Council,20-Oct-16,21892265-14246453,-30968,Tgn Construction (Yorkshire)Ltd Trading As Bike Track,Trade Supplier,LRNG,Grafham Water Centre,Subscriptions
Cambridgeshire County Council,03-Oct-16,21741080-14129526,-18655.08,Espo,Trade Supplier,Control Accounts,Uncleared bank items,Bank Overdraft Expenditure / Payments
Cambridgeshire County Council,17-Oct-16,21833876-14218958,-13579.2,Virgin Media Ltd,Company,LGSS,Director of IT,Capital WIP - IT  -  Expenditure / Payments
Cambridgeshire County Council,25-Oct-16,20966395-14269415,-12121.92,Softcat Ltd,Trade Supplier,LRNG,ICT Service Procurement,Materials for resale
Cambridgeshire County Council,31-Oct-16,21518850-14296621,-10000,Norfolk County Council,Other Public Bodies,Corporate Services,Director - Customer Services,General Office Expenses & Stationery
Cambridgeshire County Council,13-Oct-16,21833495-14184650,-5000,The Red House Residential & Nursing Home,Care Establishment,2 - Commissioning - Older people Pool,Hunts O P  Team,Residential Independent Sector
Cambridgeshire County Council,13-Oct-16,21725909-14176549,-4655,Brookdale Healthcare Limited,Care Establishment,2 - Operations - Learning Disability,LDP Hunts special needs,Respite Independent Sector
Cambridgeshire County Council,13-Oct-16,21725912-14176552,-4655,Brookdale Healthcare Limited,Care Establishment,2 - Operations - Learning Disability,LDP Hunts special needs,Respite Independent Sector
Cambridgeshire County Council,13-Oct-16,21725913-14176553,-4655,Brookdale Healthcare Limited,Care Establishment,2 - Operations - Learning Disability,LDP Huntingdonshire Locality - Care,Respite Independent Sector
Cambridgeshire County Council,13-Oct-16,21725917-14176557,-4655,Brookdale Healthcare Limited,Care Establishment,2 - Operations - Learning Disability,LDP Hunts special needs,Respite Independent Sector
Cambridgeshire County Council,13-Oct-16,21725919-14176559,-4655,Brookdale Healthcare Limited,Care Establishment,2 - Operations - Learning Disability,LDP Huntingdonshire Locality - Care,Respite Independent Sector
Cambridgeshire County Council,13-Oct-16,21725921-14176561,-4655,Brookdale Healthcare Limited,Care Establishment,2 - Operations - Learning Disability,LDP Huntingdonshire Locality - Care,Respite Independent Sector
Cambridgeshire County Council,13-Oct-16,21725922-14176542,-4655,Brookdale Healthcare Limited,Care Establishment,2 - Operations - Learning Disability,LDP Hunts special needs,Respite Independent Sector
Cambridgeshire County Council,13-Oct-16,21725923-14176543,-4655,Brookdale Healthcare Limited,Care Establishment,2 - Operations - Learning Disability,LDP Huntingdonshire Locality - Care,Respite Independent Sector
Cambridgeshire County Council,13-Oct-16,21725925-14176545,-4655,Brookdale Healthcare Limited,Care Establishment,2 - Operations - Learning Disability,LDP Hunts special needs,Respite Independent Sector
Cambridgeshire County Council,13-Oct-16,21766267-14176518,-4655,Brookdale Healthcare Limited,Care Establishment,2 - Operations - Learning Disability,LDP Huntingdonshire Locality - Care,Respite Independent Sector
Cambridgeshire County Council,13-Oct-16,21766268-14176519,-4655,Brookdale Healthcare Limited,Care Establishment,2 - Operations - Learning Disability,LDP Huntingdonshire Locality - Care,Respite Independent Sector
Cambridgeshire County Council,13-Oct-16,21766275-14176524,-4655,Brookdale Healthcare Limited,Care Establishment,2 - Operations - Learning Disability,LDP Hunts special needs,Respite Independent Sector
Cambridgeshire County Council,13-Oct-16,21766280-14176528,-4655,Brookdale Healthcare Limited,Care Establishment,2 - Operations - Learning Disability,LDP Huntingdonshire Locality - Care,Respite Independent Sector
Cambridgeshire County Council,13-Oct-16,21766282-14176529,-4655,Brookdale Healthcare Limited,Care Establishment,2 - Operations - Learning Disability,LDP Huntingdonshire Locality - Care,Respite Independent Sector
Cambridgeshire County Council,13-Oct-16,21766286-14176533,-4655,Brookdale Healthcare Limited,Care Establishment,2 - Operations - Learning Disability,LDP Huntingdonshire Locality - Care,Respite Independent Sector
Cambridgeshire County Council,13-Oct-16,21766288-14176535,-4655,Brookdale Healthcare Limited,Care Establishment,2 - Operations - Learning Disability,LDP Hunts special needs,Respite Independent Sector
Cambridgeshire County Council,13-Oct-16,21766289-14176536,-4655,Brookdale Healthcare Limited,Care Establishment,2 - Operations - Learning Disability,LDP Hunts special needs,Respite Independent Sector
Cambridgeshire County Council,13-Oct-16,21766290-14176537,-4655,Brookdale Healthcare Limited,Care Establishment,2 - Operations - Learning Disability,LDP Hunts special needs,Respite Independent Sector
Cambridgeshire County Council,13-Oct-16,21819854-14176584,-4655,Brookdale Healthcare Limited,Care Establishment,2 - Operations - Learning Disability,LDP Hunts special needs,Respite Independent Sector
Cambridgeshire County Council,13-Oct-16,21819856-14176562,-4655,Brookdale Healthcare Limited,Care Establishment,2 - Operations - Learning Disability,LDP Hunts special needs,Respite Independent Sector
Cambridgeshire County Council,13-Oct-16,21819861-14176566,-4655,Brookdale Healthcare Limited,Care Establishment,2 - Operations - Learning Disability,LDP Huntingdonshire Locality - Care,Respite Independent Sector
Cambridgeshire County Council,13-Oct-16,21819869-14176571,-4655,Brookdale Healthcare Limited,Care Establishment,2 - Operations - Learning Disability,LDP Hunts special needs,Respite Independent Sector
Cambridgeshire County Council,13-Oct-16,21819872-14176573,-4655,Brookdale Healthcare Limited,Care Establishment,2 - Operations - Learning Disability,LDP Hunts special needs,Respite Independent Sector
Cambridgeshire County Council,13-Oct-16,21819873-14176574,-4655,Brookdale Healthcare Limited,Care Establishment,2 - Operations - Learning Disability,LDP Hunts special needs,Respite Independent Sector
Cambridgeshire County Council,13-Oct-16,21819875-14176576,-4655,Brookdale Healthcare Limited,Care Establishment,2 - Operations - Learning Disability,LDP Huntingdonshire Locality - Care,Respite Independent Sector
Cambridgeshire County Council,13-Oct-16,21819877-14176578,-4655,Brookdale Healthcare Limited,Care Establishment,2 - Operations - Learning Disability,LDP Hunts special needs,Respite Independent Sector
Cambridgeshire County Council,13-Oct-16,21819881-14176581,-4655,Brookdale Healthcare Limited,Care Establishment,2 - Operations - Learning Disability,LDP Huntingdonshire Locality - Care,Respite Independent Sector
Cambridgeshire County Council,20-Oct-16,21879562-14237457,-4655,Brookdale Healthcare Limited,Care Establishment,2 - Operations - Learning Disability,LDP Hunts special needs,Respite Independent Sector
Cambridgeshire County Council,20-Oct-16,21879564-14237459,-4655,Brookdale Healthcare Limited,Care Establishment,2 - Operations - Learning Disability,LDP Huntingdonshire Locality - Care,Respite Independent Sector
Cambridgeshire County Council,20-Oct-16,21879566-14237461,-4655,Brookdale Healthcare Limited,Care Establishment,2 - Operations - Learning Disability,LDP Hunts special needs,Respite Independent Sector
Cambridgeshire County Council,20-Oct-16,21879569-14237464,-4655,Brookdale Healthcare Limited,Care Establishment,2 - Operations - Learning Disability,LDP Hunts special needs,Respite Independent Sector
Cambridgeshire County Council,20-Oct-16,21879570-14237465,-4655,Brookdale Healthcare Limited,Care Establishment,2 - Operations - Learning Disability,LDP Hunts special needs,Respite Independent Sector
Cambridgeshire County Council,20-Oct-16,21879573-14237468,-4655,Brookdale Healthcare Limited,Care Establishment,2 - Operations - Learning Disability,LDP Hunts special needs,Respite Independent Sector
Cambridgeshire County Council,20-Oct-16,21879574-14237469,-4655,Brookdale Healthcare Limited,Care Establishment,2 - Operations - Learning Disability,LDP Hunts special needs,Respite Independent Sector
Cambridgeshire County Council,20-Oct-16,21879577-14237452,-4655,Brookdale Healthcare Limited,Care Establishment,2 - Operations - Learning Disability,LDP Huntingdonshire Locality - Care,Respite Independent Sector
Cambridgeshire County Council,20-Oct-16,21879578-14237453,-4655,Brookdale Healthcare Limited,Care Establishment,2 - Operations - Learning Disability,LDP Hunts special needs,Respite Independent Sector
Cambridgeshire County Council,13-Oct-16,21827692-14201556,-3936.8,Guyatt House Care Ltd,Care Establishment,3 - Operations - Countywide Services,LDP Young Adults - Care,Day and Domicillary Care Independent Sector
Cambridgeshire County Council,17-Oct-16,21689911-14218622,-3418.54,Playfords Ltd,Company,LRNG,ICT Service Procurement,Materials for resale
Cambridgeshire County Council,24-Oct-16,21877662-14262965,-3333,The Mary Hare Primary School,Education,S&C,Placements - Education,Independent School Placements
Cambridgeshire County Council,13-Oct-16,21725928-14176548,-3325,Brookdale Healthcare Limited,Care Establishment,2 - Operations - Learning Disability,LDP Huntingdonshire Locality - Care,Respite Independent Sector
Cambridgeshire County Council,13-Oct-16,21766269-14176520,-3325,Brookdale Healthcare Limited,Care Establishment,2 - Operations - Learning Disability,LDP Hunts special needs,Respite Independent Sector
Cambridgeshire County Council,13-Oct-16,21819879-14176579,-3325,Brookdale Healthcare Limited,Care Establishment,2 - Operations - Learning Disability,LDP Huntingdonshire Locality - Care,Respite Independent Sector
Cambridgeshire County Council,20-Oct-16,21879575-14237450,-3325,Brookdale Healthcare Limited,Care Establishment,2 - Operations - Learning Disability,LDP Huntingdonshire Locality - Care,Respite Independent Sector
Cambridgeshire County Council,07-Oct-16,21688745-14157608,-2716,Bill Ibbotts Catering Equipment Services Ltd,Trade Supplier,S&C,"Catering - Property, Equipment & Maintenance",Purchase of canteen equipment
Cambridgeshire County Council,13-Oct-16,21615450-14180213,-2713.05,Turning Point Services Ltd,Care Establishment,2 - Operations - Learning Disability,LDP Fenland Locality - Care,Supported Living
Cambridgeshire County Council,13-Oct-16,21615454-14180214,-2713.05,Turning Point Services Ltd,Care Establishment,2 - Operations - Learning Disability,LDP Fenland Locality - Care,Supported Living
Cambridgeshire County Council,13-Oct-16,21615463-14180217,-2713.05,Turning Point Services Ltd,Care Establishment,2 - Operations - Learning Disability,LDP Fenland Locality - Care,Supported Living
Cambridgeshire County Council,13-Oct-16,21615464-14180218,-2713.05,Turning Point Services Ltd,Care Establishment,2 - Operations - Learning Disability,LDP Fenland Locality - Care,Supported Living
Cambridgeshire County Council,13-Oct-16,21615465-14180219,-2713.05,Turning Point Services Ltd,Care Establishment,2 - Operations - Learning Disability,LDP Fenland Locality - Care,Supported Living
Cambridgeshire County Council,13-Oct-16,21620356-14180221,-2713.05,Turning Point Services Ltd,Care Establishment,2 - Operations - Learning Disability,LDP Fenland Locality - Care,Supported Living
Cambridgeshire County Council,13-Oct-16,21620357-14180222,-2713.05,Turning Point Services Ltd,Care Establishment,2 - Operations - Learning Disability,LDP Fenland Locality - Care,Supported Living
Cambridgeshire County Council,13-Oct-16,21620358-14180135,-2713.05,Turning Point Services Ltd,Care Establishment,2 - Operations - Learning Disability,LDP Fenland Locality - Care,Supported Living
Cambridgeshire County Council,13-Oct-16,21620366-14180137,-2713.05,Turning Point Services Ltd,Care Establishment,2 - Operations - Learning Disability,LDP Fenland Locality - Care,Supported Living
Cambridgeshire County Council,13-Oct-16,21620387-14180145,-2713.05,Turning Point Services Ltd,Care Establishment,2 - Operations - Learning Disability,LDP Fenland Locality - Care,Supported Living
Cambridgeshire County Council,13-Oct-16,21620398-14180147,-2713.05,Turning Point Services Ltd,Care Establishment,2 - Operations - Learning Disability,LDP Fenland Locality - Care,Supported Living
Cambridgeshire County Council,13-Oct-16,21620413-14180150,-2713.05,Turning Point Services Ltd,Care Establishment,2 - Operations - Learning Disability,LDP Fenland Locality - Care,Supported Living
Cambridgeshire County Council,13-Oct-16,21620414-14180151,-2713.05,Turning Point Services Ltd,Care Establishment,2 - Operations - Learning Disability,LDP Fenland Locality - Care,Supported Living
Cambridgeshire County Council,13-Oct-16,21620423-14180199,-2713.05,Turning Point Services Ltd,Care Establishment,2 - Operations - Learning Disability,LDP Fenland Locality - Care,Supported Living
Cambridgeshire County Council,13-Oct-16,21620426-14180200,-2713.05,Turning Point Services Ltd,Care Establishment,2 - Operations - Learning Disability,LDP Fenland Locality - Care,Supported Living
Cambridgeshire County Council,13-Oct-16,21620438-14180203,-2713.05,Turning Point Services Ltd,Care Establishment,2 - Operations - Learning Disability,LDP Fenland Locality - Care,Supported Living
Cambridgeshire County Council,13-Oct-16,21620445-14180205,-2713.05,Turning Point Services Ltd,Care Establishment,2 - Operations - Learning Disability,LDP Fenland Locality - Care,Supported Living
Cambridgeshire County Council,13-Oct-16,21620459-14180210,-2713.05,Turning Point Services Ltd,Care Establishment,2 - Operations - Learning Disability,LDP Fenland Locality - Care,Supported Living
Cambridgeshire County Council,13-Oct-16,21620460-14180211,-2713.05,Turning Point Services Ltd,Care Establishment,2 - Operations - Learning Disability,LDP Fenland Locality - Care,Supported Living
Cambridgeshire County Council,13-Oct-16,21627356-14180153,-2713.05,Turning Point Services Ltd,Care Establishment,2 - Operations - Learning Disability,LDP Fenland Locality - Care,Supported Living
Cambridgeshire County Council,13-Oct-16,21627357-14180154,-2713.05,Turning Point Services Ltd,Care Establishment,2 - Operations - Learning Disability,LDP Fenland Locality - Care,Supported Living
Cambridgeshire County Council,13-Oct-16,21627360-14180157,-2713.05,Turning Point Services Ltd,Care Establishment,2 - Operations - Learning Disability,LDP Fenland Locality - Care,Supported Living
Cambridgeshire County Council,13-Oct-16,21627362-14180159,-2713.05,Turning Point Services Ltd,Care Establishment,2 - Operations - Learning Disability,LDP Fenland Locality - Care,Supported Living
Cambridgeshire County Council,13-Oct-16,21627364-14180161,-2713.05,Turning Point Services Ltd,Care Establishment,2 - Operations - Learning Disability,LDP Fenland Locality - Care,Supported Living
Cambridgeshire County Council,13-Oct-16,21627366-14180163,-2713.05,Turning Point Services Ltd,Care Establishment,2 - Operations - Learning Disability,LDP Fenland Locality - Care,Supported Living
Cambridgeshire County Council,13-Oct-16,21627367-14180164,-2713.05,Turning Point Services Ltd,Care Establishment,2 - Operations - Learning Disability,LDP Fenland Locality - Care,Supported Living
Cambridgeshire County Council,13-Oct-16,21627369-14180166,-2713.05,Turning Point Services Ltd,Care Establishment,2 - Operations - Learning Disability,LDP Fenland Locality - Care,Supported Living
Cambridgeshire County Council,13-Oct-16,21627374-14180171,-2713.05,Turning Point Services Ltd,Care Establishment,2 - Operations - Learning Disability,LDP Fenland Locality - Care,Supported Living
Cambridgeshire County Council,13-Oct-16,21627376-14180173,-2713.05,Turning Point Services Ltd,Care Establishment,2 - Operations - Learning Disability,LDP Fenland Locality - Care,Supported Living
Cambridgeshire County Council,13-Oct-16,21627377-14180174,-2713.05,Turning Point Services Ltd,Care Establishment,2 - Operations - Learning Disability,LDP Fenland Locality - Care,Supported Living
Cambridgeshire County Council,13-Oct-16,21627379-14180176,-2713.05,Turning Point Services Ltd,Care Establishment,2 - Operations - Learning Disability,LDP Fenland Locality - Care,Supported Living
Cambridgeshire County Council,13-Oct-16,21627382-14180179,-2713.05,Turning Point Services Ltd,Care Establishment,2 - Operations - Learning Disability,LDP Fenland Locality - Care,Supported Living
Cambridgeshire County Council,13-Oct-16,21627383-14180180,-2713.05,Turning Point Services Ltd,Care Establishment,2 - Operations - Learning Disability,LDP Fenland Locality - Care,Supported Living
Cambridgeshire County Council,13-Oct-16,21627385-14180182,-2713.05,Turning Point Services Ltd,Care Establishment,2 - Operations - Learning Disability,LDP Fenland Locality - Care,Supported Living
Cambridgeshire County Council,13-Oct-16,21627389-14180186,-2713.05,Turning Point Services Ltd,Care Establishment,2 - Operations - Learning Disability,LDP Fenland Locality - Care,Supported Living
Cambridgeshire County Council,13-Oct-16,21627390-14180187,-2713.05,Turning Point Services Ltd,Care Establishment,2 - Operations - Learning Disability,LDP Fenland Locality - Care,Supported Living
Cambridgeshire County Council,13-Oct-16,21627392-14180189,-2713.05,Turning Point Services Ltd,Care Establishment,2 - Operations - Learning Disability,LDP Fenland Locality - Care,Supported Living
Cambridgeshire County Council,13-Oct-16,21627393-14180190,-2713.05,Turning Point Services Ltd,Care Establishment,2 - Operations - Learning Disability,LDP Fenland Locality - Care,Supported Living
Cambridgeshire County Council,20-Oct-16,21764518-14241074,-2676,Haddon House,Care Establishment,2 - Operations - Learning Disability,LDP Hunts special needs,Residential Independent Sector
Cambridgeshire County Council,20-Oct-16,21764519-14240893,-2676,Haddon House,Care Establishment,2 - Operations - Learning Disability,LDP Hunts special needs,Residential Independent Sector
Cambridgeshire County Council,20-Oct-16,21764521-14240895,-2676,Haddon House,Care Establishment,2 - Operations - Learning Disability,LDP Hunts special needs,Residential Independent Sector
Cambridgeshire County Council,20-Oct-16,21764522-14240896,-2676,Haddon House,Care Establishment,2 - Operations - Learning Disability,LDP Hunts special needs,Residential Independent Sector
Cambridgeshire County Council,20-Oct-16,21764523-14240897,-2676,Haddon House,Care Establishment,2 - Operations - Learning Disability,LDP Hunts special needs,Residential Independent Sector
Cambridgeshire County Council,20-Oct-16,21764524-14240898,-2676,Haddon House,Care Establishment,2 - Operations - Learning Disability,LDP Hunts special needs,Residential Independent Sector
Cambridgeshire County Council,27-Oct-16,21764464-14279455,-2628.08,Decoy Farm,Care Establishment,2 - Operations - Learning Disability,LDP Huntingdonshire Locality - Care,Nursing Independent Sector
Cambridgeshire County Council,27-Oct-16,21764470-14279458,-2628.08,Decoy Farm,Care Establishment,2 - Operations - Learning Disability,LDP Huntingdonshire Locality - Care,Nursing Independent Sector
Cambridgeshire County Council,27-Oct-16,21764476-14279460,-2628.08,Decoy Farm,Care Establishment,2 - Operations - Learning Disability,LDP Huntingdonshire Locality - Care,Nursing Independent Sector
Cambridgeshire County Council,27-Oct-16,21764477-14279461,-2628.08,Decoy Farm,Care Establishment,2 - Operations - Learning Disability,LDP Huntingdonshire Locality - Care,Nursing Independent Sector
Cambridgeshire County Council,27-Oct-16,21764482-14279464,-2628.08,Decoy Farm,Care Establishment,2 - Operations - Learning Disability,LDP Huntingdonshire Locality - Care,Nursing Independent Sector
Cambridgeshire County Council,20-Oct-16,21892273-14246455,-2365,Tgn Construction (Yorkshire)Ltd Trading As Bike Track,Trade Supplier,LRNG,Grafham Water Centre,Subscriptions
Cambridgeshire County Council,13-Oct-16,21671429-14200543,-2337.29,Dimensions (Uk) Ltd,Care Establishment,2 - Operations - Learning Disability,LDP South Cambs - Special Needs,Supported Living
Cambridgeshire County Council,13-Oct-16,21671431-14200545,-2337.29,Dimensions (Uk) Ltd,Care Establishment,2 - Operations - Learning Disability,LDP South Cambs - Special Needs,Supported Living
Cambridgeshire County Council,13-Oct-16,21671435-14200549,-2337.29,Dimensions (Uk) Ltd,Care Establishment,2 - Operations - Learning Disability,LDP South Cambs - Special Needs,Supported Living
Cambridgeshire County Council,13-Oct-16,21671436-14200550,-2337.29,Dimensions (Uk) Ltd,Care Establishment,2 - Operations - Learning Disability,LDP Cambs City - Special Needs,Supported Living
Cambridgeshire County Council,13-Oct-16,21671437-14200551,-2337.29,Dimensions (Uk) Ltd,Care Establishment,2 - Operations - Learning Disability,LDP Cambs City - Special Needs,Supported Living
Cambridgeshire County Council,13-Oct-16,21671438-14200552,-2337.29,Dimensions (Uk) Ltd,Care Establishment,2 - Operations - Learning Disability,LDP Cambs City - Special Needs,Supported Living
Cambridgeshire County Council,13-Oct-16,21671439-14200553,-2337.29,Dimensions (Uk) Ltd,Care Establishment,2 - Operations - Learning Disability,LDP Cambs City - Special Needs,Supported Living
Cambridgeshire County Council,13-Oct-16,21671440-14200554,-2337.29,Dimensions (Uk) Ltd,Care Establishment,2 - Operations - Learning Disability,LDP Cambs City - Special Needs,Supported Living
Cambridgeshire County Council,13-Oct-16,21719579-14200507,-2337.29,Dimensions (Uk) Ltd,Care Establishment,2 - Operations - Learning Disability,LDP South Cambs - Special Needs,Supported Living
Cambridgeshire County Council,13-Oct-16,21719582-14200510,-2337.29,Dimensions (Uk) Ltd,Care Establishment,2 - Operations - Learning Disability,LDP Cambs City - Special Needs,Supported Living
Cambridgeshire County Council,13-Oct-16,21719584-14200512,-2337.29,Dimensions (Uk) Ltd,Care Establishment,2 - Operations - Learning Disability,LDP South Cambs - Special Needs,Supported Living
Cambridgeshire County Council,13-Oct-16,21719586-14200514,-2337.29,Dimensions (Uk) Ltd,Care Establishment,2 - Operations - Learning Disability,LDP Cambs City - Special Needs,Supported Living
Cambridgeshire County Council,13-Oct-16,21719587-14200515,-2337.29,Dimensions (Uk) Ltd,Care Establishment,2 - Operations - Learning Disability,LDP Cambs City - Special Needs,Supported Living
Cambridgeshire County Council,13-Oct-16,21719588-14200516,-2337.29,Dimensions (Uk) Ltd,Care Establishment,2 - Operations - Learning Disability,LDP South Cambs - Special Needs,Supported Living
Cambridgeshire County Council,13-Oct-16,21719592-14200520,-2337.29,Dimensions (Uk) Ltd,Care Establishment,2 - Operations - Learning Disability,LDP South Cambs - Special Needs,Supported Living
Cambridgeshire County Council,13-Oct-16,21719594-14200522,-2337.29,Dimensions (Uk) Ltd,Care Establishment,2 - Operations - Learning Disability,LDP South Cambs - Special Needs,Supported Living
Cambridgeshire County Council,13-Oct-16,21766105-14200415,-2337.29,Dimensions (Uk) Ltd,Care Establishment,2 - Operations - Learning Disability,LDP Cambs City - Special Needs,Supported Living
Cambridgeshire County Council,13-Oct-16,21766106-14200416,-2337.29,Dimensions (Uk) Ltd,Care Establishment,2 - Operations - Learning Disability,LDP Cambs City - Special Needs,Supported Living
Cambridgeshire County Council,13-Oct-16,21766111-14200421,-2337.29,Dimensions (Uk) Ltd,Care Establishment,2 - Operations - Learning Disability,LDP South Cambs - Special Needs,Supported Living
Cambridgeshire County Council,13-Oct-16,21766112-14200422,-2337.29,Dimensions (Uk) Ltd,Care Establishment,2 - Operations - Learning Disability,LDP South Cambs - Special Needs,Supported Living
Cambridgeshire County Council,13-Oct-16,21766115-14200425,-2337.29,Dimensions (Uk) Ltd,Care Establishment,2 - Operations - Learning Disability,LDP Cambs City - Special Needs,Supported Living
Cambridgeshire County Council,13-Oct-16,21766116-14200426,-2337.29,Dimensions (Uk) Ltd,Care Establishment,2 - Operations - Learning Disability,LDP Cambs City - Special Needs,Supported Living
Cambridgeshire County Council,13-Oct-16,21766117-14200427,-2337.29,Dimensions (Uk) Ltd,Care Establishment,2 - Operations - Learning Disability,LDP South Cambs - Special Needs,Supported Living
Cambridgeshire County Council,13-Oct-16,21766118-14200428,-2337.29,Dimensions (Uk) Ltd,Care Establishment,2 - Operations - Learning Disability,LDP Cambs City - Special Needs,Supported Living
Cambridgeshire County Council,13-Oct-16,21827858-14200449,-2337.29,Dimensions (Uk) Ltd,Care Establishment,2 - Operations - Learning Disability,LDP Cambs City - Special Needs,Supported Living
Cambridgeshire County Council,13-Oct-16,21827859-14200450,-2337.29,Dimensions (Uk) Ltd,Care Establishment,2 - Operations - Learning Disability,LDP Cambs City - Special Needs,Supported Living
Cambridgeshire County Council,13-Oct-16,21827863-14200432,-2337.29,Dimensions (Uk) Ltd,Care Establishment,2 - Operations - Learning Disability,LDP Cambs City - Special Needs,Supported Living
Cambridgeshire County Council,13-Oct-16,21827866-14200434,-2337.29,Dimensions (Uk) Ltd,Care Establishment,2 - Operations - Learning Disability,LDP South Cambs - Special Needs,Supported Living
Cambridgeshire County Council,13-Oct-16,21827869-14200437,-2337.29,Dimensions (Uk) Ltd,Care Establishment,2 - Operations - Learning Disability,LDP Cambs City - Special Needs,Supported Living
Cambridgeshire County Council,13-Oct-16,21827875-14200442,-2337.29,Dimensions (Uk) Ltd,Care Establishment,2 - Operations - Learning Disability,LDP South Cambs - Special Needs,Supported Living
Cambridgeshire County Council,13-Oct-16,21827880-14200446,-2337.29,Dimensions (Uk) Ltd,Care Establishment,2 - Operations - Learning Disability,LDP South Cambs - Special Needs,Supported Living
Cambridgeshire County Council,13-Oct-16,21827881-14200447,-2337.29,Dimensions (Uk) Ltd,Care Establishment,2 - Operations - Learning Disability,LDP South Cambs - Special Needs,Supported Living
Cambridgeshire County Council,13-Oct-16,21620381-14180142,-2325.47,Turning Point Services Ltd,Care Establishment,2 - Operations - Learning Disability,LDP Fenland Locality - Care,Supported Living
Cambridgeshire County Council,13-Oct-16,21627358-14180155,-2325.47,Turning Point Services Ltd,Care Establishment,2 - Operations - Learning Disability,LDP Fenland Locality - Care,Supported Living
Cambridgeshire County Council,28-Oct-16,21608084-14287065,-2294.4,Electrolux Laundry Systems,Company,LGSS Managed,County Offices General,Cleaning & Repair of Clothing
Cambridgeshire County Council,20-Oct-16,21881501-14239916,-1969.8,Park House (Bedford),Care Establishment,3 - Operations - Countywide Services,Countywide PD Service - Care,Residential Independent Sector
Cambridgeshire County Council,20-Oct-16,21881502-14239917,-1969.8,Park House (Bedford),Care Establishment,3 - Operations - Countywide Services,Countywide PD Service - Care,Residential Independent Sector
Cambridgeshire County Council,20-Oct-16,21884812-14243875,-1917.23,Congregation Of The Daughters Of The Cross Of Liege (St Elizabeths Centre),Care Establishment,2 - Operations - Learning Disability,LDP South Cambs Locality - Care,Day and Domicillary Care Independent Sector
Cambridgeshire County Council,20-Oct-16,21884813-14243876,-1917.23,Congregation Of The Daughters Of The Cross Of Liege (St Elizabeths Centre),Care Establishment,2 - Operations - Learning Disability,LDP South Cambs Locality - Care,Day and Domicillary Care Independent Sector
Cambridgeshire County Council,20-Oct-16,21884814-14243877,-1917.23,Congregation Of The Daughters Of The Cross Of Liege (St Elizabeths Centre),Care Establishment,2 - Operations - Learning Disability,LDP South Cambs Locality - Care,Day and Domicillary Care Independent Sector
Cambridgeshire County Council,20-Oct-16,21884816-14243879,-1917.23,Congregation Of The Daughters Of The Cross Of Liege (St Elizabeths Centre),Care Establishment,2 - Operations - Learning Disability,LDP South Cambs Locality - Care,Day and Domicillary Care Independent Sector
Cambridgeshire County Council,20-Oct-16,21884817-14243880,-1917.23,Congregation Of The Daughters Of The Cross Of Liege (St Elizabeths Centre),Care Establishment,2 - Operations - Learning Disability,LDP South Cambs Locality - Care,Day and Domicillary Care Independent Sector
Cambridgeshire County Council,20-Oct-16,21884818-14243881,-1917.23,Congregation Of The Daughters Of The Cross Of Liege (St Elizabeths Centre),Care Establishment,2 - Operations - Learning Disability,LDP South Cambs Locality - Care,Day and Domicillary Care Independent Sector
Cambridgeshire County Council,13-Oct-16,21671553-14196517,-1800,Granta Housing- 71 /73 Fen Road,Care Establishment,2 - Operations - Learning Disability,LDP South Cambs - Special Needs,Nursing Independent Sector
Cambridgeshire County Council,13-Oct-16,21671775-14196518,-1800,Granta Housing- 71 /73 Fen Road,Care Establishment,2 - Operations - Learning Disability,LDP South Cambs - Special Needs,Nursing Independent Sector
Cambridgeshire County Council,13-Oct-16,21671780-14196523,-1800,Granta Housing- 71 /73 Fen Road,Care Establishment,2 - Operations - Learning Disability,LDP South Cambs - Special Needs,Nursing Independent Sector
Cambridgeshire County Council,13-Oct-16,21671782-14196525,-1800,Granta Housing- 71 /73 Fen Road,Care Establishment,2 - Operations - Learning Disability,LDP South Cambs - Special Needs,Nursing Independent Sector
Cambridgeshire County Council,13-Oct-16,21671785-14196528,-1800,Granta Housing- 71 /73 Fen Road,Care Establishment,2 - Operations - Learning Disability,LDP Cambs City - Special Needs,Nursing Independent Sector
Cambridgeshire County Council,13-Oct-16,21671786-14196529,-1800,Granta Housing- 71 /73 Fen Road,Care Establishment,2 - Operations - Learning Disability,LDP Cambs City - Special Needs,Nursing Independent Sector
Cambridgeshire County Council,13-Oct-16,21671790-14196508,-1800,Granta Housing- 71 /73 Fen Road,Care Establishment,2 - Operations - Learning Disability,LDP South Cambs - Special Needs,Nursing Independent Sector
Cambridgeshire County Council,13-Oct-16,21671792-14196510,-1800,Granta Housing- 71 /73 Fen Road,Care Establishment,2 - Operations - Learning Disability,LDP South Cambs - Special Needs,Nursing Independent Sector
Cambridgeshire County Council,13-Oct-16,21671793-14196511,-1800,Granta Housing- 71 /73 Fen Road,Care Establishment,2 - Operations - Learning Disability,LDP Cambs City - Special Needs,Nursing Independent Sector
Cambridgeshire County Council,13-Oct-16,21671795-14196513,-1800,Granta Housing- 71 /73 Fen Road,Care Establishment,2 - Operations - Learning Disability,LDP South Cambs - Special Needs,Nursing Independent Sector
Cambridgeshire County Council,13-Oct-16,21671796-14196514,-1800,Granta Housing- 71 /73 Fen Road,Care Establishment,2 - Operations - Learning Disability,LDP South Cambs - Special Needs,Nursing Independent Sector
Cambridgeshire County Council,13-Oct-16,21675055-14196483,-1800,Granta Housing- 71 /73 Fen Road,Care Establishment,2 - Operations - Learning Disability,LDP South Cambs - Special Needs,Nursing Independent Sector
Cambridgeshire County Council,13-Oct-16,21675056-14196484,-1800,Granta Housing- 71 /73 Fen Road,Care Establishment,2 - Operations - Learning Disability,LDP South Cambs - Special Needs,Nursing Independent Sector
Cambridgeshire County Council,13-Oct-16,21675058-14196486,-1800,Granta Housing- 71 /73 Fen Road,Care Establishment,2 - Operations - Learning Disability,LDP South Cambs - Special Needs,Nursing Independent Sector
Cambridgeshire County Council,13-Oct-16,21675061-14196489,-1800,Granta Housing- 71 /73 Fen Road,Care Establishment,2 - Operations - Learning Disability,LDP South Cambs - Special Needs,Nursing Independent Sector
Cambridgeshire County Council,13-Oct-16,21675062-14196490,-1800,Granta Housing- 71 /73 Fen Road,Care Establishment,2 - Operations - Learning Disability,LDP South Cambs - Special Needs,Nursing Independent Sector
Cambridgeshire County Council,13-Oct-16,21675064-14196492,-1800,Granta Housing- 71 /73 Fen Road,Care Establishment,2 - Operations - Learning Disability,LDP South Cambs - Special Needs,Nursing Independent Sector
Cambridgeshire County Council,13-Oct-16,21675065-14196493,-1800,Granta Housing- 71 /73 Fen Road,Care Establishment,2 - Operations - Learning Disability,LDP South Cambs - Special Needs,Nursing Independent Sector
Cambridgeshire County Council,13-Oct-16,21724811-14196475,-1800,Granta Housing- 71 /73 Fen Road,Care Establishment,2 - Operations - Learning Disability,LDP South Cambs - Special Needs,Nursing Independent Sector
Cambridgeshire County Council,13-Oct-16,21724813-14196477,-1800,Granta Housing- 71 /73 Fen Road,Care Establishment,2 - Operations - Learning Disability,LDP South Cambs - Special Needs,Nursing Independent Sector
Cambridgeshire County Council,13-Oct-16,21724816-14196480,-1800,Granta Housing- 71 /73 Fen Road,Care Establishment,2 - Operations - Learning Disability,LDP South Cambs - Special Needs,Nursing Independent Sector
Cambridgeshire County Council,13-Oct-16,21724818-14196482,-1800,Granta Housing- 71 /73 Fen Road,Care Establishment,2 - Operations - Learning Disability,LDP Cambs City - Special Needs,Nursing Independent Sector
Cambridgeshire County Council,13-Oct-16,21724820-14196446,-1800,Granta Housing- 71 /73 Fen Road,Care Establishment,2 - Operations - Learning Disability,LDP Cambs City - Special Needs,Nursing Independent Sector
Cambridgeshire County Council,13-Oct-16,21724821-14196447,-1800,Granta Housing- 71 /73 Fen Road,Care Establishment,2 - Operations - Learning Disability,LDP Cambs City - Special Needs,Nursing Independent Sector
Cambridgeshire County Council,13-Oct-16,21724823-14196449,-1800,Granta Housing- 71 /73 Fen Road,Care Establishment,2 - Operations - Learning Disability,LDP South Cambs - Special Needs,Nursing Independent Sector
Cambridgeshire County Council,13-Oct-16,21724827-14196453,-1800,Granta Housing- 71 /73 Fen Road,Care Establishment,2 - Operations - Learning Disability,LDP South Cambs - Special Needs,Nursing Independent Sector
Cambridgeshire County Council,13-Oct-16,21724829-14196455,-1800,Granta Housing- 71 /73 Fen Road,Care Establishment,2 - Operations - Learning Disability,LDP Cambs City - Special Needs,Nursing Independent Sector
Cambridgeshire County Council,13-Oct-16,21724833-14196459,-1800,Granta Housing- 71 /73 Fen Road,Care Establishment,2 - Operations - Learning Disability,LDP South Cambs - Special Needs,Nursing Independent Sector
Cambridgeshire County Council,13-Oct-16,21724835-14196461,-1800,Granta Housing- 71 /73 Fen Road,Care Establishment,2 - Operations - Learning Disability,LDP South Cambs - Special Needs,Nursing Independent Sector
Cambridgeshire County Council,13-Oct-16,21724836-14196462,-1800,Granta Housing- 71 /73 Fen Road,Care Establishment,2 - Operations - Learning Disability,LDP South Cambs - Special Needs,Nursing Independent Sector
Cambridgeshire County Council,13-Oct-16,21724838-14196464,-1800,Granta Housing- 71 /73 Fen Road,Care Establishment,2 - Operations - Learning Disability,LDP South Cambs - Special Needs,Nursing Independent Sector
Cambridgeshire County Council,13-Oct-16,21724840-14196466,-1800,Granta Housing- 71 /73 Fen Road,Care Establishment,2 - Operations - Learning Disability,LDP Cambs City - Special Needs,Nursing Independent Sector
Cambridgeshire County Council,13-Oct-16,21724841-14196467,-1800,Granta Housing- 71 /73 Fen Road,Care Establishment,2 - Operations - Learning Disability,LDP South Cambs - Special Needs,Nursing Independent Sector
Cambridgeshire County Council,13-Oct-16,21724845-14196471,-1800,Granta Housing- 71 /73 Fen Road,Care Establishment,2 - Operations - Learning Disability,LDP Cambs City - Special Needs,Nursing Independent Sector
Cambridgeshire County Council,13-Oct-16,21724847-14196473,-1800,Granta Housing- 71 /73 Fen Road,Care Establishment,2 - Operations - Learning Disability,LDP Cambs City - Special Needs,Nursing Independent Sector
Cambridgeshire County Council,13-Oct-16,21724848-14196474,-1800,Granta Housing- 71 /73 Fen Road,Care Establishment,2 - Operations - Learning Disability,LDP South Cambs - Special Needs,Nursing Independent Sector
Cambridgeshire County Council,13-Oct-16,21765621-14196313,-1800,Granta Housing- 71 /73 Fen Road,Care Establishment,2 - Operations - Learning Disability,LDP South Cambs - Special Needs,Nursing Independent Sector
Cambridgeshire County Council,13-Oct-16,21765622-14196314,-1800,Granta Housing- 71 /73 Fen Road,Care Establishment,2 - Operations - Learning Disability,LDP Cambs City - Special Needs,Nursing Independent Sector
Cambridgeshire County Council,13-Oct-16,21765623-14196315,-1800,Granta Housing- 71 /73 Fen Road,Care Establishment,2 - Operations - Learning Disability,LDP South Cambs - Special Needs,Nursing Independent Sector
Cambridgeshire County Council,13-Oct-16,21765624-14196316,-1800,Granta Housing- 71 /73 Fen Road,Care Establishment,2 - Operations - Learning Disability,LDP South Cambs - Special Needs,Nursing Independent Sector
Cambridgeshire County Council,13-Oct-16,21765627-14196319,-1800,Granta Housing- 71 /73 Fen Road,Care Establishment,2 - Operations - Learning Disability,LDP South Cambs - Special Needs,Nursing Independent Sector
Cambridgeshire County Council,13-Oct-16,21765628-14196320,-1800,Granta Housing- 71 /73 Fen Road,Care Establishment,2 - Operations - Learning Disability,LDP Cambs City - Special Needs,Nursing Independent Sector
Cambridgeshire County Council,13-Oct-16,21765629-14196321,-1800,Granta Housing- 71 /73 Fen Road,Care Establishment,2 - Operations - Learning Disability,LDP South Cambs - Special Needs,Nursing Independent Sector
Cambridgeshire County Council,13-Oct-16,21765636-14196288,-1800,Granta Housing- 71 /73 Fen Road,Care Establishment,2 - Operations - Learning Disability,LDP South Cambs - Special Needs,Nursing Independent Sector
Cambridgeshire County Council,13-Oct-16,21765638-14196290,-1800,Granta Housing- 71 /73 Fen Road,Care Establishment,2 - Operations - Learning Disability,LDP South Cambs - Special Needs,Nursing Independent Sector
Cambridgeshire County Council,13-Oct-16,21765639-14196291,-1800,Granta Housing- 71 /73 Fen Road,Care Establishment,2 - Operations - Learning Disability,LDP South Cambs - Special Needs,Nursing Independent Sector
Cambridgeshire County Council,13-Oct-16,21765640-14196292,-1800,Granta Housing- 71 /73 Fen Road,Care Establishment,2 - Operations - Learning Disability,LDP Cambs City - Special Needs,Nursing Independent Sector
Cambridgeshire County Council,13-Oct-16,21765644-14196296,-1800,Granta Housing- 71 /73 Fen Road,Care Establishment,2 - Operations - Learning Disability,LDP Cambs City - Special Needs,Nursing Independent Sector
Cambridgeshire County Council,13-Oct-16,21765645-14196297,-1800,Granta Housing- 71 /73 Fen Road,Care Establishment,2 - Operations - Learning Disability,LDP South Cambs - Special Needs,Nursing Independent Sector
Cambridgeshire County Council,13-Oct-16,21766167-14196304,-1800,Granta Housing- 71 /73 Fen Road,Care Establishment,2 - Operations - Learning Disability,LDP South Cambs - Special Needs,Nursing Independent Sector
Cambridgeshire County Council,13-Oct-16,21766170-14196307,-1800,Granta Housing- 71 /73 Fen Road,Care Establishment,2 - Operations - Learning Disability,LDP South Cambs - Special Needs,Nursing Independent Sector
Cambridgeshire County Council,13-Oct-16,21766171-14196308,-1800,Granta Housing- 71 /73 Fen Road,Care Establishment,2 - Operations - Learning Disability,LDP South Cambs - Special Needs,Nursing Independent Sector
Cambridgeshire County Council,13-Oct-16,21766173-14196310,-1800,Granta Housing- 71 /73 Fen Road,Care Establishment,2 - Operations - Learning Disability,LDP South Cambs - Special Needs,Nursing Independent Sector
Cambridgeshire County Council,13-Oct-16,21766177-14196299,-1800,Granta Housing- 71 /73 Fen Road,Care Establishment,2 - Operations - Learning Disability,LDP Cambs City - Special Needs,Nursing Independent Sector
Cambridgeshire County Council,13-Oct-16,21813284-14196181,-1800,Granta Housing- 71 /73 Fen Road,Care Establishment,2 - Operations - Learning Disability,LDP South Cambs - Special Needs,Nursing Independent Sector
Cambridgeshire County Council,13-Oct-16,21813287-14196184,-1800,Granta Housing- 71 /73 Fen Road,Care Establishment,2 - Operations - Learning Disability,LDP South Cambs - Special Needs,Nursing Independent Sector
Cambridgeshire County Council,13-Oct-16,21813290-14196213,-1800,Granta Housing- 71 /73 Fen Road,Care Establishment,2 - Operations - Learning Disability,LDP Cambs City - Special Needs,Nursing Independent Sector
Cambridgeshire County Council,13-Oct-16,21813293-14196216,-1800,Granta Housing- 71 /73 Fen Road,Care Establishment,2 - Operations - Learning Disability,LDP Cambs City - Special Needs,Nursing Independent Sector
Cambridgeshire County Council,13-Oct-16,21813295-14196218,-1800,Granta Housing- 71 /73 Fen Road,Care Establishment,2 - Operations - Learning Disability,LDP Cambs City - Special Needs,Nursing Independent Sector
Cambridgeshire County Council,13-Oct-16,21813296-14196219,-1800,Granta Housing- 71 /73 Fen Road,Care Establishment,2 - Operations - Learning Disability,LDP Cambs City - Special Needs,Nursing Independent Sector
Cambridgeshire County Council,13-Oct-16,21813297-14196220,-1800,Granta Housing- 71 /73 Fen Road,Care Establishment,2 - Operations - Learning Disability,LDP Cambs City - Special Needs,Nursing Independent Sector
Cambridgeshire County Council,13-Oct-16,21813298-14196221,-1800,Granta Housing- 71 /73 Fen Road,Care Establishment,2 - Operations - Learning Disability,LDP Cambs City - Special Needs,Nursing Independent Sector
Cambridgeshire County Council,13-Oct-16,21813299-14196222,-1800,Granta Housing- 71 /73 Fen Road,Care Establishment,2 - Operations - Learning Disability,LDP South Cambs - Special Needs,Nursing Independent Sector
Cambridgeshire County Council,13-Oct-16,21813303-14196226,-1800,Granta Housing- 71 /73 Fen Road,Care Establishment,2 - Operations - Learning Disability,LDP Cambs City - Special Needs,Nursing Independent Sector
Cambridgeshire County Council,13-Oct-16,21813305-14196228,-1800,Granta Housing- 71 /73 Fen Road,Care Establishment,2 - Operations - Learning Disability,LDP Cambs City - Special Needs,Nursing Independent Sector
Cambridgeshire County Council,13-Oct-16,21813306-14196229,-1800,Granta Housing- 71 /73 Fen Road,Care Establishment,2 - Operations - Learning Disability,LDP Cambs City - Special Needs,Nursing Independent Sector
Cambridgeshire County Council,13-Oct-16,21813311-14196234,-1800,Granta Housing- 71 /73 Fen Road,Care Establishment,2 - Operations - Learning Disability,LDP South Cambs - Special Needs,Nursing Independent Sector
Cambridgeshire County Council,13-Oct-16,21813312-14196235,-1800,Granta Housing- 71 /73 Fen Road,Care Establishment,2 - Operations - Learning Disability,LDP South Cambs - Special Needs,Nursing Independent Sector
Cambridgeshire County Council,13-Oct-16,21813314-14196237,-1800,Granta Housing- 71 /73 Fen Road,Care Establishment,2 - Operations - Learning Disability,LDP South Cambs - Special Needs,Nursing Independent Sector
Cambridgeshire County Council,13-Oct-16,21813317-14196240,-1800,Granta Housing- 71 /73 Fen Road,Care Establishment,2 - Operations - Learning Disability,LDP South Cambs - Special Needs,Nursing Independent Sector
Cambridgeshire County Council,13-Oct-16,21813320-14196243,-1800,Granta Housing- 71 /73 Fen Road,Care Establishment,2 - Operations - Learning Disability,LDP Cambs City - Special Needs,Nursing Independent Sector
Cambridgeshire County Council,13-Oct-16,21813321-14196244,-1800,Granta Housing- 71 /73 Fen Road,Care Establishment,2 - Operations - Learning Disability,LDP Cambs City - Special Needs,Nursing Independent Sector
Cambridgeshire County Council,27-Oct-16,21888513-14279504,-1800,Granta Housing- 71 /73 Fen Road,Care Establishment,2 - Operations - Learning Disability,LDP Cambs City - Special Needs,Nursing Independent Sector
Cambridgeshire County Council,27-Oct-16,21888514-14279505,-1800,Granta Housing- 71 /73 Fen Road,Care Establishment,2 - Operations - Learning Disability,LDP South Cambs - Special Needs,Nursing Independent Sector
Cambridgeshire County Council,27-Oct-16,21888517-14279508,-1800,Granta Housing- 71 /73 Fen Road,Care Establishment,2 - Operations - Learning Disability,LDP South Cambs - Special Needs,Nursing Independent Sector
Cambridgeshire County Council,27-Oct-16,21888518-14279509,-1800,Granta Housing- 71 /73 Fen Road,Care Establishment,2 - Operations - Learning Disability,LDP Cambs City - Special Needs,Nursing Independent Sector
Cambridgeshire County Council,27-Oct-16,21888525-14279516,-1800,Granta Housing- 71 /73 Fen Road,Care Establishment,2 - Operations - Learning Disability,LDP Cambs City - Special Needs,Nursing Independent Sector
Cambridgeshire County Council,27-Oct-16,21888526-14279517,-1800,Granta Housing- 71 /73 Fen Road,Care Establishment,2 - Operations - Learning Disability,LDP South Cambs - Special Needs,Nursing Independent Sector
Cambridgeshire County Council,27-Oct-16,21888531-14279522,-1800,Granta Housing- 71 /73 Fen Road,Care Establishment,2 - Operations - Learning Disability,LDP Cambs City - Special Needs,Nursing Independent Sector
Cambridgeshire County Council,27-Oct-16,21888532-14279523,-1800,Granta Housing- 71 /73 Fen Road,Care Establishment,2 - Operations - Learning Disability,LDP Cambs City - Special Needs,Nursing Independent Sector
Cambridgeshire County Council,27-Oct-16,21888533-14279524,-1800,Granta Housing- 71 /73 Fen Road,Care Establishment,2 - Operations - Learning Disability,LDP Cambs City - Special Needs,Nursing Independent Sector
Cambridgeshire County Council,27-Oct-16,21888534-14279525,-1800,Granta Housing- 71 /73 Fen Road,Care Establishment,2 - Operations - Learning Disability,LDP Cambs City - Special Needs,Nursing Independent Sector
Cambridgeshire County Council,27-Oct-16,21888535-14279526,-1800,Granta Housing- 71 /73 Fen Road,Care Establishment,2 - Operations - Learning Disability,LDP South Cambs - Special Needs,Nursing Independent Sector
Cambridgeshire County Council,27-Oct-16,21888536-14279527,-1800,Granta Housing- 71 /73 Fen Road,Care Establishment,2 - Operations - Learning Disability,LDP South Cambs - Special Needs,Nursing Independent Sector
Cambridgeshire County Council,27-Oct-16,21888540-14279531,-1800,Granta Housing- 71 /73 Fen Road,Care Establishment,2 - Operations - Learning Disability,LDP South Cambs - Special Needs,Nursing Independent Sector
Cambridgeshire County Council,27-Oct-16,21888541-14279532,-1800,Granta Housing- 71 /73 Fen Road,Care Establishment,2 - Operations - Learning Disability,LDP South Cambs - Special Needs,Nursing Independent Sector
Cambridgeshire County Council,27-Oct-16,21888543-14279534,-1800,Granta Housing- 71 /73 Fen Road,Care Establishment,2 - Operations - Learning Disability,LDP Cambs City - Special Needs,Nursing Independent Sector
Cambridgeshire County Council,27-Oct-16,21888544-14279535,-1800,Granta Housing- 71 /73 Fen Road,Care Establishment,2 - Operations - Learning Disability,LDP Cambs City - Special Needs,Nursing Independent Sector
Cambridgeshire County Council,27-Oct-16,21888545-14279536,-1800,Granta Housing- 71 /73 Fen Road,Care Establishment,2 - Operations - Learning Disability,LDP Cambs City - Special Needs,Nursing Independent Sector
Cambridgeshire County Council,27-Oct-16,21888548-14279539,-1800,Granta Housing- 71 /73 Fen Road,Care Establishment,2 - Operations - Learning Disability,LDP South Cambs - Special Needs,Nursing Independent Sector
Cambridgeshire County Council,27-Oct-16,21915371-14279542,-1800,Granta Housing- 71 /73 Fen Road,Care Establishment,2 - Operations - Learning Disability,LDP Cambs City - Special Needs,Nursing Independent Sector
Cambridgeshire County Council,27-Oct-16,21915372-14279543,-1800,Granta Housing- 71 /73 Fen Road,Care Establishment,2 - Operations - Learning Disability,LDP South Cambs - Special Needs,Nursing Independent Sector
Cambridgeshire County Council,27-Oct-16,21915375-14279546,-1800,Granta Housing- 71 /73 Fen Road,Care Establishment,2 - Operations - Learning Disability,LDP Cambs City - Special Needs,Nursing Independent Sector
Cambridgeshire County Council,27-Oct-16,21915376-14279547,-1800,Granta Housing- 71 /73 Fen Road,Care Establishment,2 - Operations - Learning Disability,LDP South Cambs - Special Needs,Nursing Independent Sector
Cambridgeshire County Council,27-Oct-16,21915377-14279548,-1800,Granta Housing- 71 /73 Fen Road,Care Establishment,2 - Operations - Learning Disability,LDP South Cambs - Special Needs,Nursing Independent Sector
Cambridgeshire County Council,27-Oct-16,21915378-14279549,-1800,Granta Housing- 71 /73 Fen Road,Care Establishment,2 - Operations - Learning Disability,LDP South Cambs - Special Needs,Nursing Independent Sector
Cambridgeshire County Council,27-Oct-16,21915380-14279551,-1800,Granta Housing- 71 /73 Fen Road,Care Establishment,2 - Operations - Learning Disability,LDP Cambs City - Special Needs,Nursing Independent Sector
Cambridgeshire County Council,27-Oct-16,21915382-14279553,-1800,Granta Housing- 71 /73 Fen Road,Care Establishment,2 - Operations - Learning Disability,LDP South Cambs - Special Needs,Nursing Independent Sector
Cambridgeshire County Council,27-Oct-16,21915383-14279554,-1800,Granta Housing- 71 /73 Fen Road,Care Establishment,2 - Operations - Learning Disability,LDP South Cambs - Special Needs,Nursing Independent Sector
Cambridgeshire County Council,27-Oct-16,21915384-14279555,-1800,Granta Housing- 71 /73 Fen Road,Care Establishment,2 - Operations - Learning Disability,LDP Cambs City - Special Needs,Nursing Independent Sector
Cambridgeshire County Council,27-Oct-16,21915387-14279558,-1800,Granta Housing- 71 /73 Fen Road,Care Establishment,2 - Operations - Learning Disability,LDP South Cambs - Special Needs,Nursing Independent Sector
Cambridgeshire County Council,27-Oct-16,21915391-14279564,-1800,Granta Housing- 71 /73 Fen Road,Care Establishment,2 - Operations - Learning Disability,LDP Cambs City - Special Needs,Nursing Independent Sector
Cambridgeshire County Council,27-Oct-16,21915394-14279567,-1800,Granta Housing- 71 /73 Fen Road,Care Establishment,2 - Operations - Learning Disability,LDP South Cambs - Special Needs,Nursing Independent Sector
Cambridgeshire County Council,27-Oct-16,21915395-14279568,-1800,Granta Housing- 71 /73 Fen Road,Care Establishment,2 - Operations - Learning Disability,LDP Cambs City - Special Needs,Nursing Independent Sector
Cambridgeshire County Council,27-Oct-16,21915401-14279574,-1800,Granta Housing- 71 /73 Fen Road,Care Establishment,2 - Operations - Learning Disability,LDP Cambs City - Special Needs,Nursing Independent Sector
Cambridgeshire County Council,27-Oct-16,21915402-14279575,-1800,Granta Housing- 71 /73 Fen Road,Care Establishment,2 - Operations - Learning Disability,LDP Cambs City - Special Needs,Nursing Independent Sector
Cambridgeshire County Council,27-Oct-16,21915404-14279577,-1800,Granta Housing- 71 /73 Fen Road,Care Establishment,2 - Operations - Learning Disability,LDP South Cambs - Special Needs,Nursing Independent Sector
Cambridgeshire County Council,27-Oct-16,21915405-14279578,-1800,Granta Housing- 71 /73 Fen Road,Care Establishment,2 - Operations - Learning Disability,LDP South Cambs - Special Needs,Nursing Independent Sector
Cambridgeshire County Council,26-Oct-16,20480137-14272499,-1771.67,Acorn Park School,Education,S&C,Placements - Education,Independent School Placements
Cambridgeshire County Council,13-Oct-16,21736847-14200310,-1696.13,Hft Trust Ltd,Trust (Other),2 - Operations - Learning Disability,LDP Fenland Locality - Care,Residential Independent Sector
Cambridgeshire County Council,13-Oct-16,21736851-14200314,-1696.13,Hft Trust Ltd,Trust (Other),2 - Operations - Learning Disability,LDP Fenland Locality - Care,Residential Independent Sector
Cambridgeshire County Council,13-Oct-16,21736852-14200315,-1696.13,Hft Trust Ltd,Trust (Other),2 - Operations - Learning Disability,LDP Fenland Locality - Care,Residential Independent Sector
Cambridgeshire County Council,13-Oct-16,21736854-14200317,-1696.13,Hft Trust Ltd,Trust (Other),2 - Operations - Learning Disability,LDP Fenland Locality - Care,Residential Independent Sector
Cambridgeshire County Council,13-Oct-16,21736856-14200319,-1696.13,Hft Trust Ltd,Trust (Other),2 - Operations - Learning Disability,LDP Fenland Locality - Care,Residential Independent Sector
Cambridgeshire County Council,13-Oct-16,21736859-14200322,-1696.13,Hft Trust Ltd,Trust (Other),2 - Operations - Learning Disability,LDP Fenland Locality - Care,Residential Independent Sector
Cambridgeshire County Council,13-Oct-16,21736861-14200324,-1696.13,Hft Trust Ltd,Trust (Other),2 - Operations - Learning Disability,LDP Fenland Locality - Care,Residential Independent Sector
Cambridgeshire County Council,13-Oct-16,21736863-14200326,-1696.13,Hft Trust Ltd,Trust (Other),2 - Operations - Learning Disability,LDP Fenland Locality - Care,Residential Independent Sector
Cambridgeshire County Council,13-Oct-16,21736866-14200309,-1696.13,Hft Trust Ltd,Trust (Other),2 - Operations - Learning Disability,LDP Fenland Locality - Care,Residential Independent Sector
Cambridgeshire County Council,13-Oct-16,21764254-14200299,-1696.13,Hft Trust Ltd,Trust (Other),2 - Operations - Learning Disability,LDP Fenland Locality - Care,Residential Independent Sector
Cambridgeshire County Council,13-Oct-16,21764255-14200300,-1696.13,Hft Trust Ltd,Trust (Other),2 - Operations - Learning Disability,LDP Fenland Locality - Care,Residential Independent Sector
Cambridgeshire County Council,13-Oct-16,21764256-14200301,-1696.13,Hft Trust Ltd,Trust (Other),2 - Operations - Learning Disability,LDP Fenland Locality - Care,Residential Independent Sector
Cambridgeshire County Council,13-Oct-16,21764257-14200302,-1696.13,Hft Trust Ltd,Trust (Other),2 - Operations - Learning Disability,LDP Fenland Locality - Care,Residential Independent Sector
Cambridgeshire County Council,13-Oct-16,21764259-14200304,-1696.13,Hft Trust Ltd,Trust (Other),2 - Operations - Learning Disability,LDP Fenland Locality - Care,Residential Independent Sector
Cambridgeshire County Council,13-Oct-16,21764260-14200305,-1696.13,Hft Trust Ltd,Trust (Other),2 - Operations - Learning Disability,LDP Fenland Locality - Care,Residential Independent Sector
Cambridgeshire County Council,13-Oct-16,21764261-14200306,-1696.13,Hft Trust Ltd,Trust (Other),2 - Operations - Learning Disability,LDP Fenland Locality - Care,Residential Independent Sector
Cambridgeshire County Council,13-Oct-16,21764262-14200307,-1696.13,Hft Trust Ltd,Trust (Other),2 - Operations - Learning Disability,LDP Fenland Locality - Care,Residential Independent Sector
Cambridgeshire County Council,13-Oct-16,21764263-14200308,-1696.13,Hft Trust Ltd,Trust (Other),2 - Operations - Learning Disability,LDP Fenland Locality - Care,Residential Independent Sector
Cambridgeshire County Council,25-Oct-16,21901950-14269936,-1684.52,Stanground Academy,Education,S&C,Procurement - Out-County Mainstream,Education Recoupment
Cambridgeshire County Council,20-Oct-16,21884815-14243878,-1643.34,Congregation Of The Daughters Of The Cross Of Liege (St Elizabeths Centre),Care Establishment,2 - Operations - Learning Disability,LDP South Cambs Locality - Care,Day and Domicillary Care Independent Sector
Cambridgeshire County Council,27-Oct-16,21912163-14278317,-1547.67,Unit 2b (Dimensions),Care Establishment,2 - Operations - Learning Disability,LDP Huntingdonshire Locality - Care,Day and Domicillary Care Independent Sector
Cambridgeshire County Council,27-Oct-16,21912173-14278327,-1547.67,Unit 2b (Dimensions),Care Establishment,2 - Operations - Learning Disability,LDP Huntingdonshire Locality - Care,Day and Domicillary Care Independent Sector
Cambridgeshire County Council,27-Oct-16,21912181-14278407,-1547.67,Unit 2b (Dimensions),Care Establishment,2 - Operations - Learning Disability,LDP Huntingdonshire Locality - Care,Day and Domicillary Care Independent Sector
Cambridgeshire County Council,27-Oct-16,21912193-14278329,-1547.67,Unit 2b (Dimensions),Care Establishment,2 - Operations - Learning Disability,LDP Huntingdonshire Locality - Care,Day and Domicillary Care Independent Sector
Cambridgeshire County Council,27-Oct-16,21912199-14278335,-1547.67,Unit 2b (Dimensions),Care Establishment,2 - Operations - Learning Disability,LDP Huntingdonshire Locality - Care,Day and Domicillary Care Independent Sector
Cambridgeshire County Council,27-Oct-16,21912204-14278340,-1547.67,Unit 2b (Dimensions),Care Establishment,2 - Operations - Learning Disability,LDP Huntingdonshire Locality - Care,Day and Domicillary Care Independent Sector
Cambridgeshire County Council,27-Oct-16,21912207-14278343,-1547.67,Unit 2b (Dimensions),Care Establishment,2 - Operations - Learning Disability,LDP Huntingdonshire Locality - Care,Day and Domicillary Care Independent Sector
Cambridgeshire County Council,27-Oct-16,21912211-14278347,-1547.67,Unit 2b (Dimensions),Care Establishment,2 - Operations - Learning Disability,LDP Huntingdonshire Locality - Care,Day and Domicillary Care Independent Sector
Cambridgeshire County Council,27-Oct-16,21912212-14278348,-1547.67,Unit 2b (Dimensions),Care Establishment,2 - Operations - Learning Disability,LDP Huntingdonshire Locality - Care,Day and Domicillary Care Independent Sector
Cambridgeshire County Council,27-Oct-16,21912215-14278351,-1547.67,Unit 2b (Dimensions),Care Establishment,2 - Operations - Learning Disability,LDP Huntingdonshire Locality - Care,Day and Domicillary Care Independent Sector
Cambridgeshire County Council,27-Oct-16,21912227-14278363,-1547.67,Unit 2b (Dimensions),Care Establishment,2 - Operations - Learning Disability,LDP Huntingdonshire Locality - Care,Day and Domicillary Care Independent Sector
Cambridgeshire County Council,27-Oct-16,21912234-14278370,-1547.67,Unit 2b (Dimensions),Care Establishment,2 - Operations - Learning Disability,LDP Huntingdonshire Locality - Care,Day and Domicillary Care Independent Sector
Cambridgeshire County Council,27-Oct-16,21912248-14278384,-1547.67,Unit 2b (Dimensions),Care Establishment,2 - Operations - Learning Disability,LDP Huntingdonshire Locality - Care,Day and Domicillary Care Independent Sector
Cambridgeshire County Council,27-Oct-16,21912250-14278386,-1547.67,Unit 2b (Dimensions),Care Establishment,2 - Operations - Learning Disability,LDP Huntingdonshire Locality - Care,Day and Domicillary Care Independent Sector
Cambridgeshire County Council,27-Oct-16,21912257-14278393,-1547.67,Unit 2b (Dimensions),Care Establishment,2 - Operations - Learning Disability,LDP Huntingdonshire Locality - Care,Day and Domicillary Care Independent Sector
Cambridgeshire County Council,27-Oct-16,21912261-14278397,-1547.67,Unit 2b (Dimensions),Care Establishment,2 - Operations - Learning Disability,LDP Huntingdonshire Locality - Care,Day and Domicillary Care Independent Sector
Cambridgeshire County Council,27-Oct-16,21912266-14278551,-1547.67,Unit 2b (Dimensions),Care Establishment,2 - Operations - Learning Disability,LDP Huntingdonshire Locality - Care,Day and Domicillary Care Independent Sector
Cambridgeshire County Council,27-Oct-16,21912268-14278553,-1547.67,Unit 2b (Dimensions),Care Establishment,2 - Operations - Learning Disability,LDP Huntingdonshire Locality - Care,Day and Domicillary Care Independent Sector
Cambridgeshire County Council,27-Oct-16,21912275-14278560,-1547.67,Unit 2b (Dimensions),Care Establishment,2 - Operations - Learning Disability,LDP Huntingdonshire Locality - Care,Day and Domicillary Care Independent Sector
Cambridgeshire County Council,27-Oct-16,21912278-14278563,-1547.67,Unit 2b (Dimensions),Care Establishment,2 - Operations - Learning Disability,LDP Huntingdonshire Locality - Care,Day and Domicillary Care Independent Sector
Cambridgeshire County Council,27-Oct-16,21912280-14278565,-1547.67,Unit 2b (Dimensions),Care Establishment,2 - Operations - Learning Disability,LDP Huntingdonshire Locality - Care,Day and Domicillary Care Independent Sector
Cambridgeshire County Council,27-Oct-16,21912282-14278643,-1547.67,Unit 2b (Dimensions),Care Establishment,2 - Operations - Learning Disability,LDP Huntingdonshire Locality - Care,Day and Domicillary Care Independent Sector
Cambridgeshire County Council,27-Oct-16,21912285-14278646,-1547.67,Unit 2b (Dimensions),Care Establishment,2 - Operations - Learning Disability,LDP Huntingdonshire Locality - Care,Day and Domicillary Care Independent Sector
Cambridgeshire County Council,27-Oct-16,21912291-14278652,-1547.67,Unit 2b (Dimensions),Care Establishment,2 - Operations - Learning Disability,LDP Huntingdonshire Locality - Care,Day and Domicillary Care Independent Sector
Cambridgeshire County Council,27-Oct-16,21912293-14278654,-1547.67,Unit 2b (Dimensions),Care Establishment,2 - Operations - Learning Disability,LDP Huntingdonshire Locality - Care,Day and Domicillary Care Independent Sector
Cambridgeshire County Council,27-Oct-16,21912304-14278665,-1547.67,Unit 2b (Dimensions),Care Establishment,2 - Operations - Learning Disability,LDP Huntingdonshire Locality - Care,Day and Domicillary Care Independent Sector
Cambridgeshire County Council,27-Oct-16,21912306-14278667,-1547.67,Unit 2b (Dimensions),Care Establishment,2 - Operations - Learning Disability,LDP Huntingdonshire Locality - Care,Day and Domicillary Care Independent Sector
Cambridgeshire County Council,27-Oct-16,21912314-14278675,-1547.67,Unit 2b (Dimensions),Care Establishment,2 - Operations - Learning Disability,LDP Huntingdonshire Locality - Care,Day and Domicillary Care Independent Sector
Cambridgeshire County Council,27-Oct-16,21912318-14278679,-1547.67,Unit 2b (Dimensions),Care Establishment,2 - Operations - Learning Disability,LDP Huntingdonshire Locality - Care,Day and Domicillary Care Independent Sector
Cambridgeshire County Council,27-Oct-16,21912328-14278689,-1547.67,Unit 2b (Dimensions),Care Establishment,2 - Operations - Learning Disability,LDP Huntingdonshire Locality - Care,Day and Domicillary Care Independent Sector
Cambridgeshire County Council,27-Oct-16,21912330-14278691,-1547.67,Unit 2b (Dimensions),Care Establishment,2 - Operations - Learning Disability,LDP Huntingdonshire Locality - Care,Day and Domicillary Care Independent Sector
Cambridgeshire County Council,27-Oct-16,21912331-14278692,-1547.67,Unit 2b (Dimensions),Care Establishment,2 - Operations - Learning Disability,LDP Huntingdonshire Locality - Care,Day and Domicillary Care Independent Sector
Cambridgeshire County Council,27-Oct-16,21912339-14278700,-1547.67,Unit 2b (Dimensions),Care Establishment,2 - Operations - Learning Disability,LDP Huntingdonshire Locality - Care,Day and Domicillary Care Independent Sector
Cambridgeshire County Council,27-Oct-16,21912340-14278701,-1547.67,Unit 2b (Dimensions),Care Establishment,2 - Operations - Learning Disability,LDP Huntingdonshire Locality - Care,Day and Domicillary Care Independent Sector
Cambridgeshire County Council,27-Oct-16,21912351-14278712,-1547.67,Unit 2b (Dimensions),Care Establishment,2 - Operations - Learning Disability,LDP Huntingdonshire Locality - Care,Day and Domicillary Care Independent Sector
Cambridgeshire County Council,27-Oct-16,21912353-14278714,-1547.67,Unit 2b (Dimensions),Care Establishment,2 - Operations - Learning Disability,LDP Huntingdonshire Locality - Care,Day and Domicillary Care Independent Sector
Cambridgeshire County Council,27-Oct-16,21912362-14278723,-1547.67,Unit 2b (Dimensions),Care Establishment,2 - Operations - Learning Disability,LDP Huntingdonshire Locality - Care,Day and Domicillary Care Independent Sector
Cambridgeshire County Council,27-Oct-16,21912381-14278576,-1547.67,Unit 2b (Dimensions),Care Establishment,2 - Operations - Learning Disability,LDP Huntingdonshire Locality - Care,Day and Domicillary Care Independent Sector
Cambridgeshire County Council,27-Oct-16,21912394-14278593,-1547.67,Unit 2b (Dimensions),Care Establishment,2 - Operations - Learning Disability,LDP Huntingdonshire Locality - Care,Day and Domicillary Care Independent Sector
Cambridgeshire County Council,27-Oct-16,21912411-14278610,-1547.67,Unit 2b (Dimensions),Care Establishment,2 - Operations - Learning Disability,LDP Huntingdonshire Locality - Care,Day and Domicillary Care Independent Sector
Cambridgeshire County Council,27-Oct-16,21912419-14278618,-1547.67,Unit 2b (Dimensions),Care Establishment,2 - Operations - Learning Disability,LDP Huntingdonshire Locality - Care,Day and Domicillary Care Independent Sector
Cambridgeshire County Council,27-Oct-16,21912424-14278623,-1547.67,Unit 2b (Dimensions),Care Establishment,2 - Operations - Learning Disability,LDP Huntingdonshire Locality - Care,Day and Domicillary Care Independent Sector
Cambridgeshire County Council,27-Oct-16,21912428-14278627,-1547.67,Unit 2b (Dimensions),Care Establishment,2 - Operations - Learning Disability,LDP Huntingdonshire Locality - Care,Day and Domicillary Care Independent Sector
Cambridgeshire County Council,27-Oct-16,21912432-14278631,-1547.67,Unit 2b (Dimensions),Care Establishment,2 - Operations - Learning Disability,LDP Huntingdonshire Locality - Care,Day and Domicillary Care Independent Sector
Cambridgeshire County Council,27-Oct-16,21912441-14278640,-1547.67,Unit 2b (Dimensions),Care Establishment,2 - Operations - Learning Disability,LDP Huntingdonshire Locality - Care,Day and Domicillary Care Independent Sector
Cambridgeshire County Council,27-Oct-16,21913297-14278467,-1547.67,Unit 2b (Dimensions),Care Establishment,2 - Operations - Learning Disability,LDP Huntingdonshire Locality - Care,Day and Domicillary Care Independent Sector
Cambridgeshire County Council,27-Oct-16,21913298-14278468,-1547.67,Unit 2b (Dimensions),Care Establishment,2 - Operations - Learning Disability,LDP Huntingdonshire Locality - Care,Day and Domicillary Care Independent Sector
Cambridgeshire County Council,27-Oct-16,21913300-14278470,-1547.67,Unit 2b (Dimensions),Care Establishment,2 - Operations - Learning Disability,LDP Huntingdonshire Locality - Care,Day and Domicillary Care Independent Sector
Cambridgeshire County Council,27-Oct-16,21913306-14278476,-1547.67,Unit 2b (Dimensions),Care Establishment,2 - Operations - Learning Disability,LDP Huntingdonshire Locality - Care,Day and Domicillary Care Independent Sector
Cambridgeshire County Council,27-Oct-16,21913325-14278495,-1547.67,Unit 2b (Dimensions),Care Establishment,2 - Operations - Learning Disability,LDP Huntingdonshire Locality - Care,Day and Domicillary Care Independent Sector
Cambridgeshire County Council,27-Oct-16,21913326-14278496,-1547.67,Unit 2b (Dimensions),Care Establishment,2 - Operations - Learning Disability,LDP Huntingdonshire Locality - Care,Day and Domicillary Care Independent Sector
Cambridgeshire County Council,27-Oct-16,21913328-14278498,-1547.67,Unit 2b (Dimensions),Care Establishment,2 - Operations - Learning Disability,LDP Huntingdonshire Locality - Care,Day and Domicillary Care Independent Sector
Cambridgeshire County Council,27-Oct-16,21913351-14278521,-1547.67,Unit 2b (Dimensions),Care Establishment,2 - Operations - Learning Disability,LDP Huntingdonshire Locality - Care,Day and Domicillary Care Independent Sector
Cambridgeshire County Council,27-Oct-16,21913363-14278533,-1547.67,Unit 2b (Dimensions),Care Establishment,2 - Operations - Learning Disability,LDP Huntingdonshire Locality - Care,Day and Domicillary Care Independent Sector
Cambridgeshire County Council,27-Oct-16,21913381-14278420,-1547.67,Unit 2b (Dimensions),Care Establishment,2 - Operations - Learning Disability,LDP Huntingdonshire Locality - Care,Day and Domicillary Care Independent Sector
Cambridgeshire County Council,27-Oct-16,21913385-14278424,-1547.67,Unit 2b (Dimensions),Care Establishment,2 - Operations - Learning Disability,LDP Huntingdonshire Locality - Care,Day and Domicillary Care Independent Sector
Cambridgeshire County Council,27-Oct-16,21913409-14278448,-1547.67,Unit 2b (Dimensions),Care Establishment,2 - Operations - Learning Disability,LDP Huntingdonshire Locality - Care,Day and Domicillary Care Independent Sector
Cambridgeshire County Council,27-Oct-16,21913418-14278457,-1547.67,Unit 2b (Dimensions),Care Establishment,2 - Operations - Learning Disability,LDP Huntingdonshire Locality - Care,Day and Domicillary Care Independent Sector
Cambridgeshire County Council,13-Oct-16,21725237-14189868,-1513.05,Thera East Anglia,Care Establishment,2 - Operations - Learning Disability,LDP E Cambs Locality - Care,Day and Domicillary Care Independent Sector
Cambridgeshire County Council,13-Oct-16,21725240-14189871,-1513.05,Thera East Anglia,Care Establishment,2 - Operations - Learning Disability,LDP E Cambs Locality - Care,Day and Domicillary Care Independent Sector
Cambridgeshire County Council,13-Oct-16,21725241-14189872,-1513.05,Thera East Anglia,Care Establishment,2 - Operations - Learning Disability,LDP E Cambs Locality - Care,Day and Domicillary Care Independent Sector
Cambridgeshire County Council,13-Oct-16,21725249-14189880,-1513.05,Thera East Anglia,Care Establishment,2 - Operations - Learning Disability,LDP E Cambs Locality - Care,Day and Domicillary Care Independent Sector
Cambridgeshire County Council,27-Oct-16,21884767-14281492,-1493.58,Voyage (Lichfield),Care Establishment,2 - Operations - Learning Disability,LDP Fenland Locality - Care,Supported Living
Cambridgeshire County Council,13-Oct-16,21736850-14200313,-1453.83,Hft Trust Ltd,Trust (Other),2 - Operations - Learning Disability,LDP Fenland Locality - Care,Residential Independent Sector
Cambridgeshire County Council,20-Oct-16,21883254-14236562,-1421.14,Choicecare 2000 Ltd,Care Establishment,3 - Operations - Countywide Services,Countywide PD Service - Care,Residential Independent Sector
Cambridgeshire County Council,20-Oct-16,21883261-14236564,-1421.14,Choicecare 2000 Ltd,Care Establishment,3 - Operations - Countywide Services,Countywide PD Service - Care,Residential Independent Sector
Cambridgeshire County Council,06-Oct-16,21763603-14149165,-1418.25,The Brambles (Soham) Ltd,Care Establishment,2 - Operations - Learning Disability,LDP E Cambs Locality - Care,Residential Independent Sector
Cambridgeshire County Council,06-Oct-16,21763605-14149167,-1418.25,The Brambles (Soham) Ltd,Care Establishment,2 - Operations - Learning Disability,LDP E Cambs Locality - Care,Residential Independent Sector
Cambridgeshire County Council,06-Oct-16,21763608-14149170,-1418.25,The Brambles (Soham) Ltd,Care Establishment,2 - Operations - Learning Disability,LDP E Cambs Locality - Care,Residential Independent Sector
Cambridgeshire County Council,06-Oct-16,21763611-14149173,-1418.25,The Brambles (Soham) Ltd,Care Establishment,2 - Operations - Learning Disability,LDP E Cambs Locality - Care,Residential Independent Sector
Cambridgeshire County Council,06-Oct-16,21763618-14149180,-1418.25,The Brambles (Soham) Ltd,Care Establishment,2 - Operations - Learning Disability,LDP E Cambs Locality - Care,Residential Independent Sector
Cambridgeshire County Council,06-Oct-16,21763621-14149140,-1418.25,The Brambles (Soham) Ltd,Care Establishment,2 - Operations - Learning Disability,LDP E Cambs Locality - Care,Residential Independent Sector
Cambridgeshire County Council,06-Oct-16,21763622-14149141,-1418.25,The Brambles (Soham) Ltd,Care Establishment,2 - Operations - Learning Disability,LDP E Cambs Locality - Care,Residential Independent Sector
Cambridgeshire County Council,06-Oct-16,21763625-14149144,-1418.25,The Brambles (Soham) Ltd,Care Establishment,2 - Operations - Learning Disability,LDP E Cambs Locality - Care,Residential Independent Sector
Cambridgeshire County Council,06-Oct-16,21763633-14149152,-1418.25,The Brambles (Soham) Ltd,Care Establishment,2 - Operations - Learning Disability,LDP E Cambs Locality - Care,Residential Independent Sector
Cambridgeshire County Council,06-Oct-16,21763638-14149157,-1418.25,The Brambles (Soham) Ltd,Care Establishment,2 - Operations - Learning Disability,LDP E Cambs Locality - Care,Residential Independent Sector
Cambridgeshire County Council,06-Oct-16,21763639-14149158,-1418.25,The Brambles (Soham) Ltd,Care Establishment,2 - Operations - Learning Disability,LDP E Cambs Locality - Care,Residential Independent Sector
Cambridgeshire County Council,06-Oct-16,21763642-14149161,-1418.25,The Brambles (Soham) Ltd,Care Establishment,2 - Operations - Learning Disability,LDP E Cambs Locality - Care,Residential Independent Sector
Cambridgeshire County Council,20-Oct-16,21881418-14246179,-1416.58,Sense National Deaf & Blind,Care Establishment,3 - Operations - Countywide Services,Countywide PD Service - Care,Residential Independent Sector
Cambridgeshire County Council,20-Oct-16,21881423-14246184,-1416.58,Sense National Deaf & Blind,Care Establishment,3 - Operations - Countywide Services,Countywide PD Service - Care,Residential Independent Sector
Cambridgeshire County Council,18-Oct-16,21696320-14223529,-1391.34,Brook Healthcare#1,Care Establishment,5 - Commissioning - Mental Health & Supporting People,OP Blocks - Care Placements,Respite Independent Sector
Cambridgeshire County Council,20-Oct-16,21877792-14239763,-1341.88,Broad Oaks (Mencap),Care Establishment,3 - Operations - Countywide Services,Countywide PD Service - Care,Residential Independent Sector
Cambridgeshire County Council,20-Oct-16,21881051-14239744,-1341.88,Broad Oaks (Mencap),Care Establishment,3 - Operations - Countywide Services,Countywide PD Service - Care,Residential Independent Sector
Cambridgeshire County Council,07-Oct-16,21692381-14157634,-1308,Micro Librarian Systems Ltd,Trade Supplier,LRNG,ICT Service Procurement,Materials for resale
Cambridgeshire County Council,03-Oct-16,21541474-14131717,-1280,Cambridge City Council,Other Public Bodies,LGSS Managed,Fitzwilliam Road Hostel,Business rates
Cambridgeshire County Council,20-Oct-16,21885722-14244930,-1250.25,Eden View,Care Establishment,3 - Operations - Countywide Services,Countywide PD Service - Care,Nursing Independent Sector
Cambridgeshire County Council,20-Oct-16,21885726-14244934,-1250.25,Eden View,Care Establishment,3 - Operations - Countywide Services,Countywide PD Service - Care,Nursing Independent Sector
Cambridgeshire County Council,20-Oct-16,21885729-14244937,-1250.25,Eden View,Care Establishment,3 - Operations - Countywide Services,Countywide PD Service - Care,Nursing Independent Sector
Cambridgeshire County Council,20-Oct-16,21878078-14243566,-1246.2,Thera East Anglia,Care Establishment,2 - Operations - Learning Disability,LDP E Cambs Locality - Care,Supported Living
Cambridgeshire County Council,20-Oct-16,21878079-14243567,-1246.2,Thera East Anglia,Care Establishment,2 - Operations - Learning Disability,LDP E Cambs Locality - Care,Supported Living
Cambridgeshire County Council,20-Oct-16,21878080-14243568,-1246.2,Thera East Anglia,Care Establishment,2 - Operations - Learning Disability,LDP E Cambs Locality - Care,Supported Living
Cambridgeshire County Council,20-Oct-16,21881156-14243545,-1246.2,Thera East Anglia,Care Establishment,2 - Operations - Learning Disability,LDP E Cambs Locality - Care,Supported Living
Cambridgeshire County Council,20-Oct-16,21881157-14243546,-1246.2,Thera East Anglia,Care Establishment,2 - Operations - Learning Disability,LDP E Cambs Locality - Care,Supported Living
Cambridgeshire County Council,18-Oct-16,21792117-14223360,-1237.26,Ideal Building Systems Ltd,Company,S&C,Education Property Strategy Manager,Capital WIP - land and buildings  -  Construction cost
Cambridgeshire County Council,06-Oct-16,21763632-14149151,-1215.64,The Brambles (Soham) Ltd,Care Establishment,2 - Operations - Learning Disability,LDP E Cambs Locality - Care,Residential Independent Sector
Cambridgeshire County Council,06-Oct-16,21764922-14149538,-1198.04,Caretech Community Services,Care Establishment,2 - Operations - Learning Disability,LDP South Cambs - Special Needs,Residential Independent Sector
Cambridgeshire County Council,06-Oct-16,21764925-14149541,-1198.04,Caretech Community Services,Care Establishment,2 - Operations - Learning Disability,LDP South Cambs Locality - Care,Residential Independent Sector
Cambridgeshire County Council,06-Oct-16,21764927-14149543,-1198.04,Caretech Community Services,Care Establishment,2 - Operations - Learning Disability,LDP South Cambs Locality - Care,Residential Independent Sector
Cambridgeshire County Council,06-Oct-16,21764932-14149548,-1198.04,Caretech Community Services,Care Establishment,2 - Operations - Learning Disability,LDP South Cambs - Special Needs,Residential Independent Sector
Cambridgeshire County Council,06-Oct-16,21764935-14149551,-1198.04,Caretech Community Services,Care Establishment,2 - Operations - Learning Disability,LDP South Cambs Locality - Care,Residential Independent Sector
Cambridgeshire County Council,06-Oct-16,21764941-14149557,-1198.04,Caretech Community Services,Care Establishment,2 - Operations - Learning Disability,LDP South Cambs Locality - Care,Residential Independent Sector
Cambridgeshire County Council,06-Oct-16,21764944-14149560,-1198.04,Caretech Community Services,Care Establishment,2 - Operations - Learning Disability,LDP South Cambs - Special Needs,Residential Independent Sector
Cambridgeshire County Council,06-Oct-16,21764945-14149561,-1198.04,Caretech Community Services,Care Establishment,2 - Operations - Learning Disability,LDP South Cambs - Special Needs,Residential Independent Sector
Cambridgeshire County Council,06-Oct-16,21764946-14149562,-1198.04,Caretech Community Services,Care Establishment,2 - Operations - Learning Disability,LDP South Cambs Locality - Care,Residential Independent Sector
Cambridgeshire County Council,06-Oct-16,21764947-14149563,-1198.04,Caretech Community Services,Care Establishment,2 - Operations - Learning Disability,LDP South Cambs Locality - Care,Residential Independent Sector
Cambridgeshire County Council,06-Oct-16,21764948-14149564,-1198.04,Caretech Community Services,Care Establishment,2 - Operations - Learning Disability,LDP South Cambs - Special Needs,Residential Independent Sector
Cambridgeshire County Council,06-Oct-16,21764949-14149565,-1198.04,Caretech Community Services,Care Establishment,2 - Operations - Learning Disability,LDP South Cambs Locality - Care,Residential Independent Sector
Cambridgeshire County Council,06-Oct-16,21764954-14149570,-1198.04,Caretech Community Services,Care Establishment,2 - Operations - Learning Disability,LDP South Cambs Locality - Care,Residential Independent Sector
Cambridgeshire County Council,06-Oct-16,21765948-14149499,-1198.04,Caretech Community Services,Care Establishment,2 - Operations - Learning Disability,LDP South Cambs Locality - Care,Residential Independent Sector
Cambridgeshire County Council,06-Oct-16,21765949-14149500,-1198.04,Caretech Community Services,Care Establishment,2 - Operations - Learning Disability,LDP South Cambs Locality - Care,Residential Independent Sector
Cambridgeshire County Council,06-Oct-16,21765950-14149501,-1198.04,Caretech Community Services,Care Establishment,2 - Operations - Learning Disability,LDP South Cambs Locality - Care,Residential Independent Sector
Cambridgeshire County Council,06-Oct-16,21765952-14149503,-1198.04,Caretech Community Services,Care Establishment,2 - Operations - Learning Disability,LDP South Cambs Locality - Care,Residential Independent Sector
Cambridgeshire County Council,06-Oct-16,21765954-14149505,-1198.04,Caretech Community Services,Care Establishment,2 - Operations - Learning Disability,LDP South Cambs - Special Needs,Residential Independent Sector
Cambridgeshire County Council,06-Oct-16,21765956-14149507,-1198.04,Caretech Community Services,Care Establishment,2 - Operations - Learning Disability,LDP South Cambs - Special Needs,Residential Independent Sector
Cambridgeshire County Council,06-Oct-16,21765958-14149509,-1198.04,Caretech Community Services,Care Establishment,2 - Operations - Learning Disability,LDP South Cambs Locality - Care,Residential Independent Sector
Cambridgeshire County Council,06-Oct-16,21765961-14149512,-1198.04,Caretech Community Services,Care Establishment,2 - Operations - Learning Disability,LDP South Cambs Locality - Care,Residential Independent Sector
Cambridgeshire County Council,06-Oct-16,21765963-14149484,-1198.04,Caretech Community Services,Care Establishment,2 - Operations - Learning Disability,LDP South Cambs - Special Needs,Residential Independent Sector
Cambridgeshire County Council,06-Oct-16,21765967-14149488,-1198.04,Caretech Community Services,Care Establishment,2 - Operations - Learning Disability,LDP South Cambs Locality - Care,Residential Independent Sector
Cambridgeshire County Council,06-Oct-16,21765969-14149490,-1198.04,Caretech Community Services,Care Establishment,2 - Operations - Learning Disability,LDP South Cambs - Special Needs,Residential Independent Sector
Cambridgeshire County Council,06-Oct-16,21765970-14149491,-1198.04,Caretech Community Services,Care Establishment,2 - Operations - Learning Disability,LDP South Cambs - Special Needs,Residential Independent Sector
Cambridgeshire County Council,06-Oct-16,21765972-14149493,-1198.04,Caretech Community Services,Care Establishment,2 - Operations - Learning Disability,LDP South Cambs - Special Needs,Residential Independent Sector
Cambridgeshire County Council,06-Oct-16,21765973-14149494,-1198.04,Caretech Community Services,Care Establishment,2 - Operations - Learning Disability,LDP South Cambs - Special Needs,Residential Independent Sector
Cambridgeshire County Council,13-Oct-16,21820724-14189449,-1198.04,Caretech Community Services,Care Establishment,2 - Operations - Learning Disability,LDP South Cambs Locality - Care,Residential Independent Sector
Cambridgeshire County Council,13-Oct-16,21820725-14189450,-1198.04,Caretech Community Services,Care Establishment,2 - Operations - Learning Disability,LDP South Cambs - Special Needs,Residential Independent Sector
Cambridgeshire County Council,13-Oct-16,21820726-14189451,-1198.04,Caretech Community Services,Care Establishment,2 - Operations - Learning Disability,LDP South Cambs Locality - Care,Residential Independent Sector
Cambridgeshire County Council,13-Oct-16,21820727-14189452,-1198.04,Caretech Community Services,Care Establishment,2 - Operations - Learning Disability,LDP South Cambs Locality - Care,Residential Independent Sector
Cambridgeshire County Council,13-Oct-16,21820730-14189455,-1198.04,Caretech Community Services,Care Establishment,2 - Operations - Learning Disability,LDP South Cambs Locality - Care,Residential Independent Sector
Cambridgeshire County Council,13-Oct-16,21820731-14189456,-1198.04,Caretech Community Services,Care Establishment,2 - Operations - Learning Disability,LDP South Cambs Locality - Care,Residential Independent Sector
Cambridgeshire County Council,13-Oct-16,21820735-14189460,-1198.04,Caretech Community Services,Care Establishment,2 - Operations - Learning Disability,LDP South Cambs Locality - Care,Residential Independent Sector
Cambridgeshire County Council,13-Oct-16,21820736-14189461,-1198.04,Caretech Community Services,Care Establishment,2 - Operations - Learning Disability,LDP South Cambs - Special Needs,Residential Independent Sector
Cambridgeshire County Council,13-Oct-16,21820737-14189462,-1198.04,Caretech Community Services,Care Establishment,2 - Operations - Learning Disability,LDP South Cambs Locality - Care,Residential Independent Sector
Cambridgeshire County Council,13-Oct-16,21820738-14189463,-1198.04,Caretech Community Services,Care Establishment,2 - Operations - Learning Disability,LDP South Cambs Locality - Care,Residential Independent Sector
Cambridgeshire County Council,13-Oct-16,21820740-14189465,-1198.04,Caretech Community Services,Care Establishment,2 - Operations - Learning Disability,LDP South Cambs Locality - Care,Residential Independent Sector
Cambridgeshire County Council,13-Oct-16,21820743-14189468,-1198.04,Caretech Community Services,Care Establishment,2 - Operations - Learning Disability,LDP South Cambs Locality - Care,Residential Independent Sector
Cambridgeshire County Council,13-Oct-16,21820745-14189470,-1198.04,Caretech Community Services,Care Establishment,2 - Operations - Learning Disability,LDP South Cambs - Special Needs,Residential Independent Sector
Cambridgeshire County Council,13-Oct-16,21820749-14189414,-1198.04,Caretech Community Services,Care Establishment,2 - Operations - Learning Disability,LDP South Cambs - Special Needs,Residential Independent Sector
Cambridgeshire County Council,13-Oct-16,21820750-14189415,-1198.04,Caretech Community Services,Care Establishment,2 - Operations - Learning Disability,LDP South Cambs - Special Needs,Residential Independent Sector
Cambridgeshire County Council,13-Oct-16,21820755-14189420,-1198.04,Caretech Community Services,Care Establishment,2 - Operations - Learning Disability,LDP South Cambs Locality - Care,Residential Independent Sector
Cambridgeshire County Council,13-Oct-16,21820758-14189423,-1198.04,Caretech Community Services,Care Establishment,2 - Operations - Learning Disability,LDP South Cambs Locality - Care,Residential Independent Sector
Cambridgeshire County Council,13-Oct-16,21820761-14189426,-1198.04,Caretech Community Services,Care Establishment,2 - Operations - Learning Disability,LDP South Cambs Locality - Care,Residential Independent Sector
Cambridgeshire County Council,13-Oct-16,21820765-14189430,-1198.04,Caretech Community Services,Care Establishment,2 - Operations - Learning Disability,LDP South Cambs - Special Needs,Residential Independent Sector
Cambridgeshire County Council,13-Oct-16,21820766-14189431,-1198.04,Caretech Community Services,Care Establishment,2 - Operations - Learning Disability,LDP South Cambs Locality - Care,Residential Independent Sector
Cambridgeshire County Council,13-Oct-16,21820768-14189433,-1198.04,Caretech Community Services,Care Establishment,2 - Operations - Learning Disability,LDP South Cambs Locality - Care,Residential Independent Sector
Cambridgeshire County Council,13-Oct-16,21820771-14189436,-1198.04,Caretech Community Services,Care Establishment,2 - Operations - Learning Disability,LDP South Cambs - Special Needs,Residential Independent Sector
Cambridgeshire County Council,13-Oct-16,21820772-14189437,-1198.04,Caretech Community Services,Care Establishment,2 - Operations - Learning Disability,LDP South Cambs Locality - Care,Residential Independent Sector
Cambridgeshire County Council,13-Oct-16,21820775-14189440,-1198.04,Caretech Community Services,Care Establishment,2 - Operations - Learning Disability,LDP South Cambs - Special Needs,Residential Independent Sector
Cambridgeshire County Council,13-Oct-16,21820776-14189441,-1198.04,Caretech Community Services,Care Establishment,2 - Operations - Learning Disability,LDP South Cambs Locality - Care,Residential Independent Sector
Cambridgeshire County Council,13-Oct-16,21820778-14189443,-1198.04,Caretech Community Services,Care Establishment,2 - Operations - Learning Disability,LDP South Cambs Locality - Care,Residential Independent Sector
Cambridgeshire County Council,13-Oct-16,21820780-14189445,-1198.04,Caretech Community Services,Care Establishment,2 - Operations - Learning Disability,LDP South Cambs Locality - Care,Residential Independent Sector
Cambridgeshire County Council,27-Oct-16,21879708-14276682,-1198.04,Caretech Community Services,Care Establishment,2 - Operations - Learning Disability,LDP South Cambs Locality - Care,Residential Independent Sector
Cambridgeshire County Council,27-Oct-16,21879709-14276683,-1198.04,Caretech Community Services,Care Establishment,2 - Operations - Learning Disability,LDP South Cambs Locality - Care,Residential Independent Sector
Cambridgeshire County Council,27-Oct-16,21879710-14276684,-1198.04,Caretech Community Services,Care Establishment,2 - Operations - Learning Disability,LDP South Cambs - Special Needs,Residential Independent Sector
Cambridgeshire County Council,27-Oct-16,21879711-14276685,-1198.04,Caretech Community Services,Care Establishment,2 - Operations - Learning Disability,LDP South Cambs Locality - Care,Residential Independent Sector
Cambridgeshire County Council,27-Oct-16,21879712-14276686,-1198.04,Caretech Community Services,Care Establishment,2 - Operations - Learning Disability,LDP South Cambs - Special Needs,Residential Independent Sector
Cambridgeshire County Council,27-Oct-16,21879713-14276723,-1198.04,Caretech Community Services,Care Establishment,2 - Operations - Learning Disability,LDP South Cambs - Special Needs,Residential Independent Sector
Cambridgeshire County Council,27-Oct-16,21879714-14276724,-1198.04,Caretech Community Services,Care Establishment,2 - Operations - Learning Disability,LDP South Cambs Locality - Care,Residential Independent Sector
Cambridgeshire County Council,27-Oct-16,21879719-14276729,-1198.04,Caretech Community Services,Care Establishment,2 - Operations - Learning Disability,LDP South Cambs - Special Needs,Residential Independent Sector
Cambridgeshire County Council,27-Oct-16,21879721-14276731,-1198.04,Caretech Community Services,Care Establishment,2 - Operations - Learning Disability,LDP South Cambs - Special Needs,Residential Independent Sector
Cambridgeshire County Council,27-Oct-16,21879722-14276732,-1198.04,Caretech Community Services,Care Establishment,2 - Operations - Learning Disability,LDP South Cambs - Special Needs,Residential Independent Sector
Cambridgeshire County Council,27-Oct-16,21879723-14276733,-1198.04,Caretech Community Services,Care Establishment,2 - Operations - Learning Disability,LDP South Cambs - Special Needs,Residential Independent Sector
Cambridgeshire County Council,27-Oct-16,21879727-14276737,-1198.04,Caretech Community Services,Care Establishment,2 - Operations - Learning Disability,LDP South Cambs Locality - Care,Residential Independent Sector
Cambridgeshire County Council,27-Oct-16,21879728-14276738,-1198.04,Caretech Community Services,Care Establishment,2 - Operations - Learning Disability,LDP South Cambs - Special Needs,Residential Independent Sector
Cambridgeshire County Council,27-Oct-16,21880729-14276687,-1198.04,Caretech Community Services,Care Establishment,2 - Operations - Learning Disability,LDP South Cambs - Special Needs,Residential Independent Sector
Cambridgeshire County Council,27-Oct-16,21880731-14276689,-1198.04,Caretech Community Services,Care Establishment,2 - Operations - Learning Disability,LDP South Cambs Locality - Care,Residential Independent Sector
Cambridgeshire County Council,27-Oct-16,21880733-14276691,-1198.04,Caretech Community Services,Care Establishment,2 - Operations - Learning Disability,LDP South Cambs - Special Needs,Residential Independent Sector
Cambridgeshire County Council,27-Oct-16,21881673-14276696,-1198.04,Caretech Community Services,Care Establishment,2 - Operations - Learning Disability,LDP South Cambs - Special Needs,Residential Independent Sector
Cambridgeshire County Council,27-Oct-16,21881676-14276699,-1198.04,Caretech Community Services,Care Establishment,2 - Operations - Learning Disability,LDP South Cambs Locality - Care,Residential Independent Sector
Cambridgeshire County Council,27-Oct-16,21881680-14276703,-1198.04,Caretech Community Services,Care Establishment,2 - Operations - Learning Disability,LDP South Cambs - Special Needs,Residential Independent Sector
Cambridgeshire County Council,27-Oct-16,21881683-14276706,-1198.04,Caretech Community Services,Care Establishment,2 - Operations - Learning Disability,LDP South Cambs - Special Needs,Residential Independent Sector
Cambridgeshire County Council,27-Oct-16,21881685-14276708,-1198.04,Caretech Community Services,Care Establishment,2 - Operations - Learning Disability,LDP South Cambs - Special Needs,Residential Independent Sector
Cambridgeshire County Council,27-Oct-16,21881686-14276709,-1198.04,Caretech Community Services,Care Establishment,2 - Operations - Learning Disability,LDP South Cambs - Special Needs,Residential Independent Sector
Cambridgeshire County Council,27-Oct-16,21881688-14276711,-1198.04,Caretech Community Services,Care Establishment,2 - Operations - Learning Disability,LDP South Cambs - Special Needs,Residential Independent Sector
Cambridgeshire County Council,27-Oct-16,21881691-14276714,-1198.04,Caretech Community Services,Care Establishment,2 - Operations - Learning Disability,LDP South Cambs Locality - Care,Residential Independent Sector
Cambridgeshire County Council,27-Oct-16,21881692-14276715,-1198.04,Caretech Community Services,Care Establishment,2 - Operations - Learning Disability,LDP South Cambs Locality - Care,Residential Independent Sector
Cambridgeshire County Council,27-Oct-16,21881693-14276716,-1198.04,Caretech Community Services,Care Establishment,2 - Operations - Learning Disability,LDP South Cambs Locality - Care,Residential Independent Sector
Cambridgeshire County Council,27-Oct-16,21881694-14276717,-1198.04,Caretech Community Services,Care Establishment,2 - Operations - Learning Disability,LDP South Cambs Locality - Care,Residential Independent Sector
Cambridgeshire County Council,27-Oct-16,21917136-14276758,-1198.04,Caretech Community Services,Care Establishment,2 - Operations - Learning Disability,LDP South Cambs - Special Needs,Residential Independent Sector
Cambridgeshire County Council,27-Oct-16,21917137-14276759,-1198.04,Caretech Community Services,Care Establishment,2 - Operations - Learning Disability,LDP South Cambs - Special Needs,Residential Independent Sector
Cambridgeshire County Council,27-Oct-16,21917138-14276760,-1198.04,Caretech Community Services,Care Establishment,2 - Operations - Learning Disability,LDP South Cambs - Special Needs,Residential Independent Sector
Cambridgeshire County Council,27-Oct-16,21917142-14276764,-1198.04,Caretech Community Services,Care Establishment,2 - Operations - Learning Disability,LDP South Cambs Locality - Care,Residential Independent Sector
Cambridgeshire County Council,27-Oct-16,21917145-14276635,-1198.04,Caretech Community Services,Care Establishment,2 - Operations - Learning Disability,LDP South Cambs Locality - Care,Residential Independent Sector
Cambridgeshire County Council,27-Oct-16,21917147-14276637,-1198.04,Caretech Community Services,Care Establishment,2 - Operations - Learning Disability,LDP South Cambs Locality - Care,Residential Independent Sector
Cambridgeshire County Council,27-Oct-16,21917148-14276638,-1198.04,Caretech Community Services,Care Establishment,2 - Operations - Learning Disability,LDP South Cambs - Special Needs,Residential Independent Sector
Cambridgeshire County Council,27-Oct-16,21917149-14276639,-1198.04,Caretech Community Services,Care Establishment,2 - Operations - Learning Disability,LDP South Cambs Locality - Care,Residential Independent Sector
Cambridgeshire County Council,27-Oct-16,21917151-14276641,-1198.04,Caretech Community Services,Care Establishment,2 - Operations - Learning Disability,LDP South Cambs Locality - Care,Residential Independent Sector
Cambridgeshire County Council,27-Oct-16,21917153-14276643,-1198.04,Caretech Community Services,Care Establishment,2 - Operations - Learning Disability,LDP South Cambs Locality - Care,Residential Independent Sector
Cambridgeshire County Council,27-Oct-16,21917155-14276645,-1198.04,Caretech Community Services,Care Establishment,2 - Operations - Learning Disability,LDP South Cambs Locality - Care,Residential Independent Sector
Cambridgeshire County Council,27-Oct-16,21917156-14276646,-1198.04,Caretech Community Services,Care Establishment,2 - Operations - Learning Disability,LDP South Cambs - Special Needs,Residential Independent Sector
Cambridgeshire County Council,27-Oct-16,21917157-14276647,-1198.04,Caretech Community Services,Care Establishment,2 - Operations - Learning Disability,LDP South Cambs - Special Needs,Residential Independent Sector
Cambridgeshire County Council,27-Oct-16,21917162-14276652,-1198.04,Caretech Community Services,Care Establishment,2 - Operations - Learning Disability,LDP South Cambs Locality - Care,Residential Independent Sector
Cambridgeshire County Council,27-Oct-16,21917163-14276653,-1198.04,Caretech Community Services,Care Establishment,2 - Operations - Learning Disability,LDP South Cambs Locality - Care,Residential Independent Sector
Cambridgeshire County Council,27-Oct-16,21917165-14276655,-1198.04,Caretech Community Services,Care Establishment,2 - Operations - Learning Disability,LDP South Cambs - Special Needs,Residential Independent Sector
Cambridgeshire County Council,27-Oct-16,21917167-14276657,-1198.04,Caretech Community Services,Care Establishment,2 - Operations - Learning Disability,LDP South Cambs - Special Needs,Residential Independent Sector
Cambridgeshire County Council,27-Oct-16,21917170-14276660,-1198.04,Caretech Community Services,Care Establishment,2 - Operations - Learning Disability,LDP South Cambs - Special Needs,Residential Independent Sector
Cambridgeshire County Council,27-Oct-16,21917173-14276663,-1198.04,Caretech Community Services,Care Establishment,2 - Operations - Learning Disability,LDP South Cambs - Special Needs,Residential Independent Sector
Cambridgeshire County Council,27-Oct-16,21917175-14276665,-1198.04,Caretech Community Services,Care Establishment,2 - Operations - Learning Disability,LDP South Cambs Locality - Care,Residential Independent Sector
Cambridgeshire County Council,27-Oct-16,21917177-14276667,-1198.04,Caretech Community Services,Care Establishment,2 - Operations - Learning Disability,LDP South Cambs - Special Needs,Residential Independent Sector
Cambridgeshire County Council,27-Oct-16,21917178-14276668,-1198.04,Caretech Community Services,Care Establishment,2 - Operations - Learning Disability,LDP South Cambs - Special Needs,Residential Independent Sector
Cambridgeshire County Council,27-Oct-16,21917180-14276670,-1198.04,Caretech Community Services,Care Establishment,2 - Operations - Learning Disability,LDP South Cambs - Special Needs,Residential Independent Sector
Cambridgeshire County Council,27-Oct-16,21917184-14276674,-1198.04,Caretech Community Services,Care Establishment,2 - Operations - Learning Disability,LDP South Cambs Locality - Care,Residential Independent Sector
Cambridgeshire County Council,27-Oct-16,21917185-14276675,-1198.04,Caretech Community Services,Care Establishment,2 - Operations - Learning Disability,LDP South Cambs - Special Needs,Residential Independent Sector
Cambridgeshire County Council,27-Oct-16,21917186-14276676,-1198.04,Caretech Community Services,Care Establishment,2 - Operations - Learning Disability,LDP South Cambs - Special Needs,Residential Independent Sector
Cambridgeshire County Council,27-Oct-16,21917189-14276679,-1198.04,Caretech Community Services,Care Establishment,2 - Operations - Learning Disability,LDP South Cambs Locality - Care,Residential Independent Sector
Cambridgeshire County Council,20-Oct-16,21764520-14240894,-1146.86,Haddon House,Care Establishment,2 - Operations - Learning Disability,LDP Hunts special needs,Residential Independent Sector
Cambridgeshire County Council,27-Oct-16,21764462-14279453,-1126.32,Decoy Farm,Care Establishment,2 - Operations - Learning Disability,LDP Huntingdonshire Locality - Care,Nursing Independent Sector
Cambridgeshire County Council,07-Oct-16,21220735-14157592,-1106.88,Stagecoach Services Ltd,Trade Supplier,E&P,YS - Positive Activities for Young People,Educational Materials
Cambridgeshire County Council,20-Oct-16,21882563-14243056,-1106.23,The Manor Cheshire Home,Care Establishment,3 - Operations - Countywide Services,Countywide PD Service - Care,Residential Independent Sector
Cambridgeshire County Council,20-Oct-16,21882567-14243060,-1106.23,The Manor Cheshire Home,Care Establishment,3 - Operations - Countywide Services,Countywide PD Service - Care,Residential Independent Sector
Cambridgeshire County Council,13-Oct-16,21733639-14189833,-1081.85,Thera East Anglia,Care Establishment,2 - Operations - Learning Disability,LDP E Cambs Locality - Care,Supported Living
Cambridgeshire County Council,13-Oct-16,21733640-14189834,-1081.85,Thera East Anglia,Care Establishment,2 - Operations - Learning Disability,LDP E Cambs Locality - Care,Supported Living
Cambridgeshire County Council,13-Oct-16,21733642-14189836,-1081.85,Thera East Anglia,Care Establishment,2 - Operations - Learning Disability,LDP E Cambs Locality - Care,Supported Living
Cambridgeshire County Council,13-Oct-16,21733645-14189839,-1081.85,Thera East Anglia,Care Establishment,2 - Operations - Learning Disability,LDP E Cambs Locality - Care,Supported Living
Cambridgeshire County Council,13-Oct-16,21819455-14180223,-1067.07,32 Kings Lane Op,Care Establishment,3 - Operations - Countywide Services,LDP Young Adults - Care,Residential Independent Sector
Cambridgeshire County Council,13-Oct-16,21819456-14180224,-1067.07,32 Kings Lane Op,Care Establishment,3 - Operations - Countywide Services,LDP Young Adults - Care,Residential Independent Sector
Cambridgeshire County Council,13-Oct-16,21819461-14180226,-1067.07,32 Kings Lane Op,Care Establishment,3 - Operations - Countywide Services,LDP Young Adults - Care,Residential Independent Sector
Cambridgeshire County Council,13-Oct-16,21819463-14180228,-1067.07,32 Kings Lane Op,Care Establishment,3 - Operations - Countywide Services,LDP Young Adults - Care,Residential Independent Sector
Cambridgeshire County Council,13-Oct-16,21819466-14180230,-1067.07,32 Kings Lane Op,Care Establishment,3 - Operations - Countywide Services,LDP Young Adults - Care,Residential Independent Sector
Cambridgeshire County Council,13-Oct-16,21819470-14180233,-1067.07,32 Kings Lane Op,Care Establishment,3 - Operations - Countywide Services,LDP Young Adults - Care,Residential Independent Sector
Cambridgeshire County Council,13-Oct-16,21819477-14180238,-1067.07,32 Kings Lane Op,Care Establishment,3 - Operations - Countywide Services,LDP Young Adults - Care,Residential Independent Sector
Cambridgeshire County Council,13-Oct-16,21819483-14180241,-1067.07,32 Kings Lane Op,Care Establishment,3 - Operations - Countywide Services,LDP Young Adults - Care,Residential Independent Sector
Cambridgeshire County Council,13-Oct-16,21819488-14180245,-1067.07,32 Kings Lane Op,Care Establishment,3 - Operations - Countywide Services,LDP Young Adults - Care,Residential Independent Sector
Cambridgeshire County Council,13-Oct-16,21821073-14180246,-1067.07,32 Kings Lane Op,Care Establishment,3 - Operations - Countywide Services,LDP Young Adults - Care,Residential Independent Sector
Cambridgeshire County Council,13-Oct-16,21821074-14180247,-1067.07,32 Kings Lane Op,Care Establishment,3 - Operations - Countywide Services,LDP Young Adults - Care,Residential Independent Sector
Cambridgeshire County Council,13-Oct-16,21808937-14195869,-1050,Woodlands Care Centre,Care Establishment,2 - Commissioning - Older people Pool,Older People - City & South,Residential Independent Sector
Cambridgeshire County Council,13-Oct-16,21808939-14195870,-1050,Woodlands Care Centre,Care Establishment,2 - Commissioning - Older people Pool,Older People - City & South,Residential Independent Sector
Cambridgeshire County Council,13-Oct-16,21808940-14195871,-1050,Woodlands Care Centre,Care Establishment,2 - Commissioning - Older people Pool,Older People - City & South,Residential Independent Sector
Cambridgeshire County Council,13-Oct-16,21808941-14195872,-1050,Woodlands Care Centre,Care Establishment,2 - Commissioning - Older people Pool,Older People - City & South,Residential Independent Sector
Cambridgeshire County Council,13-Oct-16,21808943-14195873,-1050,Woodlands Care Centre,Care Establishment,2 - Commissioning - Older people Pool,Older People - City & South,Residential Independent Sector
Cambridgeshire County Council,27-Oct-16,21913335-14278505,-1031.78,Unit 2b (Dimensions),Care Establishment,2 - Operations - Learning Disability,LDP Huntingdonshire Locality - Care,Day and Domicillary Care Independent Sector
Cambridgeshire County Council,06-Oct-16,21764921-14149537,-1026.89,Caretech Community Services,Care Establishment,2 - Operations - Learning Disability,LDP South Cambs - Special Needs,Residential Independent Sector
Cambridgeshire County Council,13-Oct-16,21820753-14189418,-1026.89,Caretech Community Services,Care Establishment,2 - Operations - Learning Disability,LDP South Cambs Locality - Care,Residential Independent Sector
Cambridgeshire County Council,27-Oct-16,21880732-14276690,-1026.89,Caretech Community Services,Care Establishment,2 - Operations - Learning Disability,LDP South Cambs - Special Needs,Residential Independent Sector
Cambridgeshire County Council,27-Oct-16,21917160-14276650,-1026.89,Caretech Community Services,Care Establishment,2 - Operations - Learning Disability,LDP South Cambs - Special Needs,Residential Independent Sector
Cambridgeshire County Council,20-Oct-16,21888237-14243051,-1010.03,The Manor Cheshire Home,Care Establishment,3 - Operations - Countywide Services,Countywide PD Service - Care,Residential Independent Sector
Cambridgeshire County Council,20-Oct-16,21888241-14243055,-1010.03,The Manor Cheshire Home,Care Establishment,3 - Operations - Countywide Services,Countywide PD Service - Care,Residential Independent Sector
Cambridgeshire County Council,20-Oct-16,21883102-14245569,-1002.45,Redacted Personal Data,Individual,3 - Operations - Countywide Services,Countywide PD Service - Care,SDS - Care and support Services
Cambridgeshire County Council,20-Oct-16,21883110-14245574,-1002.45,Redacted Personal Data,Individual,3 - Operations - Countywide Services,Countywide PD Service - Care,SDS - Care and support Services
Cambridgeshire County Council,13-Oct-16,21824186-14187968,-994.25,Askham Village Community Ltd,Care Establishment,2 - Commissioning - Older people Pool,Older People - Fenland,Nursing Independent Sector
Cambridgeshire County Council,13-Oct-16,21824188-14187969,-994.25,Askham Village Community Ltd,Care Establishment,2 - Commissioning - Older people Pool,Older People - Fenland,Nursing Independent Sector
Cambridgeshire County Council,13-Oct-16,21824198-14187971,-994.25,Askham Village Community Ltd,Care Establishment,2 - Commissioning - Older people Pool,Older People - Fenland,Nursing Independent Sector
Cambridgeshire County Council,13-Oct-16,21824199-14187972,-994.25,Askham Village Community Ltd,Care Establishment,2 - Commissioning - Older people Pool,Older People - Fenland,Nursing Independent Sector
Cambridgeshire County Council,13-Oct-16,21824200-14187973,-994.25,Askham Village Community Ltd,Care Establishment,2 - Commissioning - Older people Pool,Older People - Fenland,Nursing Independent Sector
Cambridgeshire County Council,13-Oct-16,21824203-14187974,-994.25,Askham Village Community Ltd,Care Establishment,2 - Commissioning - Older people Pool,Older People - Fenland,Nursing Independent Sector
Cambridgeshire County Council,13-Oct-16,21824205-14187975,-994.25,Askham Village Community Ltd,Care Establishment,2 - Commissioning - Older people Pool,Older People - Fenland,Nursing Independent Sector
Cambridgeshire County Council,20-Oct-16,21884628-14241370,-955.5,Redacted Personal Data,Individual,3 - Operations - Countywide Services,Countywide PD Service - Care,SDS - Care and support Services
Cambridgeshire County Council,20-Oct-16,21884630-14241371,-955.5,Redacted Personal Data,Individual,3 - Operations - Countywide Services,Countywide PD Service - Care,SDS - Care and support Services
Cambridgeshire County Council,20-Oct-16,21764086-14241239,-926.11,Making Space#1,Care Establishment,3 - Operations - Countywide Services,Countywide PD Service - Care,Nursing Independent Sector
Cambridgeshire County Council,20-Oct-16,21764088-14241241,-926.11,Making Space#1,Care Establishment,3 - Operations - Countywide Services,Countywide PD Service - Care,Nursing Independent Sector
Cambridgeshire County Council,20-Oct-16,21764095-14241248,-926.11,Making Space#1,Care Establishment,3 - Operations - Countywide Services,Countywide PD Service - Care,Nursing Independent Sector
Cambridgeshire County Council,20-Oct-16,21764096-14241249,-926.11,Making Space#1,Care Establishment,3 - Operations - Countywide Services,Countywide PD Service - Care,Nursing Independent Sector
Cambridgeshire County Council,20-Oct-16,21764098-14241251,-926.11,Making Space#1,Care Establishment,3 - Operations - Countywide Services,Countywide PD Service - Care,Nursing Independent Sector
Cambridgeshire County Council,20-Oct-16,21764102-14241255,-926.11,Making Space#1,Care Establishment,3 - Operations - Countywide Services,Countywide PD Service - Care,Nursing Independent Sector
Cambridgeshire County Council,20-Oct-16,21764110-14241263,-926.11,Making Space#1,Care Establishment,3 - Operations - Countywide Services,Countywide PD Service - Care,Nursing Independent Sector
Cambridgeshire County Council,20-Oct-16,21764111-14241264,-926.11,Making Space#1,Care Establishment,3 - Operations - Countywide Services,Countywide PD Service - Care,Nursing Independent Sector
Cambridgeshire County Council,20-Oct-16,21764112-14241265,-926.11,Making Space#1,Care Establishment,3 - Operations - Countywide Services,Countywide PD Service - Care,Nursing Independent Sector
Cambridgeshire County Council,20-Oct-16,21764113-14241266,-926.11,Making Space#1,Care Establishment,3 - Operations - Countywide Services,Countywide PD Service - Care,Nursing Independent Sector
Cambridgeshire County Council,20-Oct-16,21764116-14241269,-926.11,Making Space#1,Care Establishment,3 - Operations - Countywide Services,Countywide PD Service - Care,Nursing Independent Sector
Cambridgeshire County Council,20-Oct-16,21764117-14241270,-926.11,Making Space#1,Care Establishment,3 - Operations - Countywide Services,Countywide PD Service - Care,Nursing Independent Sector
Cambridgeshire County Council,20-Oct-16,21764119-14241272,-926.11,Making Space#1,Care Establishment,3 - Operations - Countywide Services,Countywide PD Service - Care,Nursing Independent Sector
Cambridgeshire County Council,20-Oct-16,21764120-14241273,-926.11,Making Space#1,Care Establishment,3 - Operations - Countywide Services,Countywide PD Service - Care,Nursing Independent Sector
Cambridgeshire County Council,20-Oct-16,21764122-14241275,-926.11,Making Space#1,Care Establishment,3 - Operations - Countywide Services,Countywide PD Service - Care,Nursing Independent Sector
Cambridgeshire County Council,20-Oct-16,21764124-14241277,-926.11,Making Space#1,Care Establishment,3 - Operations - Countywide Services,Countywide PD Service - Care,Nursing Independent Sector
Cambridgeshire County Council,20-Oct-16,21764126-14241279,-926.11,Making Space#1,Care Establishment,3 - Operations - Countywide Services,Countywide PD Service - Care,Nursing Independent Sector
Cambridgeshire County Council,20-Oct-16,21764127-14241280,-926.11,Making Space#1,Care Establishment,3 - Operations - Countywide Services,Countywide PD Service - Care,Nursing Independent Sector
Cambridgeshire County Council,20-Oct-16,21764128-14241281,-926.11,Making Space#1,Care Establishment,3 - Operations - Countywide Services,Countywide PD Service - Care,Nursing Independent Sector
Cambridgeshire County Council,20-Oct-16,21764129-14241282,-926.11,Making Space#1,Care Establishment,3 - Operations - Countywide Services,Countywide PD Service - Care,Nursing Independent Sector
Cambridgeshire County Council,20-Oct-16,21764130-14241283,-926.11,Making Space#1,Care Establishment,3 - Operations - Countywide Services,Countywide PD Service - Care,Nursing Independent Sector
Cambridgeshire County Council,20-Oct-16,21764131-14241284,-926.11,Making Space#1,Care Establishment,3 - Operations - Countywide Services,Countywide PD Service - Care,Nursing Independent Sector
Cambridgeshire County Council,20-Oct-16,21764132-14241285,-926.11,Making Space#1,Care Establishment,3 - Operations - Countywide Services,Countywide PD Service - Care,Nursing Independent Sector
Cambridgeshire County Council,20-Oct-16,21764134-14241221,-926.11,Making Space#1,Care Establishment,3 - Operations - Countywide Services,Countywide PD Service - Care,Nursing Independent Sector
Cambridgeshire County Council,20-Oct-16,21764135-14241222,-926.11,Making Space#1,Care Establishment,3 - Operations - Countywide Services,Countywide PD Service - Care,Nursing Independent Sector
Cambridgeshire County Council,20-Oct-16,21764137-14241224,-926.11,Making Space#1,Care Establishment,3 - Operations - Countywide Services,Countywide PD Service - Care,Nursing Independent Sector
Cambridgeshire County Council,20-Oct-16,21764139-14241226,-926.11,Making Space#1,Care Establishment,3 - Operations - Countywide Services,Countywide PD Service - Care,Nursing Independent Sector
Cambridgeshire County Council,20-Oct-16,21764140-14241227,-926.11,Making Space#1,Care Establishment,3 - Operations - Countywide Services,Countywide PD Service - Care,Nursing Independent Sector
Cambridgeshire County Council,20-Oct-16,21764141-14241228,-926.11,Making Space#1,Care Establishment,3 - Operations - Countywide Services,Countywide PD Service - Care,Nursing Independent Sector
Cambridgeshire County Council,20-Oct-16,21764143-14241230,-926.11,Making Space#1,Care Establishment,3 - Operations - Countywide Services,Countywide PD Service - Care,Nursing Independent Sector
Cambridgeshire County Council,20-Oct-16,21764145-14241232,-926.11,Making Space#1,Care Establishment,3 - Operations - Countywide Services,Countywide PD Service - Care,Nursing Independent Sector
Cambridgeshire County Council,20-Oct-16,21764148-14241235,-926.11,Making Space#1,Care Establishment,3 - Operations - Countywide Services,Countywide PD Service - Care,Nursing Independent Sector
Cambridgeshire County Council,20-Oct-16,21826633-14241152,-926.11,Making Space#1,Care Establishment,3 - Operations - Countywide Services,Countywide PD Service - Care,Nursing Independent Sector
Cambridgeshire County Council,20-Oct-16,21826635-14241154,-926.11,Making Space#1,Care Establishment,3 - Operations - Countywide Services,Countywide PD Service - Care,Nursing Independent Sector
Cambridgeshire County Council,20-Oct-16,21826636-14241155,-926.11,Making Space#1,Care Establishment,3 - Operations - Countywide Services,Countywide PD Service - Care,Nursing Independent Sector
Cambridgeshire County Council,20-Oct-16,21826638-14241157,-926.11,Making Space#1,Care Establishment,3 - Operations - Countywide Services,Countywide PD Service - Care,Nursing Independent Sector
Cambridgeshire County Council,20-Oct-16,21826639-14241158,-926.11,Making Space#1,Care Establishment,3 - Operations - Countywide Services,Countywide PD Service - Care,Nursing Independent Sector
Cambridgeshire County Council,20-Oct-16,21826642-14241161,-926.11,Making Space#1,Care Establishment,3 - Operations - Countywide Services,Countywide PD Service - Care,Nursing Independent Sector
Cambridgeshire County Council,20-Oct-16,21826646-14241165,-926.11,Making Space#1,Care Establishment,3 - Operations - Countywide Services,Countywide PD Service - Care,Nursing Independent Sector
Cambridgeshire County Council,20-Oct-16,21826649-14241168,-926.11,Making Space#1,Care Establishment,3 - Operations - Countywide Services,Countywide PD Service - Care,Nursing Independent Sector
Cambridgeshire County Council,20-Oct-16,21826652-14241171,-926.11,Making Space#1,Care Establishment,3 - Operations - Countywide Services,Countywide PD Service - Care,Nursing Independent Sector
Cambridgeshire County Council,20-Oct-16,21826656-14241175,-926.11,Making Space#1,Care Establishment,3 - Operations - Countywide Services,Countywide PD Service - Care,Nursing Independent Sector
Cambridgeshire County Council,20-Oct-16,21826657-14241176,-926.11,Making Space#1,Care Establishment,3 - Operations - Countywide Services,Countywide PD Service - Care,Nursing Independent Sector
Cambridgeshire County Council,20-Oct-16,21826658-14241177,-926.11,Making Space#1,Care Establishment,3 - Operations - Countywide Services,Countywide PD Service - Care,Nursing Independent Sector
Cambridgeshire County Council,20-Oct-16,21826661-14241180,-926.11,Making Space#1,Care Establishment,3 - Operations - Countywide Services,Countywide PD Service - Care,Nursing Independent Sector
Cambridgeshire County Council,20-Oct-16,21826664-14241183,-926.11,Making Space#1,Care Establishment,3 - Operations - Countywide Services,Countywide PD Service - Care,Nursing Independent Sector
Cambridgeshire County Council,20-Oct-16,21826666-14241185,-926.11,Making Space#1,Care Establishment,3 - Operations - Countywide Services,Countywide PD Service - Care,Nursing Independent Sector
Cambridgeshire County Council,20-Oct-16,21826667-14241186,-926.11,Making Space#1,Care Establishment,3 - Operations - Countywide Services,Countywide PD Service - Care,Nursing Independent Sector
Cambridgeshire County Council,20-Oct-16,21826669-14241188,-926.11,Making Space#1,Care Establishment,3 - Operations - Countywide Services,Countywide PD Service - Care,Nursing Independent Sector
Cambridgeshire County Council,20-Oct-16,21826671-14241190,-926.11,Making Space#1,Care Establishment,3 - Operations - Countywide Services,Countywide PD Service - Care,Nursing Independent Sector
Cambridgeshire County Council,20-Oct-16,21826674-14241193,-926.11,Making Space#1,Care Establishment,3 - Operations - Countywide Services,Countywide PD Service - Care,Nursing Independent Sector
Cambridgeshire County Council,20-Oct-16,21826677-14241196,-926.11,Making Space#1,Care Establishment,3 - Operations - Countywide Services,Countywide PD Service - Care,Nursing Independent Sector
Cambridgeshire County Council,20-Oct-16,21826678-14241197,-926.11,Making Space#1,Care Establishment,3 - Operations - Countywide Services,Countywide PD Service - Care,Nursing Independent Sector
Cambridgeshire County Council,20-Oct-16,21826682-14241201,-926.11,Making Space#1,Care Establishment,3 - Operations - Countywide Services,Countywide PD Service - Care,Nursing Independent Sector
Cambridgeshire County Council,20-Oct-16,21826684-14241203,-926.11,Making Space#1,Care Establishment,3 - Operations - Countywide Services,Countywide PD Service - Care,Nursing Independent Sector
Cambridgeshire County Council,20-Oct-16,21826685-14241204,-926.11,Making Space#1,Care Establishment,3 - Operations - Countywide Services,Countywide PD Service - Care,Nursing Independent Sector
Cambridgeshire County Council,20-Oct-16,21826686-14241205,-926.11,Making Space#1,Care Establishment,3 - Operations - Countywide Services,Countywide PD Service - Care,Nursing Independent Sector
Cambridgeshire County Council,20-Oct-16,21826688-14241207,-926.11,Making Space#1,Care Establishment,3 - Operations - Countywide Services,Countywide PD Service - Care,Nursing Independent Sector
Cambridgeshire County Council,20-Oct-16,21826689-14241208,-926.11,Making Space#1,Care Establishment,3 - Operations - Countywide Services,Countywide PD Service - Care,Nursing Independent Sector
Cambridgeshire County Council,20-Oct-16,21826691-14241210,-926.11,Making Space#1,Care Establishment,3 - Operations - Countywide Services,Countywide PD Service - Care,Nursing Independent Sector
Cambridgeshire County Council,20-Oct-16,21826694-14241213,-926.11,Making Space#1,Care Establishment,3 - Operations - Countywide Services,Countywide PD Service - Care,Nursing Independent Sector
Cambridgeshire County Council,20-Oct-16,21826696-14241215,-926.11,Making Space#1,Care Establishment,3 - Operations - Countywide Services,Countywide PD Service - Care,Nursing Independent Sector
Cambridgeshire County Council,20-Oct-16,21826697-14241216,-926.11,Making Space#1,Care Establishment,3 - Operations - Countywide Services,Countywide PD Service - Care,Nursing Independent Sector
Cambridgeshire County Council,20-Oct-16,21826698-14241217,-926.11,Making Space#1,Care Establishment,3 - Operations - Countywide Services,Countywide PD Service - Care,Nursing Independent Sector
Cambridgeshire County Council,20-Oct-16,21883266-14241287,-926.11,Making Space#1,Care Establishment,3 - Operations - Countywide Services,Countywide PD Service - Care,Nursing Independent Sector
Cambridgeshire County Council,20-Oct-16,21883268-14241289,-926.11,Making Space#1,Care Establishment,3 - Operations - Countywide Services,Countywide PD Service - Care,Nursing Independent Sector
Cambridgeshire County Council,20-Oct-16,21883271-14241292,-926.11,Making Space#1,Care Establishment,3 - Operations - Countywide Services,Countywide PD Service - Care,Nursing Independent Sector
Cambridgeshire County Council,20-Oct-16,21883272-14241293,-926.11,Making Space#1,Care Establishment,3 - Operations - Countywide Services,Countywide PD Service - Care,Nursing Independent Sector
Cambridgeshire County Council,20-Oct-16,21883274-14241295,-926.11,Making Space#1,Care Establishment,3 - Operations - Countywide Services,Countywide PD Service - Care,Nursing Independent Sector
Cambridgeshire County Council,20-Oct-16,21883275-14241296,-926.11,Making Space#1,Care Establishment,3 - Operations - Countywide Services,Countywide PD Service - Care,Nursing Independent Sector
Cambridgeshire County Council,20-Oct-16,21883276-14241297,-926.11,Making Space#1,Care Establishment,3 - Operations - Countywide Services,Countywide PD Service - Care,Nursing Independent Sector
Cambridgeshire County Council,20-Oct-16,21883278-14241299,-926.11,Making Space#1,Care Establishment,3 - Operations - Countywide Services,Countywide PD Service - Care,Nursing Independent Sector
Cambridgeshire County Council,20-Oct-16,21883280-14241301,-926.11,Making Space#1,Care Establishment,3 - Operations - Countywide Services,Countywide PD Service - Care,Nursing Independent Sector
Cambridgeshire County Council,20-Oct-16,21883281-14241302,-926.11,Making Space#1,Care Establishment,3 - Operations - Countywide Services,Countywide PD Service - Care,Nursing Independent Sector
Cambridgeshire County Council,20-Oct-16,21883283-14241304,-926.11,Making Space#1,Care Establishment,3 - Operations - Countywide Services,Countywide PD Service - Care,Nursing Independent Sector
Cambridgeshire County Council,20-Oct-16,21883284-14241305,-926.11,Making Space#1,Care Establishment,3 - Operations - Countywide Services,Countywide PD Service - Care,Nursing Independent Sector
Cambridgeshire County Council,20-Oct-16,21883291-14241312,-926.11,Making Space#1,Care Establishment,3 - Operations - Countywide Services,Countywide PD Service - Care,Nursing Independent Sector
Cambridgeshire County Council,20-Oct-16,21883293-14241314,-926.11,Making Space#1,Care Establishment,3 - Operations - Countywide Services,Countywide PD Service - Care,Nursing Independent Sector
Cambridgeshire County Council,20-Oct-16,21883295-14241316,-926.11,Making Space#1,Care Establishment,3 - Operations - Countywide Services,Countywide PD Service - Care,Nursing Independent Sector
Cambridgeshire County Council,20-Oct-16,21883297-14241318,-926.11,Making Space#1,Care Establishment,3 - Operations - Countywide Services,Countywide PD Service - Care,Nursing Independent Sector
Cambridgeshire County Council,20-Oct-16,21883300-14241321,-926.11,Making Space#1,Care Establishment,3 - Operations - Countywide Services,Countywide PD Service - Care,Nursing Independent Sector
Cambridgeshire County Council,20-Oct-16,21883305-14241326,-926.11,Making Space#1,Care Establishment,3 - Operations - Countywide Services,Countywide PD Service - Care,Nursing Independent Sector
Cambridgeshire County Council,20-Oct-16,21883307-14241328,-926.11,Making Space#1,Care Establishment,3 - Operations - Countywide Services,Countywide PD Service - Care,Nursing Independent Sector
Cambridgeshire County Council,20-Oct-16,21883308-14241329,-926.11,Making Space#1,Care Establishment,3 - Operations - Countywide Services,Countywide PD Service - Care,Nursing Independent Sector
Cambridgeshire County Council,20-Oct-16,21883309-14241330,-926.11,Making Space#1,Care Establishment,3 - Operations - Countywide Services,Countywide PD Service - Care,Nursing Independent Sector
Cambridgeshire County Council,20-Oct-16,21883310-14241331,-926.11,Making Space#1,Care Establishment,3 - Operations - Countywide Services,Countywide PD Service - Care,Nursing Independent Sector
Cambridgeshire County Council,20-Oct-16,21883311-14241332,-926.11,Making Space#1,Care Establishment,3 - Operations - Countywide Services,Countywide PD Service - Care,Nursing Independent Sector
Cambridgeshire County Council,20-Oct-16,21883312-14241333,-926.11,Making Space#1,Care Establishment,3 - Operations - Countywide Services,Countywide PD Service - Care,Nursing Independent Sector
Cambridgeshire County Council,20-Oct-16,21883313-14241334,-926.11,Making Space#1,Care Establishment,3 - Operations - Countywide Services,Countywide PD Service - Care,Nursing Independent Sector
Cambridgeshire County Council,20-Oct-16,21883315-14241336,-926.11,Making Space#1,Care Establishment,3 - Operations - Countywide Services,Countywide PD Service - Care,Nursing Independent Sector
Cambridgeshire County Council,20-Oct-16,21883316-14241337,-926.11,Making Space#1,Care Establishment,3 - Operations - Countywide Services,Countywide PD Service - Care,Nursing Independent Sector
Cambridgeshire County Council,20-Oct-16,21883319-14241340,-926.11,Making Space#1,Care Establishment,3 - Operations - Countywide Services,Countywide PD Service - Care,Nursing Independent Sector
Cambridgeshire County Council,20-Oct-16,21883320-14241341,-926.11,Making Space#1,Care Establishment,3 - Operations - Countywide Services,Countywide PD Service - Care,Nursing Independent Sector
Cambridgeshire County Council,20-Oct-16,21883325-14241346,-926.11,Making Space#1,Care Establishment,3 - Operations - Countywide Services,Countywide PD Service - Care,Nursing Independent Sector
Cambridgeshire County Council,20-Oct-16,21883327-14241348,-926.11,Making Space#1,Care Establishment,3 - Operations - Countywide Services,Countywide PD Service - Care,Nursing Independent Sector
Cambridgeshire County Council,20-Oct-16,21883967-14241218,-926.11,Making Space#1,Care Establishment,3 - Operations - Countywide Services,Countywide PD Service - Care,Nursing Independent Sector
Cambridgeshire County Council,27-Oct-16,21911936-14280446,-926.11,Making Space#1,Care Establishment,3 - Operations - Countywide Services,Countywide PD Service - Care,Nursing Independent Sector
Cambridgeshire County Council,27-Oct-16,21911940-14280450,-926.11,Making Space#1,Care Establishment,3 - Operations - Countywide Services,Countywide PD Service - Care,Nursing Independent Sector
Cambridgeshire County Council,27-Oct-16,21911942-14280452,-926.11,Making Space#1,Care Establishment,3 - Operations - Countywide Services,Countywide PD Service - Care,Nursing Independent Sector
Cambridgeshire County Council,27-Oct-16,21911943-14280453,-926.11,Making Space#1,Care Establishment,3 - Operations - Countywide Services,Countywide PD Service - Care,Nursing Independent Sector
Cambridgeshire County Council,27-Oct-16,21911949-14280459,-926.11,Making Space#1,Care Establishment,3 - Operations - Countywide Services,Countywide PD Service - Care,Nursing Independent Sector
Cambridgeshire County Council,27-Oct-16,21911951-14280461,-926.11,Making Space#1,Care Establishment,3 - Operations - Countywide Services,Countywide PD Service - Care,Nursing Independent Sector
Cambridgeshire County Council,27-Oct-16,21911955-14280465,-926.11,Making Space#1,Care Establishment,3 - Operations - Countywide Services,Countywide PD Service - Care,Nursing Independent Sector
Cambridgeshire County Council,27-Oct-16,21911956-14280466,-926.11,Making Space#1,Care Establishment,3 - Operations - Countywide Services,Countywide PD Service - Care,Nursing Independent Sector
Cambridgeshire County Council,27-Oct-16,21911958-14280468,-926.11,Making Space#1,Care Establishment,3 - Operations - Countywide Services,Countywide PD Service - Care,Nursing Independent Sector
Cambridgeshire County Council,27-Oct-16,21911959-14280469,-926.11,Making Space#1,Care Establishment,3 - Operations - Countywide Services,Countywide PD Service - Care,Nursing Independent Sector
Cambridgeshire County Council,27-Oct-16,21911971-14280481,-926.11,Making Space#1,Care Establishment,3 - Operations - Countywide Services,Countywide PD Service - Care,Nursing Independent Sector
Cambridgeshire County Council,27-Oct-16,21911973-14280483,-926.11,Making Space#1,Care Establishment,3 - Operations - Countywide Services,Countywide PD Service - Care,Nursing Independent Sector
Cambridgeshire County Council,27-Oct-16,21911975-14280485,-926.11,Making Space#1,Care Establishment,3 - Operations - Countywide Services,Countywide PD Service - Care,Nursing Independent Sector
Cambridgeshire County Council,27-Oct-16,21911977-14280487,-926.11,Making Space#1,Care Establishment,3 - Operations - Countywide Services,Countywide PD Service - Care,Nursing Independent Sector
Cambridgeshire County Council,27-Oct-16,21911980-14280489,-926.11,Making Space#1,Care Establishment,3 - Operations - Countywide Services,Countywide PD Service - Care,Nursing Independent Sector
Cambridgeshire County Council,27-Oct-16,21911981-14280490,-926.11,Making Space#1,Care Establishment,3 - Operations - Countywide Services,Countywide PD Service - Care,Nursing Independent Sector
Cambridgeshire County Council,27-Oct-16,21911983-14280492,-926.11,Making Space#1,Care Establishment,3 - Operations - Countywide Services,Countywide PD Service - Care,Nursing Independent Sector
Cambridgeshire County Council,27-Oct-16,21911986-14280495,-926.11,Making Space#1,Care Establishment,3 - Operations - Countywide Services,Countywide PD Service - Care,Nursing Independent Sector
Cambridgeshire County Council,27-Oct-16,21911987-14280496,-926.11,Making Space#1,Care Establishment,3 - Operations - Countywide Services,Countywide PD Service - Care,Nursing Independent Sector
Cambridgeshire County Council,27-Oct-16,21911988-14280497,-926.11,Making Space#1,Care Establishment,3 - Operations - Countywide Services,Countywide PD Service - Care,Nursing Independent Sector
Cambridgeshire County Council,27-Oct-16,21911990-14280499,-926.11,Making Space#1,Care Establishment,3 - Operations - Countywide Services,Countywide PD Service - Care,Nursing Independent Sector
Cambridgeshire County Council,27-Oct-16,21911991-14280500,-926.11,Making Space#1,Care Establishment,3 - Operations - Countywide Services,Countywide PD Service - Care,Nursing Independent Sector
Cambridgeshire County Council,27-Oct-16,21911993-14280502,-926.11,Making Space#1,Care Establishment,3 - Operations - Countywide Services,Countywide PD Service - Care,Nursing Independent Sector
Cambridgeshire County Council,27-Oct-16,21911994-14280503,-926.11,Making Space#1,Care Establishment,3 - Operations - Countywide Services,Countywide PD Service - Care,Nursing Independent Sector
Cambridgeshire County Council,27-Oct-16,21911996-14280505,-926.11,Making Space#1,Care Establishment,3 - Operations - Countywide Services,Countywide PD Service - Care,Nursing Independent Sector
Cambridgeshire County Council,27-Oct-16,21911998-14280507,-926.11,Making Space#1,Care Establishment,3 - Operations - Countywide Services,Countywide PD Service - Care,Nursing Independent Sector
Cambridgeshire County Council,27-Oct-16,21911999-14280508,-926.11,Making Space#1,Care Establishment,3 - Operations - Countywide Services,Countywide PD Service - Care,Nursing Independent Sector
Cambridgeshire County Council,27-Oct-16,21912001-14280510,-926.11,Making Space#1,Care Establishment,3 - Operations - Countywide Services,Countywide PD Service - Care,Nursing Independent Sector
Cambridgeshire County Council,27-Oct-16,21912002-14280511,-926.11,Making Space#1,Care Establishment,3 - Operations - Countywide Services,Countywide PD Service - Care,Nursing Independent Sector
Cambridgeshire County Council,27-Oct-16,21912003-14280512,-926.11,Making Space#1,Care Establishment,3 - Operations - Countywide Services,Countywide PD Service - Care,Nursing Independent Sector
Cambridgeshire County Council,27-Oct-16,21912005-14280514,-926.11,Making Space#1,Care Establishment,3 - Operations - Countywide Services,Countywide PD Service - Care,Nursing Independent Sector
Cambridgeshire County Council,27-Oct-16,21912006-14280515,-926.11,Making Space#1,Care Establishment,3 - Operations - Countywide Services,Countywide PD Service - Care,Nursing Independent Sector
Cambridgeshire County Council,20-Oct-16,21885837-14244429,-925.65,Hovenden House,Care Establishment,3 - Operations - Countywide Services,Countywide PD Service - Care,Residential Independent Sector
Cambridgeshire County Council,20-Oct-16,21885843-14244435,-925.65,Hovenden House,Care Establishment,3 - Operations - Countywide Services,Countywide PD Service - Care,Residential Independent Sector
Cambridgeshire County Council,13-Oct-16,21763082-14185688,-921.76,Atlas Home Support,Care Establishment,2 - Operations - Learning Disability,LDP City Locality - Care,Supported Living
Cambridgeshire County Council,13-Oct-16,21763083-14185689,-921.76,Atlas Home Support,Care Establishment,2 - Operations - Learning Disability,LDP City Locality - Care,Supported Living
Cambridgeshire County Council,13-Oct-16,21763084-14185690,-921.76,Atlas Home Support,Care Establishment,2 - Operations - Learning Disability,LDP City Locality - Care,Supported Living
Cambridgeshire County Council,17-Oct-16,21696303-14218546,-903.38,Cozy Travel Ltd,Trade Supplier,S&C,H to S Transport - Secondary,Home to School - Contract
Cambridgeshire County Council,20-Oct-16,21886581-14243025,-882.58,The Manor Cheshire Home,Care Establishment,3 - Operations - Countywide Services,Countywide PD Service - Care,Residential Independent Sector
Cambridgeshire County Council,20-Oct-16,21886584-14243028,-882.58,The Manor Cheshire Home,Care Establishment,3 - Operations - Countywide Services,Countywide PD Service - Care,Residential Independent Sector
Cambridgeshire County Council,27-Oct-16,21880305-14278055,-861.13,Vera James House,Care Establishment,2 - Commissioning - Older people Pool,East Cambs - O P Team,Residential Independent Sector
Cambridgeshire County Council,27-Oct-16,21880310-14278056,-861.13,Vera James House,Care Establishment,2 - Commissioning - Older people Pool,East Cambs - O P Team,Residential Independent Sector
Cambridgeshire County Council,27-Oct-16,21880319-14278057,-861.13,Vera James House,Care Establishment,2 - Commissioning - Older people Pool,East Cambs - O P Team,Residential Independent Sector
Cambridgeshire County Council,27-Oct-16,21880361-14278058,-861.13,Vera James House,Care Establishment,2 - Commissioning - Older people Pool,East Cambs - O P Team,Residential Independent Sector
Cambridgeshire County Council,27-Oct-16,21882333-14278059,-861.13,Vera James House,Care Establishment,2 - Commissioning - Older people Pool,East Cambs - O P Team,Residential Independent Sector
Cambridgeshire County Council,27-Oct-16,21882336-14278060,-861.13,Vera James House,Care Establishment,2 - Commissioning - Older people Pool,East Cambs - O P Team,Residential Independent Sector
Cambridgeshire County Council,27-Oct-16,21882352-14278062,-861.13,Vera James House,Care Establishment,2 - Commissioning - Older people Pool,East Cambs - O P Team,Residential Independent Sector
Cambridgeshire County Council,13-Oct-16,21763647-14178504,-856.8,Meadows Homecare Services,Care Establishment,2 - Commissioning - Older people Pool,Hunts O P  Team,Day and Domicillary Care Independent Sector
Cambridgeshire County Council,13-Oct-16,21763648-14178505,-856.8,Meadows Homecare Services,Care Establishment,2 - Commissioning - Older people Pool,Hunts O P  Team,Day and Domicillary Care Independent Sector
Cambridgeshire County Council,13-Oct-16,21763649-14178506,-856.8,Meadows Homecare Services,Care Establishment,2 - Commissioning - Older people Pool,Hunts O P  Team,Day and Domicillary Care Independent Sector
Cambridgeshire County Council,27-Oct-16,21915828-14276776,-852.76,Redacted Personal Data,Individual,2 - Commissioning - Older people Pool,Hunts O P  Team,SDS - Care and support Services
Cambridgeshire County Council,27-Oct-16,21915830-14276778,-852.76,Redacted Personal Data,Individual,2 - Commissioning - Older people Pool,Hunts O P  Team,SDS - Care and support Services
Cambridgeshire County Council,27-Oct-16,21915835-14276783,-852.76,Redacted Personal Data,Individual,2 - Commissioning - Older people Pool,Hunts O P  Team,SDS - Care and support Services
Cambridgeshire County Council,27-Oct-16,21915836-14276784,-852.76,Redacted Personal Data,Individual,2 - Commissioning - Older people Pool,Hunts O P  Team,SDS - Care and support Services
Cambridgeshire County Council,20-Oct-16,21764101-14241254,-793.81,Making Space#1,Care Establishment,3 - Operations - Countywide Services,Countywide PD Service - Care,Nursing Independent Sector
Cambridgeshire County Council,20-Oct-16,21826655-14241174,-793.81,Making Space#1,Care Establishment,3 - Operations - Countywide Services,Countywide PD Service - Care,Nursing Independent Sector
Cambridgeshire County Council,20-Oct-16,21883322-14241343,-793.81,Making Space#1,Care Establishment,3 - Operations - Countywide Services,Countywide PD Service - Care,Nursing Independent Sector
Cambridgeshire County Council,27-Oct-16,21911972-14280482,-793.81,Making Space#1,Care Establishment,3 - Operations - Countywide Services,Countywide PD Service - Care,Nursing Independent Sector
Cambridgeshire County Council,19-Oct-16,21696631-14230621,-790.93,Fostering Solutions Ltd,Care Establishment,S&C,Placements - Social Care,Agency Placements - In Cambs
Cambridgeshire County Council,11-Oct-16,21792141-14166940,-778.36,Compass Fostering,Care Establishment,CSC,FCP allowances,Boarding Out Allowances
Cambridgeshire County Council,10-Oct-16,21740946-14162500,-768,Chs Group,Care Establishment,S&C,Placements - Social Care,Childrens Lodgings
Cambridgeshire County Council,27-Oct-16,21915531-14279279,-760,Barchester Healthcare Homes Ltd,Care Establishment,2 - Commissioning - Older people Pool,Older People - City & South,Nursing Independent Sector
Cambridgeshire County Council,27-Oct-16,21915532-14279280,-760,Barchester Healthcare Homes Ltd,Care Establishment,2 - Commissioning - Older people Pool,Older People - City & South,Nursing Independent Sector
Cambridgeshire County Council,27-Oct-16,21915533-14279281,-760,Barchester Healthcare Homes Ltd,Care Establishment,2 - Commissioning - Older people Pool,Older People - City & South,Nursing Independent Sector
Cambridgeshire County Council,27-Oct-16,21915534-14279282,-760,Barchester Healthcare Homes Ltd,Care Establishment,2 - Commissioning - Older people Pool,Older People - City & South,Nursing Independent Sector
Cambridgeshire County Council,13-Oct-16,21827676-14201532,-757.42,Guyatt House Care Ltd,Care Establishment,3 - Operations - Countywide Services,LDP Young Adults - Care,Respite Independent Sector
Cambridgeshire County Council,13-Oct-16,21827677-14201533,-757.42,Guyatt House Care Ltd,Care Establishment,3 - Operations - Countywide Services,LDP Young Adults - Care,Respite Independent Sector
Cambridgeshire County Council,13-Oct-16,21827681-14201534,-757.42,Guyatt House Care Ltd,Care Establishment,3 - Operations - Countywide Services,LDP Young Adults - Care,Respite Independent Sector
Cambridgeshire County Council,13-Oct-16,21827682-14201535,-757.42,Guyatt House Care Ltd,Care Establishment,3 - Operations - Countywide Services,LDP Young Adults - Care,Respite Independent Sector
Cambridgeshire County Council,13-Oct-16,21827683-14201536,-757.42,Guyatt House Care Ltd,Care Establishment,3 - Operations - Countywide Services,LDP Young Adults - Care,Respite Independent Sector
Cambridgeshire County Council,13-Oct-16,21827699-14201558,-757.42,Guyatt House Care Ltd,Care Establishment,3 - Operations - Countywide Services,LDP Young Adults - Care,Respite Independent Sector
Cambridgeshire County Council,13-Oct-16,21827705-14201563,-757.42,Guyatt House Care Ltd,Care Establishment,3 - Operations - Countywide Services,LDP Young Adults - Care,Respite Independent Sector
Cambridgeshire County Council,13-Oct-16,21827719-14201567,-757.42,Guyatt House Care Ltd,Care Establishment,3 - Operations - Countywide Services,LDP Young Adults - Care,Respite Independent Sector
Cambridgeshire County Council,13-Oct-16,21827720-14201568,-757.42,Guyatt House Care Ltd,Care Establishment,3 - Operations - Countywide Services,LDP Young Adults - Care,Respite Independent Sector
Cambridgeshire County Council,13-Oct-16,21827733-14201542,-757.42,Guyatt House Care Ltd,Care Establishment,3 - Operations - Countywide Services,LDP Young Adults - Care,Respite Independent Sector
Cambridgeshire County Council,13-Oct-16,21827734-14201543,-757.42,Guyatt House Care Ltd,Care Establishment,3 - Operations - Countywide Services,LDP Young Adults - Care,Respite Independent Sector
Cambridgeshire County Council,13-Oct-16,21827744-14201546,-757.42,Guyatt House Care Ltd,Care Establishment,3 - Operations - Countywide Services,LDP Young Adults - Care,Respite Independent Sector
Cambridgeshire County Council,13-Oct-16,21827748-14201547,-757.42,Guyatt House Care Ltd,Care Establishment,3 - Operations - Countywide Services,LDP Young Adults - Care,Respite Independent Sector
Cambridgeshire County Council,13-Oct-16,21827765-14201553,-757.42,Guyatt House Care Ltd,Care Establishment,3 - Operations - Countywide Services,LDP Young Adults - Care,Respite Independent Sector
Cambridgeshire County Council,13-Oct-16,21827766-14201554,-757.42,Guyatt House Care Ltd,Care Establishment,3 - Operations - Countywide Services,LDP Young Adults - Care,Respite Independent Sector
Cambridgeshire County Council,13-Oct-16,21828849-14201524,-757.42,Guyatt House Care Ltd,Care Establishment,3 - Operations - Countywide Services,LDP Young Adults - Care,Respite Independent Sector
Cambridgeshire County Council,13-Oct-16,21828854-14201527,-757.42,Guyatt House Care Ltd,Care Establishment,3 - Operations - Countywide Services,LDP Young Adults - Care,Respite Independent Sector
Cambridgeshire County Council,13-Oct-16,21828855-14201528,-757.42,Guyatt House Care Ltd,Care Establishment,3 - Operations - Countywide Services,LDP Young Adults - Care,Respite Independent Sector
Cambridgeshire County Council,06-Oct-16,21719023-14149823,-756.83,St George'S Court,Care Establishment,2 - Commissioning - Older people Pool,Older People - City & South,Nursing Independent Sector
Cambridgeshire County Council,06-Oct-16,21719025-14149825,-756.83,St George'S Court,Care Establishment,2 - Commissioning - Older people Pool,Older People - City & South,Nursing Independent Sector
Cambridgeshire County Council,06-Oct-16,21720012-14149809,-756.83,St George'S Court,Care Establishment,2 - Commissioning - Older people Pool,Older People - City & South,Nursing Independent Sector
Cambridgeshire County Council,06-Oct-16,21720016-14149813,-756.83,St George'S Court,Care Establishment,2 - Commissioning - Older people Pool,Older People - City & South,Nursing Independent Sector
Cambridgeshire County Council,06-Oct-16,21720021-14149818,-756.83,St George'S Court,Care Establishment,2 - Commissioning - Older people Pool,Older People - City & South,Nursing Independent Sector
Cambridgeshire County Council,06-Oct-16,21720023-14149820,-756.83,St George'S Court,Care Establishment,2 - Commissioning - Older people Pool,Older People - City & South,Nursing Independent Sector
Cambridgeshire County Council,06-Oct-16,21720024-14149821,-756.83,St George'S Court,Care Establishment,2 - Commissioning - Older people Pool,Older People - City & South,Nursing Independent Sector
Cambridgeshire County Council,06-Oct-16,21720025-14149822,-756.83,St George'S Court,Care Establishment,2 - Commissioning - Older people Pool,Older People - City & South,Nursing Independent Sector
Cambridgeshire County Council,06-Oct-16,21763026-14150476,-756.83,Etheldred House,Care Establishment,2 - Commissioning - Older people Pool,Older People - City & South,Nursing Independent Sector
Cambridgeshire County Council,06-Oct-16,21763027-14150477,-756.83,Etheldred House,Care Establishment,2 - Commissioning - Older people Pool,Older People - City & South,Nursing Independent Sector
Cambridgeshire County Council,06-Oct-16,21763028-14150478,-756.83,Etheldred House,Care Establishment,2 - Commissioning - Older people Pool,Older People - City & South,Nursing Independent Sector
Cambridgeshire County Council,06-Oct-16,21763029-14150479,-756.83,Etheldred House,Care Establishment,2 - Commissioning - Older people Pool,Older People - City & South,Nursing Independent Sector
Cambridgeshire County Council,06-Oct-16,21763030-14150480,-756.83,Etheldred House,Care Establishment,2 - Commissioning - Older people Pool,Older People - City & South,Nursing Independent Sector
Cambridgeshire County Council,06-Oct-16,21763031-14150481,-756.83,Etheldred House,Care Establishment,2 - Commissioning - Older people Pool,Older People - City & South,Nursing Independent Sector
Cambridgeshire County Council,06-Oct-16,21764364-14150506,-756.83,Etheldred House,Care Establishment,2 - Commissioning - Older people Pool,Older People - City & South,Nursing Independent Sector
Cambridgeshire County Council,06-Oct-16,21764366-14150507,-756.83,Etheldred House,Care Establishment,2 - Commissioning - Older people Pool,Older People - City & South,Nursing Independent Sector
Cambridgeshire County Council,06-Oct-16,21764367-14150508,-756.83,Etheldred House,Care Establishment,2 - Commissioning - Older people Pool,Older People - City & South,Nursing Independent Sector
Cambridgeshire County Council,06-Oct-16,21764369-14150510,-756.83,Etheldred House,Care Establishment,2 - Commissioning - Older people Pool,Older People - City & South,Nursing Independent Sector
Cambridgeshire County Council,06-Oct-16,21764370-14150503,-756.83,Etheldred House,Care Establishment,2 - Commissioning - Older people Pool,Older People - City & South,Nursing Independent Sector
Cambridgeshire County Council,06-Oct-16,21764373-14150504,-756.83,Etheldred House,Care Establishment,2 - Commissioning - Older people Pool,Older People - City & South,Nursing Independent Sector
Cambridgeshire County Council,06-Oct-16,21765988-14150327,-756.83,Buchan Healthcare Ltd,Care Establishment,2 - Commissioning - Older people Pool,Older People - City & South,Nursing Independent Sector
Cambridgeshire County Council,20-Oct-16,21879387-14244737,-756.83,Buchan Healthcare Ltd,Care Establishment,2 - Commissioning - Older people Pool,Older People - City & South,Nursing Independent Sector
Cambridgeshire County Council,20-Oct-16,21879388-14244738,-756.83,Buchan Healthcare Ltd,Care Establishment,2 - Commissioning - Older people Pool,Older People - City & South,Nursing Independent Sector
Cambridgeshire County Council,20-Oct-16,21879389-14244739,-756.83,Buchan Healthcare Ltd,Care Establishment,2 - Commissioning - Older people Pool,Older People - City & South,Nursing Independent Sector
Cambridgeshire County Council,20-Oct-16,21879391-14244741,-756.83,Buchan Healthcare Ltd,Care Establishment,2 - Commissioning - Older people Pool,Older People - City & South,Nursing Independent Sector
Cambridgeshire County Council,20-Oct-16,21879393-14244743,-756.83,Buchan Healthcare Ltd,Care Establishment,2 - Commissioning - Older people Pool,Older People - City & South,Nursing Independent Sector
Cambridgeshire County Council,20-Oct-16,21879397-14244747,-756.83,Buchan Healthcare Ltd,Care Establishment,2 - Commissioning - Older people Pool,Older People - City & South,Nursing Independent Sector
Cambridgeshire County Council,20-Oct-16,21879399-14244749,-756.83,Buchan Healthcare Ltd,Care Establishment,2 - Commissioning - Older people Pool,Older People - City & South,Nursing Independent Sector
Cambridgeshire County Council,20-Oct-16,21879402-14244752,-756.83,Buchan Healthcare Ltd,Care Establishment,2 - Commissioning - Older people Pool,Older People - City & South,Nursing Independent Sector
Cambridgeshire County Council,20-Oct-16,21879403-14244753,-756.83,Buchan Healthcare Ltd,Care Establishment,2 - Commissioning - Older people Pool,Older People - City & South,Nursing Independent Sector
Cambridgeshire County Council,20-Oct-16,21879405-14244755,-756.83,Buchan Healthcare Ltd,Care Establishment,2 - Commissioning - Older people Pool,Older People - City & South,Nursing Independent Sector
Cambridgeshire County Council,20-Oct-16,21880076-14244671,-756.83,Buchan Healthcare Ltd,Care Establishment,2 - Commissioning - Older people Pool,Older People - City & South,Nursing Independent Sector
Cambridgeshire County Council,20-Oct-16,21880080-14244675,-756.83,Buchan Healthcare Ltd,Care Establishment,2 - Commissioning - Older people Pool,Older People - City & South,Nursing Independent Sector
Cambridgeshire County Council,20-Oct-16,21880082-14244677,-756.83,Buchan Healthcare Ltd,Care Establishment,2 - Commissioning - Older people Pool,Older People - City & South,Nursing Independent Sector
Cambridgeshire County Council,20-Oct-16,21880083-14244678,-756.83,Buchan Healthcare Ltd,Care Establishment,2 - Commissioning - Older people Pool,Older People - City & South,Nursing Independent Sector
Cambridgeshire County Council,20-Oct-16,21880086-14244681,-756.83,Buchan Healthcare Ltd,Care Establishment,2 - Commissioning - Older people Pool,Older People - City & South,Nursing Independent Sector
Cambridgeshire County Council,20-Oct-16,21880087-14244682,-756.83,Buchan Healthcare Ltd,Care Establishment,2 - Commissioning - Older people Pool,Older People - City & South,Nursing Independent Sector
Cambridgeshire County Council,20-Oct-16,21880088-14244683,-756.83,Buchan Healthcare Ltd,Care Establishment,2 - Commissioning - Older people Pool,Older People - City & South,Nursing Independent Sector
Cambridgeshire County Council,20-Oct-16,21880091-14244686,-756.83,Buchan Healthcare Ltd,Care Establishment,2 - Commissioning - Older people Pool,Older People - City & South,Nursing Independent Sector
Cambridgeshire County Council,20-Oct-16,21880095-14244690,-756.83,Buchan Healthcare Ltd,Care Establishment,2 - Commissioning - Older people Pool,Older People - City & South,Nursing Independent Sector
Cambridgeshire County Council,20-Oct-16,21880096-14244691,-756.83,Buchan Healthcare Ltd,Care Establishment,2 - Commissioning - Older people Pool,Older People - City & South,Nursing Independent Sector
Cambridgeshire County Council,20-Oct-16,21882937-14244816,-756.83,Buchan Healthcare Ltd,Care Establishment,2 - Commissioning - Older people Pool,Older People Mental Health City & South,Nursing Independent Sector
Cambridgeshire County Council,20-Oct-16,21882939-14244818,-756.83,Buchan Healthcare Ltd,Care Establishment,2 - Commissioning - Older people Pool,Older People Mental Health City & South,Nursing Independent Sector
Cambridgeshire County Council,20-Oct-16,21882941-14244820,-756.83,Buchan Healthcare Ltd,Care Establishment,2 - Commissioning - Older people Pool,Older People Mental Health City & South,Nursing Independent Sector
Cambridgeshire County Council,20-Oct-16,21882946-14244825,-756.83,Buchan Healthcare Ltd,Care Establishment,2 - Commissioning - Older people Pool,Older People Mental Health City & South,Nursing Independent Sector
Cambridgeshire County Council,20-Oct-16,21882948-14244827,-756.83,Buchan Healthcare Ltd,Care Establishment,2 - Commissioning - Older people Pool,Older People Mental Health City & South,Nursing Independent Sector
Cambridgeshire County Council,20-Oct-16,21882950-14244829,-756.83,Buchan Healthcare Ltd,Care Establishment,2 - Commissioning - Older people Pool,Older People Mental Health City & South,Nursing Independent Sector
Cambridgeshire County Council,20-Oct-16,21882952-14244831,-756.83,Buchan Healthcare Ltd,Care Establishment,2 - Commissioning - Older people Pool,Older People Mental Health City & South,Nursing Independent Sector
Cambridgeshire County Council,20-Oct-16,21882954-14244833,-756.83,Buchan Healthcare Ltd,Care Establishment,2 - Commissioning - Older people Pool,Older People Mental Health City & South,Nursing Independent Sector
Cambridgeshire County Council,20-Oct-16,21882955-14244834,-756.83,Buchan Healthcare Ltd,Care Establishment,2 - Commissioning - Older people Pool,Older People Mental Health City & South,Nursing Independent Sector
Cambridgeshire County Council,20-Oct-16,21882957-14244836,-756.83,Buchan Healthcare Ltd,Care Establishment,2 - Commissioning - Older people Pool,Older People Mental Health City & South,Nursing Independent Sector
Cambridgeshire County Council,20-Oct-16,21883780-14244792,-756.83,Buchan Healthcare Ltd,Care Establishment,2 - Commissioning - Older people Pool,Older People - City & South,Nursing Independent Sector
Cambridgeshire County Council,20-Oct-16,21883781-14244793,-756.83,Buchan Healthcare Ltd,Care Establishment,2 - Commissioning - Older people Pool,Older People - City & South,Nursing Independent Sector
Cambridgeshire County Council,20-Oct-16,21883785-14244797,-756.83,Buchan Healthcare Ltd,Care Establishment,2 - Commissioning - Older people Pool,Older People - City & South,Nursing Independent Sector
Cambridgeshire County Council,20-Oct-16,21883789-14244801,-756.83,Buchan Healthcare Ltd,Care Establishment,2 - Commissioning - Older people Pool,Older People - City & South,Nursing Independent Sector
Cambridgeshire County Council,20-Oct-16,21883792-14244804,-756.83,Buchan Healthcare Ltd,Care Establishment,2 - Commissioning - Older people Pool,Older People - City & South,Nursing Independent Sector
Cambridgeshire County Council,20-Oct-16,21884668-14244763,-756.83,Buchan Healthcare Ltd,Care Establishment,2 - Commissioning - Older people Pool,Older People - City & South,Nursing Independent Sector
Cambridgeshire County Council,20-Oct-16,21884981-14245055,-756.83,Etheldred House,Care Establishment,2 - Commissioning - Older people Pool,East Cambs - O P Team,Nursing Independent Sector
Cambridgeshire County Council,20-Oct-16,21884984-14245058,-756.83,Etheldred House,Care Establishment,2 - Commissioning - Older people Pool,East Cambs - O P Team,Nursing Independent Sector
Cambridgeshire County Council,20-Oct-16,21884985-14245059,-756.83,Etheldred House,Care Establishment,2 - Commissioning - Older people Pool,East Cambs - O P Team,Nursing Independent Sector
Cambridgeshire County Council,20-Oct-16,21884988-14245062,-756.83,Etheldred House,Care Establishment,2 - Commissioning - Older people Pool,East Cambs - O P Team,Nursing Independent Sector
Cambridgeshire County Council,20-Oct-16,21884989-14245063,-756.83,Etheldred House,Care Establishment,2 - Commissioning - Older people Pool,East Cambs - O P Team,Nursing Independent Sector
Cambridgeshire County Council,20-Oct-16,21884990-14245064,-756.83,Etheldred House,Care Establishment,2 - Commissioning - Older people Pool,East Cambs - O P Team,Nursing Independent Sector
Cambridgeshire County Council,20-Oct-16,21884992-14245066,-756.83,Etheldred House,Care Establishment,2 - Commissioning - Older people Pool,East Cambs - O P Team,Nursing Independent Sector
Cambridgeshire County Council,20-Oct-16,21884996-14245070,-756.83,Etheldred House,Care Establishment,2 - Commissioning - Older people Pool,East Cambs - O P Team,Nursing Independent Sector
Cambridgeshire County Council,20-Oct-16,21884997-14245071,-756.83,Etheldred House,Care Establishment,2 - Commissioning - Older people Pool,East Cambs - O P Team,Nursing Independent Sector
Cambridgeshire County Council,20-Oct-16,21885000-14245074,-756.83,Etheldred House,Care Establishment,2 - Commissioning - Older people Pool,East Cambs - O P Team,Nursing Independent Sector
Cambridgeshire County Council,20-Oct-16,21885298-14244719,-756.83,Buchan Healthcare Ltd,Care Establishment,2 - Commissioning - Older people Pool,Older People - City & South,Nursing Independent Sector
Cambridgeshire County Council,20-Oct-16,21885301-14244722,-756.83,Buchan Healthcare Ltd,Care Establishment,2 - Commissioning - Older people Pool,Older People - City & South,Nursing Independent Sector
Cambridgeshire County Council,20-Oct-16,21885302-14244723,-756.83,Buchan Healthcare Ltd,Care Establishment,2 - Commissioning - Older people Pool,Older People - City & South,Nursing Independent Sector
Cambridgeshire County Council,20-Oct-16,21885303-14244724,-756.83,Buchan Healthcare Ltd,Care Establishment,2 - Commissioning - Older people Pool,Older People - City & South,Nursing Independent Sector
Cambridgeshire County Council,20-Oct-16,21885306-14244727,-756.83,Buchan Healthcare Ltd,Care Establishment,2 - Commissioning - Older people Pool,Older People - City & South,Nursing Independent Sector
Cambridgeshire County Council,20-Oct-16,21885310-14244731,-756.83,Buchan Healthcare Ltd,Care Establishment,2 - Commissioning - Older people Pool,Older People - City & South,Nursing Independent Sector
Cambridgeshire County Council,20-Oct-16,21885639-14244693,-756.83,Buchan Healthcare Ltd,Care Establishment,2 - Commissioning - Older people Pool,Older People - City & South,Nursing Independent Sector
Cambridgeshire County Council,20-Oct-16,21885643-14244697,-756.83,Buchan Healthcare Ltd,Care Establishment,2 - Commissioning - Older people Pool,Older People - City & South,Nursing Independent Sector
Cambridgeshire County Council,20-Oct-16,21885644-14244698,-756.83,Buchan Healthcare Ltd,Care Establishment,2 - Commissioning - Older people Pool,Older People - City & South,Nursing Independent Sector
Cambridgeshire County Council,20-Oct-16,21885648-14244702,-756.83,Buchan Healthcare Ltd,Care Establishment,2 - Commissioning - Older people Pool,Older People - City & South,Nursing Independent Sector
Cambridgeshire County Council,20-Oct-16,21885815-14244647,-756.83,Buchan Healthcare Ltd,Care Establishment,2 - Commissioning - Older people Pool,Older People - City & South,Nursing Independent Sector
Cambridgeshire County Council,20-Oct-16,21885819-14244651,-756.83,Buchan Healthcare Ltd,Care Establishment,2 - Commissioning - Older people Pool,Older People - City & South,Nursing Independent Sector
Cambridgeshire County Council,20-Oct-16,21885820-14244652,-756.83,Buchan Healthcare Ltd,Care Establishment,2 - Commissioning - Older people Pool,Older People - City & South,Nursing Independent Sector
Cambridgeshire County Council,20-Oct-16,21885823-14244655,-756.83,Buchan Healthcare Ltd,Care Establishment,2 - Commissioning - Older people Pool,Older People - City & South,Nursing Independent Sector
Cambridgeshire County Council,20-Oct-16,21885825-14244657,-756.83,Buchan Healthcare Ltd,Care Establishment,2 - Commissioning - Older people Pool,Older People - City & South,Nursing Independent Sector
Cambridgeshire County Council,20-Oct-16,21885827-14244659,-756.83,Buchan Healthcare Ltd,Care Establishment,2 - Commissioning - Older people Pool,Older People - City & South,Nursing Independent Sector
Cambridgeshire County Council,20-Oct-16,21885832-14244664,-756.83,Buchan Healthcare Ltd,Care Establishment,2 - Commissioning - Older people Pool,Older People - City & South,Nursing Independent Sector
Cambridgeshire County Council,20-Oct-16,21885834-14244666,-756.83,Buchan Healthcare Ltd,Care Establishment,2 - Commissioning - Older people Pool,Older People - City & South,Nursing Independent Sector
Cambridgeshire County Council,20-Oct-16,21885835-14244667,-756.83,Buchan Healthcare Ltd,Care Establishment,2 - Commissioning - Older people Pool,Older People - City & South,Nursing Independent Sector
Cambridgeshire County Council,20-Oct-16,21885836-14244668,-756.83,Buchan Healthcare Ltd,Care Establishment,2 - Commissioning - Older people Pool,Older People - City & South,Nursing Independent Sector
Cambridgeshire County Council,20-Oct-16,21888314-14242038,-756.83,St George'S Court,Care Establishment,2 - Commissioning - Older people Pool,Older People - City & South,Nursing Independent Sector
Cambridgeshire County Council,20-Oct-16,21877793-14243668,-750,Redacted Personal Data,Individual,3 - Operations - Countywide Services,Countywide PD Service - Care,SDS - Care and support Services
Cambridgeshire County Council,20-Oct-16,21877797-14243670,-750,Redacted Personal Data,Individual,3 - Operations - Countywide Services,Countywide PD Service - Care,SDS - Care and support Services
Cambridgeshire County Council,27-Oct-16,21915833-14276781,-730.94,Redacted Personal Data,Individual,2 - Commissioning - Older people Pool,Hunts O P  Team,SDS - Care and support Services
Cambridgeshire County Council,20-Oct-16,21882269-14245304,-725.25,Hunters Healthcare (Hunters Down),Care Establishment,2 - Commissioning - Older people Pool,Older People Mental Health Fenland,Nursing Independent Sector
Cambridgeshire County Council,20-Oct-16,21882272-14245306,-725.25,Hunters Healthcare (Hunters Down),Care Establishment,2 - Commissioning - Older people Pool,Older People Mental Health Fenland,Nursing Independent Sector
Cambridgeshire County Council,20-Oct-16,21882273-14245307,-725.25,Hunters Healthcare (Hunters Down),Care Establishment,2 - Commissioning - Older people Pool,Older People Mental Health Fenland,Nursing Independent Sector
Cambridgeshire County Council,20-Oct-16,21882274-14245308,-725.25,Hunters Healthcare (Hunters Down),Care Establishment,2 - Commissioning - Older people Pool,Older People Mental Health Fenland,Nursing Independent Sector
Cambridgeshire County Council,20-Oct-16,21882279-14245309,-725.25,Hunters Healthcare (Hunters Down),Care Establishment,2 - Commissioning - Older people Pool,Older People Mental Health Fenland,Nursing Independent Sector
Cambridgeshire County Council,20-Oct-16,21882282-14245310,-725.25,Hunters Healthcare (Hunters Down),Care Establishment,2 - Commissioning - Older people Pool,Older People Mental Health Fenland,Nursing Independent Sector
Cambridgeshire County Council,20-Oct-16,21882283-14245311,-725.25,Hunters Healthcare (Hunters Down),Care Establishment,2 - Commissioning - Older people Pool,Older People Mental Health Fenland,Nursing Independent Sector
Cambridgeshire County Council,20-Oct-16,21882285-14245312,-725.25,Hunters Healthcare (Hunters Down),Care Establishment,2 - Commissioning - Older people Pool,Older People Mental Health Fenland,Nursing Independent Sector
Cambridgeshire County Council,20-Oct-16,21882293-14245313,-725.25,Hunters Healthcare (Hunters Down),Care Establishment,2 - Commissioning - Older people Pool,Older People Mental Health Fenland,Nursing Independent Sector
Cambridgeshire County Council,20-Oct-16,21882297-14245314,-725.25,Hunters Healthcare (Hunters Down),Care Establishment,2 - Commissioning - Older people Pool,Older People Mental Health Fenland,Nursing Independent Sector
Cambridgeshire County Council,06-Oct-16,21465507-14149999,-712.58,St George'S Court,Care Establishment,2 - Commissioning - Older people Pool,Older People - City & South,Nursing Independent Sector
Cambridgeshire County Council,06-Oct-16,21524194-14149944,-712.58,St George'S Court,Care Establishment,2 - Commissioning - Older people Pool,Older People - City & South,Nursing Independent Sector
Cambridgeshire County Council,06-Oct-16,21524195-14149945,-712.58,St George'S Court,Care Establishment,2 - Commissioning - Older people Pool,Older People - City & South,Nursing Independent Sector
Cambridgeshire County Council,06-Oct-16,21524196-14149946,-712.58,St George'S Court,Care Establishment,2 - Commissioning - Older people Pool,Older People - City & South,Nursing Independent Sector
Cambridgeshire County Council,06-Oct-16,21524697-14149949,-712.58,St George'S Court,Care Establishment,2 - Commissioning - Older people Pool,Older People - City & South,Nursing Independent Sector
Cambridgeshire County Council,06-Oct-16,21524698-14149950,-712.58,St George'S Court,Care Establishment,2 - Commissioning - Older people Pool,Older People - City & South,Nursing Independent Sector
Cambridgeshire County Council,06-Oct-16,21524699-14149951,-712.58,St George'S Court,Care Establishment,2 - Commissioning - Older people Pool,Older People - City & South,Nursing Independent Sector
Cambridgeshire County Council,06-Oct-16,21524700-14149952,-712.58,St George'S Court,Care Establishment,2 - Commissioning - Older people Pool,Older People - City & South,Nursing Independent Sector
Cambridgeshire County Council,06-Oct-16,21524701-14149953,-712.58,St George'S Court,Care Establishment,2 - Commissioning - Older people Pool,Older People - City & South,Nursing Independent Sector
Cambridgeshire County Council,06-Oct-16,21524702-14149980,-712.58,St George'S Court,Care Establishment,2 - Commissioning - Older people Pool,Older People - City & South,Nursing Independent Sector
Cambridgeshire County Council,06-Oct-16,21524703-14149981,-712.58,St George'S Court,Care Establishment,2 - Commissioning - Older people Pool,Older People - City & South,Nursing Independent Sector
Cambridgeshire County Council,06-Oct-16,21524705-14149983,-712.58,St George'S Court,Care Establishment,2 - Commissioning - Older people Pool,Older People - City & South,Nursing Independent Sector
Cambridgeshire County Council,06-Oct-16,21525762-14149984,-712.58,St George'S Court,Care Establishment,2 - Commissioning - Older people Pool,Older People - City & South,Nursing Independent Sector
Cambridgeshire County Council,06-Oct-16,21525763-14149985,-712.58,St George'S Court,Care Establishment,2 - Commissioning - Older people Pool,Older People - City & South,Nursing Independent Sector
Cambridgeshire County Council,06-Oct-16,21525764-14149986,-712.58,St George'S Court,Care Establishment,2 - Commissioning - Older people Pool,Older People - City & South,Nursing Independent Sector
Cambridgeshire County Council,06-Oct-16,21525767-14149989,-712.58,St George'S Court,Care Establishment,2 - Commissioning - Older people Pool,Older People - City & South,Nursing Independent Sector
Cambridgeshire County Council,06-Oct-16,21525768-14149990,-712.58,St George'S Court,Care Establishment,2 - Commissioning - Older people Pool,Older People - City & South,Nursing Independent Sector
Cambridgeshire County Council,06-Oct-16,21525770-14149992,-712.58,St George'S Court,Care Establishment,2 - Commissioning - Older people Pool,Older People - City & South,Nursing Independent Sector
Cambridgeshire County Council,06-Oct-16,21525772-14149994,-712.58,St George'S Court,Care Establishment,2 - Commissioning - Older people Pool,Older People - City & South,Nursing Independent Sector
Cambridgeshire County Council,06-Oct-16,21525773-14149995,-712.58,St George'S Court,Care Establishment,2 - Commissioning - Older people Pool,Older People - City & South,Nursing Independent Sector
Cambridgeshire County Council,06-Oct-16,21525774-14149996,-712.58,St George'S Court,Care Establishment,2 - Commissioning - Older people Pool,Older People - City & South,Nursing Independent Sector
Cambridgeshire County Council,06-Oct-16,21525775-14149997,-712.58,St George'S Court,Care Establishment,2 - Commissioning - Older people Pool,Older People - City & South,Nursing Independent Sector
Cambridgeshire County Council,06-Oct-16,21525777-14149998,-712.58,St George'S Court,Care Establishment,2 - Commissioning - Older people Pool,Older People - City & South,Nursing Independent Sector
Cambridgeshire County Council,06-Oct-16,21526794-14149955,-712.58,St George'S Court,Care Establishment,2 - Commissioning - Older people Pool,Older People - City & South,Nursing Independent Sector
Cambridgeshire County Council,06-Oct-16,21526795-14149956,-712.58,St George'S Court,Care Establishment,2 - Commissioning - Older people Pool,Older People - City & South,Nursing Independent Sector
Cambridgeshire County Council,06-Oct-16,21526796-14149957,-712.58,St George'S Court,Care Establishment,2 - Commissioning - Older people Pool,Older People - City & South,Nursing Independent Sector
Cambridgeshire County Council,06-Oct-16,21526798-14149959,-712.58,St George'S Court,Care Establishment,2 - Commissioning - Older people Pool,Older People - City & South,Nursing Independent Sector
Cambridgeshire County Council,06-Oct-16,21526800-14149961,-712.58,St George'S Court,Care Establishment,2 - Commissioning - Older people Pool,Older People - City & South,Nursing Independent Sector
Cambridgeshire County Council,06-Oct-16,21526801-14149962,-712.58,St George'S Court,Care Establishment,2 - Commissioning - Older people Pool,Older People - City & South,Nursing Independent Sector
Cambridgeshire County Council,06-Oct-16,21526803-14149964,-712.58,St George'S Court,Care Establishment,2 - Commissioning - Older people Pool,Older People - City & South,Nursing Independent Sector
Cambridgeshire County Council,06-Oct-16,21526804-14149965,-712.58,St George'S Court,Care Establishment,2 - Commissioning - Older people Pool,Older People - City & South,Nursing Independent Sector
Cambridgeshire County Council,06-Oct-16,21526805-14149966,-712.58,St George'S Court,Care Establishment,2 - Commissioning - Older people Pool,Older People - City & South,Nursing Independent Sector
Cambridgeshire County Council,06-Oct-16,21526806-14149967,-712.58,St George'S Court,Care Establishment,2 - Commissioning - Older people Pool,Older People - City & South,Nursing Independent Sector
Cambridgeshire County Council,06-Oct-16,21526807-14149968,-712.58,St George'S Court,Care Establishment,2 - Commissioning - Older people Pool,Older People - City & South,Nursing Independent Sector
Cambridgeshire County Council,06-Oct-16,21526897-14149969,-712.58,St George'S Court,Care Establishment,2 - Commissioning - Older people Pool,Older People - City & South,Nursing Independent Sector
Cambridgeshire County Council,06-Oct-16,21526898-14149970,-712.58,St George'S Court,Care Establishment,2 - Commissioning - Older people Pool,Older People - City & South,Nursing Independent Sector
Cambridgeshire County Council,06-Oct-16,21526899-14149971,-712.58,St George'S Court,Care Establishment,2 - Commissioning - Older people Pool,Older People - City & South,Nursing Independent Sector
Cambridgeshire County Council,06-Oct-16,21526900-14149972,-712.58,St George'S Court,Care Establishment,2 - Commissioning - Older people Pool,Older People - City & South,Nursing Independent Sector
Cambridgeshire County Council,06-Oct-16,21526901-14149973,-712.58,St George'S Court,Care Establishment,2 - Commissioning - Older people Pool,Older People - City & South,Nursing Independent Sector
Cambridgeshire County Council,06-Oct-16,21526902-14149974,-712.58,St George'S Court,Care Establishment,2 - Commissioning - Older people Pool,Older People - City & South,Nursing Independent Sector
Cambridgeshire County Council,06-Oct-16,21526903-14149975,-712.58,St George'S Court,Care Establishment,2 - Commissioning - Older people Pool,Older People - City & South,Nursing Independent Sector
Cambridgeshire County Council,06-Oct-16,21526904-14149976,-712.58,St George'S Court,Care Establishment,2 - Commissioning - Older people Pool,Older People - City & South,Nursing Independent Sector
Cambridgeshire County Council,06-Oct-16,21526905-14149977,-712.58,St George'S Court,Care Establishment,2 - Commissioning - Older people Pool,Older People - City & South,Nursing Independent Sector
Cambridgeshire County Council,06-Oct-16,21526909-14149886,-712.58,St George'S Court,Care Establishment,2 - Commissioning - Older people Pool,Older People - City & South,Nursing Independent Sector
Cambridgeshire County Council,06-Oct-16,21526911-14149888,-712.58,St George'S Court,Care Establishment,2 - Commissioning - Older people Pool,Older People - City & South,Nursing Independent Sector
Cambridgeshire County Council,06-Oct-16,21527770-14149889,-712.58,St George'S Court,Care Establishment,2 - Commissioning - Older people Pool,Older People - City & South,Nursing Independent Sector
Cambridgeshire County Council,06-Oct-16,21527771-14149890,-712.58,St George'S Court,Care Establishment,2 - Commissioning - Older people Pool,Older People - City & South,Nursing Independent Sector
Cambridgeshire County Council,06-Oct-16,21527772-14149891,-712.58,St George'S Court,Care Establishment,2 - Commissioning - Older people Pool,Older People - City & South,Nursing Independent Sector
Cambridgeshire County Council,06-Oct-16,21527774-14149892,-712.58,St George'S Court,Care Establishment,2 - Commissioning - Older people Pool,Older People - City & South,Nursing Independent Sector
Cambridgeshire County Council,06-Oct-16,21527775-14149893,-712.58,St George'S Court,Care Establishment,2 - Commissioning - Older people Pool,Older People - City & South,Nursing Independent Sector
Cambridgeshire County Council,06-Oct-16,21527776-14149894,-712.58,St George'S Court,Care Establishment,2 - Commissioning - Older people Pool,Older People - City & South,Nursing Independent Sector
Cambridgeshire County Council,06-Oct-16,21527780-14149897,-712.58,St George'S Court,Care Establishment,2 - Commissioning - Older people Pool,Older People - City & South,Nursing Independent Sector
Cambridgeshire County Council,06-Oct-16,21527781-14149898,-712.58,St George'S Court,Care Establishment,2 - Commissioning - Older people Pool,Older People - City & South,Nursing Independent Sector
Cambridgeshire County Council,06-Oct-16,21527782-14149899,-712.58,St George'S Court,Care Establishment,2 - Commissioning - Older people Pool,Older People - City & South,Nursing Independent Sector
Cambridgeshire County Council,06-Oct-16,21527784-14149900,-712.58,St George'S Court,Care Establishment,2 - Commissioning - Older people Pool,Older People - City & South,Nursing Independent Sector
Cambridgeshire County Council,06-Oct-16,21527788-14149903,-712.58,St George'S Court,Care Establishment,2 - Commissioning - Older people Pool,Older People - City & South,Nursing Independent Sector
Cambridgeshire County Council,06-Oct-16,21528160-14149904,-712.58,St George'S Court,Care Establishment,2 - Commissioning - Older people Pool,Older People - City & South,Nursing Independent Sector
Cambridgeshire County Council,06-Oct-16,21528161-14149905,-712.58,St George'S Court,Care Establishment,2 - Commissioning - Older people Pool,Older People - City & South,Nursing Independent Sector
Cambridgeshire County Council,06-Oct-16,21528163-14149907,-712.58,St George'S Court,Care Establishment,2 - Commissioning - Older people Pool,Older People - City & South,Nursing Independent Sector
Cambridgeshire County Council,06-Oct-16,21528164-14149908,-712.58,St George'S Court,Care Establishment,2 - Commissioning - Older people Pool,Older People - City & South,Nursing Independent Sector
Cambridgeshire County Council,06-Oct-16,21528165-14149909,-712.58,St George'S Court,Care Establishment,2 - Commissioning - Older people Pool,Older People - City & South,Nursing Independent Sector
Cambridgeshire County Council,06-Oct-16,21528166-14149910,-712.58,St George'S Court,Care Establishment,2 - Commissioning - Older people Pool,Older People - City & South,Nursing Independent Sector
Cambridgeshire County Council,06-Oct-16,21528167-14149911,-712.58,St George'S Court,Care Establishment,2 - Commissioning - Older people Pool,Older People - City & South,Nursing Independent Sector
Cambridgeshire County Council,06-Oct-16,21528168-14149912,-712.58,St George'S Court,Care Establishment,2 - Commissioning - Older people Pool,Older People - City & South,Nursing Independent Sector
Cambridgeshire County Council,06-Oct-16,21528169-14149913,-712.58,St George'S Court,Care Establishment,2 - Commissioning - Older people Pool,Older People - City & South,Nursing Independent Sector
Cambridgeshire County Council,06-Oct-16,21528170-14149914,-712.58,St George'S Court,Care Establishment,2 - Commissioning - Older people Pool,Older People - City & South,Nursing Independent Sector
Cambridgeshire County Council,06-Oct-16,21528171-14149915,-712.58,St George'S Court,Care Establishment,2 - Commissioning - Older people Pool,Older People - City & South,Nursing Independent Sector
Cambridgeshire County Council,06-Oct-16,21559083-14149940,-712.58,St George'S Court,Care Establishment,2 - Commissioning - Older people Pool,Older People - City & South,Nursing Independent Sector
Cambridgeshire County Council,06-Oct-16,21559086-14149826,-712.58,St George'S Court,Care Establishment,2 - Commissioning - Older people Pool,Older People - City & South,Nursing Independent Sector
Cambridgeshire County Council,06-Oct-16,21559089-14149829,-712.58,St George'S Court,Care Establishment,2 - Commissioning - Older people Pool,Older People - City & South,Nursing Independent Sector
Cambridgeshire County Council,06-Oct-16,21559091-14149831,-712.58,St George'S Court,Care Establishment,2 - Commissioning - Older people Pool,Older People - City & South,Nursing Independent Sector
Cambridgeshire County Council,06-Oct-16,21559093-14149833,-712.58,St George'S Court,Care Establishment,2 - Commissioning - Older people Pool,Older People - City & South,Nursing Independent Sector
Cambridgeshire County Council,06-Oct-16,21559096-14149836,-712.58,St George'S Court,Care Establishment,2 - Commissioning - Older people Pool,Older People - City & South,Nursing Independent Sector
Cambridgeshire County Council,06-Oct-16,21559097-14149837,-712.58,St George'S Court,Care Establishment,2 - Commissioning - Older people Pool,Older People - City & South,Nursing Independent Sector
Cambridgeshire County Council,06-Oct-16,21559099-14149839,-712.58,St George'S Court,Care Establishment,2 - Commissioning - Older people Pool,Older People - City & South,Nursing Independent Sector
Cambridgeshire County Council,06-Oct-16,21559101-14149841,-712.58,St George'S Court,Care Establishment,2 - Commissioning - Older people Pool,Older People - City & South,Nursing Independent Sector
Cambridgeshire County Council,06-Oct-16,21763913-14150770,-705.81,Hunters Healthcare (Hunters Down),Care Establishment,2 - Commissioning - Older people Pool,Older People - City & South,Nursing Independent Sector
Cambridgeshire County Council,06-Oct-16,21763914-14150771,-705.81,Hunters Healthcare (Hunters Down),Care Establishment,2 - Commissioning - Older people Pool,Older People - City & South,Nursing Independent Sector
Cambridgeshire County Council,06-Oct-16,21763917-14150774,-705.81,Hunters Healthcare (Hunters Down),Care Establishment,2 - Commissioning - Older people Pool,Older People - City & South,Nursing Independent Sector
Cambridgeshire County Council,06-Oct-16,21763918-14150775,-705.81,Hunters Healthcare (Hunters Down),Care Establishment,2 - Commissioning - Older people Pool,Older People - City & South,Nursing Independent Sector
Cambridgeshire County Council,06-Oct-16,21763919-14150776,-705.81,Hunters Healthcare (Hunters Down),Care Establishment,2 - Commissioning - Older people Pool,Older People - City & South,Nursing Independent Sector
Cambridgeshire County Council,06-Oct-16,21764431-14150893,-705.81,Hunters Healthcare (Hunters Down),Care Establishment,2 - Commissioning - Older people Pool,Older People - City & South,Nursing Independent Sector
Cambridgeshire County Council,06-Oct-16,21765433-14150870,-705.81,Hunters Healthcare (Hunters Down),Care Establishment,2 - Commissioning - Older people Pool,Older People Mental Health Hunts,Nursing Independent Sector
Cambridgeshire County Council,06-Oct-16,21765434-14150871,-705.81,Hunters Healthcare (Hunters Down),Care Establishment,2 - Commissioning - Older people Pool,Older People Mental Health Hunts,Nursing Independent Sector
Cambridgeshire County Council,06-Oct-16,21765435-14150872,-705.81,Hunters Healthcare (Hunters Down),Care Establishment,2 - Commissioning - Older people Pool,Older People Mental Health Hunts,Nursing Independent Sector
Cambridgeshire County Council,06-Oct-16,21765440-14150849,-705.81,Hunters Healthcare (Hunters Down),Care Establishment,2 - Commissioning - Older people Pool,Older People Mental Health Hunts,Nursing Independent Sector
Cambridgeshire County Council,06-Oct-16,21765443-14150852,-705.81,Hunters Healthcare (Hunters Down),Care Establishment,2 - Commissioning - Older people Pool,Older People Mental Health Hunts,Nursing Independent Sector
Cambridgeshire County Council,06-Oct-16,21765446-14150855,-705.81,Hunters Healthcare (Hunters Down),Care Establishment,2 - Commissioning - Older people Pool,Older People Mental Health Hunts,Nursing Independent Sector
Cambridgeshire County Council,06-Oct-16,21765757-14150857,-705.81,Hunters Healthcare (Hunters Down),Care Establishment,2 - Commissioning - Older people Pool,Older People Mental Health Fenland,Nursing Independent Sector
Cambridgeshire County Council,06-Oct-16,21765758-14150858,-705.81,Hunters Healthcare (Hunters Down),Care Establishment,2 - Commissioning - Older people Pool,Older People Mental Health Fenland,Nursing Independent Sector
Cambridgeshire County Council,06-Oct-16,21765762-14150862,-705.81,Hunters Healthcare (Hunters Down),Care Establishment,2 - Commissioning - Older people Pool,Older People Mental Health Fenland,Nursing Independent Sector
Cambridgeshire County Council,06-Oct-16,21765764-14150864,-705.81,Hunters Healthcare (Hunters Down),Care Establishment,2 - Commissioning - Older people Pool,Older People Mental Health Fenland,Nursing Independent Sector
Cambridgeshire County Council,06-Oct-16,21765765-14150865,-705.81,Hunters Healthcare (Hunters Down),Care Establishment,2 - Commissioning - Older people Pool,Older People Mental Health Fenland,Nursing Independent Sector
Cambridgeshire County Council,06-Oct-16,21765769-14150869,-705.81,Hunters Healthcare (Hunters Down),Care Establishment,2 - Commissioning - Older people Pool,Older People Mental Health Fenland,Nursing Independent Sector
Cambridgeshire County Council,20-Oct-16,21879465-14239220,-705.81,Glennfield Care Centre (Op),Care Establishment,2 - Commissioning - Older people Pool,Older People Mental Health Fenland,Nursing Independent Sector
Cambridgeshire County Council,20-Oct-16,21879479-14239222,-705.81,Glennfield Care Centre (Op),Care Establishment,2 - Commissioning - Older people Pool,Older People Mental Health Fenland,Nursing Independent Sector
Cambridgeshire County Council,20-Oct-16,21879480-14239223,-705.81,Glennfield Care Centre (Op),Care Establishment,2 - Commissioning - Older people Pool,Older People Mental Health Fenland,Nursing Independent Sector
Cambridgeshire County Council,20-Oct-16,21879485-14239224,-705.81,Glennfield Care Centre (Op),Care Establishment,2 - Commissioning - Older people Pool,Older People Mental Health Fenland,Nursing Independent Sector
Cambridgeshire County Council,20-Oct-16,21879495-14239227,-705.81,Glennfield Care Centre (Op),Care Establishment,2 - Commissioning - Older people Pool,Older People Mental Health Fenland,Nursing Independent Sector
Cambridgeshire County Council,20-Oct-16,21879507-14239230,-705.81,Glennfield Care Centre (Op),Care Establishment,2 - Commissioning - Older people Pool,Older People Mental Health Fenland,Nursing Independent Sector
Cambridgeshire County Council,20-Oct-16,21879514-14239231,-705.81,Glennfield Care Centre (Op),Care Establishment,2 - Commissioning - Older people Pool,Older People Mental Health Fenland,Nursing Independent Sector
Cambridgeshire County Council,20-Oct-16,21879538-14239238,-705.81,Glennfield Care Centre (Op),Care Establishment,2 - Commissioning - Older people Pool,Older People Mental Health Fenland,Nursing Independent Sector
Cambridgeshire County Council,20-Oct-16,21879543-14239239,-705.81,Glennfield Care Centre (Op),Care Establishment,2 - Commissioning - Older people Pool,Older People Mental Health Fenland,Nursing Independent Sector
Cambridgeshire County Council,20-Oct-16,21881427-14239162,-705.81,Glennfield Care Centre (Op),Care Establishment,2 - Commissioning - Older people Pool,Older People Mental Health Fenland,Nursing Independent Sector
Cambridgeshire County Council,20-Oct-16,21882267-14239285,-705.81,Glennfield Care Centre (Op),Care Establishment,2 - Commissioning - Older people Pool,Older People - Fenland,Nursing Independent Sector
Cambridgeshire County Council,20-Oct-16,21882268-14239286,-705.81,Glennfield Care Centre (Op),Care Establishment,2 - Commissioning - Older people Pool,Older People - Fenland,Nursing Independent Sector
Cambridgeshire County Council,20-Oct-16,21882276-14239288,-705.81,Glennfield Care Centre (Op),Care Establishment,2 - Commissioning - Older people Pool,Older People - Fenland,Nursing Independent Sector
Cambridgeshire County Council,20-Oct-16,21882277-14239289,-705.81,Glennfield Care Centre (Op),Care Establishment,2 - Commissioning - Older people Pool,Older People - Fenland,Nursing Independent Sector
Cambridgeshire County Council,20-Oct-16,21882286-14239294,-705.81,Glennfield Care Centre (Op),Care Establishment,2 - Commissioning - Older people Pool,Older People - Fenland,Nursing Independent Sector
Cambridgeshire County Council,20-Oct-16,21882287-14239295,-705.81,Glennfield Care Centre (Op),Care Establishment,2 - Commissioning - Older people Pool,Older People - Fenland,Nursing Independent Sector
Cambridgeshire County Council,20-Oct-16,21882289-14239297,-705.81,Glennfield Care Centre (Op),Care Establishment,2 - Commissioning - Older people Pool,Older People - Fenland,Nursing Independent Sector
Cambridgeshire County Council,20-Oct-16,21882290-14239298,-705.81,Glennfield Care Centre (Op),Care Establishment,2 - Commissioning - Older people Pool,Older People - Fenland,Nursing Independent Sector
Cambridgeshire County Council,20-Oct-16,21882298-14239301,-705.81,Glennfield Care Centre (Op),Care Establishment,2 - Commissioning - Older people Pool,Older People - Fenland,Nursing Independent Sector
Cambridgeshire County Council,20-Oct-16,21882299-14239302,-705.81,Glennfield Care Centre (Op),Care Establishment,2 - Commissioning - Older people Pool,Older People - Fenland,Nursing Independent Sector
Cambridgeshire County Council,20-Oct-16,21884466-14239242,-705.81,Glennfield Care Centre (Op),Care Establishment,2 - Commissioning - Older people Pool,Older People Mental Health City & South,Nursing Independent Sector
Cambridgeshire County Council,20-Oct-16,21884468-14239244,-705.81,Glennfield Care Centre (Op),Care Establishment,2 - Commissioning - Older people Pool,Older People Mental Health City & South,Nursing Independent Sector
Cambridgeshire County Council,20-Oct-16,21884471-14239247,-705.81,Glennfield Care Centre (Op),Care Establishment,2 - Commissioning - Older people Pool,Older People Mental Health City & South,Nursing Independent Sector
Cambridgeshire County Council,20-Oct-16,21884473-14239249,-705.81,Glennfield Care Centre (Op),Care Establishment,2 - Commissioning - Older people Pool,Older People Mental Health City & South,Nursing Independent Sector
Cambridgeshire County Council,20-Oct-16,21884475-14239251,-705.81,Glennfield Care Centre (Op),Care Establishment,2 - Commissioning - Older people Pool,Older People Mental Health City & South,Nursing Independent Sector
Cambridgeshire County Council,20-Oct-16,21884477-14239253,-705.81,Glennfield Care Centre (Op),Care Establishment,2 - Commissioning - Older people Pool,Older People Mental Health City & South,Nursing Independent Sector
Cambridgeshire County Council,20-Oct-16,21884480-14239256,-705.81,Glennfield Care Centre (Op),Care Establishment,2 - Commissioning - Older people Pool,Older People Mental Health City & South,Nursing Independent Sector
Cambridgeshire County Council,20-Oct-16,21884482-14239257,-705.81,Glennfield Care Centre (Op),Care Establishment,2 - Commissioning - Older people Pool,Older People Mental Health City & South,Nursing Independent Sector
Cambridgeshire County Council,20-Oct-16,21884486-14239261,-705.81,Glennfield Care Centre (Op),Care Establishment,2 - Commissioning - Older people Pool,Older People Mental Health City & South,Nursing Independent Sector
Cambridgeshire County Council,20-Oct-16,21884487-14239262,-705.81,Glennfield Care Centre (Op),Care Establishment,2 - Commissioning - Older people Pool,Older People Mental Health City & South,Nursing Independent Sector
Cambridgeshire County Council,13-Oct-16,21764433-14184225,-699.52,Hales Group Limited,Trade Supplier,2 - Commissioning - Older people Pool,Hunts O P  Team,Day and Domicillary Care Independent Sector
Cambridgeshire County Council,13-Oct-16,21766062-14184206,-699.52,Hales Group Limited,Trade Supplier,2 - Commissioning - Older people Pool,Hunts O P  Team,Day and Domicillary Care Independent Sector
Cambridgeshire County Council,13-Oct-16,21766064-14184208,-699.52,Hales Group Limited,Trade Supplier,2 - Commissioning - Older people Pool,Hunts O P  Team,Day and Domicillary Care Independent Sector
Cambridgeshire County Council,13-Oct-16,21766066-14184210,-699.52,Hales Group Limited,Trade Supplier,2 - Commissioning - Older people Pool,Hunts O P  Team,Day and Domicillary Care Independent Sector
Cambridgeshire County Council,13-Oct-16,21766067-14184211,-699.52,Hales Group Limited,Trade Supplier,2 - Commissioning - Older people Pool,Hunts O P  Team,Day and Domicillary Care Independent Sector
Cambridgeshire County Council,13-Oct-16,21766070-14184184,-699.52,Hales Group Limited,Trade Supplier,2 - Commissioning - Older people Pool,Hunts O P  Team,Day and Domicillary Care Independent Sector
Cambridgeshire County Council,13-Oct-16,21766072-14184186,-699.52,Hales Group Limited,Trade Supplier,2 - Commissioning - Older people Pool,Hunts O P  Team,Day and Domicillary Care Independent Sector
Cambridgeshire County Council,13-Oct-16,21766073-14184187,-699.52,Hales Group Limited,Trade Supplier,2 - Commissioning - Older people Pool,Hunts O P  Team,Day and Domicillary Care Independent Sector
Cambridgeshire County Council,13-Oct-16,21766074-14184188,-699.52,Hales Group Limited,Trade Supplier,2 - Commissioning - Older people Pool,Hunts O P  Team,Day and Domicillary Care Independent Sector
Cambridgeshire County Council,13-Oct-16,21766075-14184189,-699.52,Hales Group Limited,Trade Supplier,2 - Commissioning - Older people Pool,Hunts O P  Team,Day and Domicillary Care Independent Sector
Cambridgeshire County Council,13-Oct-16,21766076-14184190,-699.52,Hales Group Limited,Trade Supplier,2 - Commissioning - Older people Pool,Hunts O P  Team,Day and Domicillary Care Independent Sector
Cambridgeshire County Council,13-Oct-16,21766083-14184197,-699.52,Hales Group Limited,Trade Supplier,2 - Commissioning - Older people Pool,Hunts O P  Team,Day and Domicillary Care Independent Sector
Cambridgeshire County Council,13-Oct-16,21766085-14184199,-699.52,Hales Group Limited,Trade Supplier,2 - Commissioning - Older people Pool,Hunts O P  Team,Day and Domicillary Care Independent Sector
Cambridgeshire County Council,13-Oct-16,21766089-14184203,-699.52,Hales Group Limited,Trade Supplier,2 - Commissioning - Older people Pool,Hunts O P  Team,Day and Domicillary Care Independent Sector
Cambridgeshire County Council,13-Oct-16,21766091-14184205,-699.52,Hales Group Limited,Trade Supplier,2 - Commissioning - Older people Pool,Hunts O P  Team,Day and Domicillary Care Independent Sector
Cambridgeshire County Council,06-Oct-16,21763690-14150796,-695.61,Hunters Healthcare (Hunters Down),Care Establishment,2 - Commissioning - Older people Pool,Hunts O P  Team,Nursing Independent Sector
Cambridgeshire County Council,06-Oct-16,21763693-14150799,-695.61,Hunters Healthcare (Hunters Down),Care Establishment,2 - Commissioning - Older people Pool,Hunts O P  Team,Nursing Independent Sector
Cambridgeshire County Council,06-Oct-16,21763694-14150800,-695.61,Hunters Healthcare (Hunters Down),Care Establishment,2 - Commissioning - Older people Pool,Hunts O P  Team,Nursing Independent Sector
Cambridgeshire County Council,06-Oct-16,21763695-14150801,-695.61,Hunters Healthcare (Hunters Down),Care Establishment,2 - Commissioning - Older people Pool,Hunts O P  Team,Nursing Independent Sector
Cambridgeshire County Council,06-Oct-16,21763699-14150805,-695.61,Hunters Healthcare (Hunters Down),Care Establishment,2 - Commissioning - Older people Pool,Hunts O P  Team,Nursing Independent Sector
Cambridgeshire County Council,06-Oct-16,21763703-14150809,-695.61,Hunters Healthcare (Hunters Down),Care Establishment,2 - Commissioning - Older people Pool,Hunts O P  Team,Nursing Independent Sector
Cambridgeshire County Council,20-Oct-16,21881742-14239159,-695.61,Glennfield Care Centre (Op),Care Establishment,2 - Commissioning - Older people Pool,Older People - Fenland,Nursing Independent Sector
Cambridgeshire County Council,20-Oct-16,21881744-14239160,-695.61,Glennfield Care Centre (Op),Care Establishment,2 - Commissioning - Older people Pool,Older People - Fenland,Nursing Independent Sector
Cambridgeshire County Council,20-Oct-16,21882789-14239266,-695.61,Glennfield Care Centre (Op),Care Establishment,2 - Commissioning - Older people Pool,Older People - Fenland,Nursing Independent Sector
Cambridgeshire County Council,20-Oct-16,21882791-14239267,-695.61,Glennfield Care Centre (Op),Care Establishment,2 - Commissioning - Older people Pool,Older People - Fenland,Nursing Independent Sector
Cambridgeshire County Council,20-Oct-16,21882794-14239269,-695.61,Glennfield Care Centre (Op),Care Establishment,2 - Commissioning - Older people Pool,Older People - Fenland,Nursing Independent Sector
Cambridgeshire County Council,20-Oct-16,21882804-14239271,-695.61,Glennfield Care Centre (Op),Care Establishment,2 - Commissioning - Older people Pool,Older People - Fenland,Nursing Independent Sector
Cambridgeshire County Council,20-Oct-16,21882813-14239276,-695.61,Glennfield Care Centre (Op),Care Establishment,2 - Commissioning - Older people Pool,Older People - Fenland,Nursing Independent Sector
Cambridgeshire County Council,20-Oct-16,21882814-14239277,-695.61,Glennfield Care Centre (Op),Care Establishment,2 - Commissioning - Older people Pool,Older People - Fenland,Nursing Independent Sector
Cambridgeshire County Council,20-Oct-16,21882829-14239279,-695.61,Glennfield Care Centre (Op),Care Establishment,2 - Commissioning - Older people Pool,Older People - Fenland,Nursing Independent Sector
Cambridgeshire County Council,20-Oct-16,21882830-14239280,-695.61,Glennfield Care Centre (Op),Care Establishment,2 - Commissioning - Older people Pool,Older People - Fenland,Nursing Independent Sector
Cambridgeshire County Council,13-Oct-16,21765854-14181811,-670.55,Eagle Wood Neurological Care,Care Establishment,2 - Commissioning - Older people Pool,Older People Mental Health Fenland,Nursing Independent Sector
Cambridgeshire County Council,13-Oct-16,21765855-14181812,-670.55,Eagle Wood Neurological Care,Care Establishment,2 - Commissioning - Older people Pool,Older People Mental Health Fenland,Nursing Independent Sector
Cambridgeshire County Council,13-Oct-16,21765856-14181813,-670.55,Eagle Wood Neurological Care,Care Establishment,2 - Commissioning - Older people Pool,Older People Mental Health Fenland,Nursing Independent Sector
Cambridgeshire County Council,13-Oct-16,21765857-14181814,-670.55,Eagle Wood Neurological Care,Care Establishment,2 - Commissioning - Older people Pool,Older People Mental Health Fenland,Nursing Independent Sector
Cambridgeshire County Council,13-Oct-16,21765859-14181816,-670.55,Eagle Wood Neurological Care,Care Establishment,2 - Commissioning - Older people Pool,Older People Mental Health Fenland,Nursing Independent Sector
Cambridgeshire County Council,13-Oct-16,21765860-14181817,-670.55,Eagle Wood Neurological Care,Care Establishment,2 - Commissioning - Older people Pool,Older People Mental Health Fenland,Nursing Independent Sector
Cambridgeshire County Council,13-Oct-16,21765864-14181821,-670.55,Eagle Wood Neurological Care,Care Establishment,2 - Commissioning - Older people Pool,Older People Mental Health Fenland,Nursing Independent Sector
Cambridgeshire County Council,13-Oct-16,21765866-14181823,-670.55,Eagle Wood Neurological Care,Care Establishment,2 - Commissioning - Older people Pool,Older People Mental Health Fenland,Nursing Independent Sector
Cambridgeshire County Council,13-Oct-16,21765867-14181824,-670.55,Eagle Wood Neurological Care,Care Establishment,2 - Commissioning - Older people Pool,Older People Mental Health Fenland,Nursing Independent Sector
Cambridgeshire County Council,13-Oct-16,21765868-14181825,-670.55,Eagle Wood Neurological Care,Care Establishment,2 - Commissioning - Older people Pool,Older People Mental Health Fenland,Nursing Independent Sector
Cambridgeshire County Council,13-Oct-16,21765876-14181833,-670.55,Eagle Wood Neurological Care,Care Establishment,2 - Commissioning - Older people Pool,Older People Mental Health Fenland,Nursing Independent Sector
Cambridgeshire County Council,13-Oct-16,21765877-14181834,-670.55,Eagle Wood Neurological Care,Care Establishment,2 - Commissioning - Older people Pool,Older People Mental Health Fenland,Nursing Independent Sector
Cambridgeshire County Council,13-Oct-16,21671427-14200541,-667.8,Dimensions (Uk) Ltd,Care Establishment,2 - Operations - Learning Disability,LDP Cambs City - Special Needs,Supported Living
Cambridgeshire County Council,13-Oct-16,21719581-14200509,-667.8,Dimensions (Uk) Ltd,Care Establishment,2 - Operations - Learning Disability,LDP Cambs City - Special Needs,Supported Living
Cambridgeshire County Council,13-Oct-16,21766104-14200414,-667.8,Dimensions (Uk) Ltd,Care Establishment,2 - Operations - Learning Disability,LDP South Cambs - Special Needs,Supported Living
Cambridgeshire County Council,13-Oct-16,21827874-14200441,-667.8,Dimensions (Uk) Ltd,Care Establishment,2 - Operations - Learning Disability,LDP South Cambs - Special Needs,Supported Living
Cambridgeshire County Council,13-Oct-16,21811339-14200897,-660,Bibliotheca Ltd,Trade Supplier,Corporate Services,Support - Business Support,Capital WIP - land and buildings  -  Fixtures and fittings
Cambridgeshire County Council,27-Oct-16,21882695-14280808,-650,Cedar Court Care Ltd,Care Establishment,2 - Commissioning - Older people Pool,Older People - Fenland,Nursing Independent Sector
Cambridgeshire County Council,27-Oct-16,21882698-14280809,-650,Cedar Court Care Ltd,Care Establishment,2 - Commissioning - Older people Pool,Older People - Fenland,Nursing Independent Sector
Cambridgeshire County Council,27-Oct-16,21882703-14280810,-650,Cedar Court Care Ltd,Care Establishment,2 - Commissioning - Older people Pool,Older People - Fenland,Nursing Independent Sector
Cambridgeshire County Council,27-Oct-16,21882704-14280811,-650,Cedar Court Care Ltd,Care Establishment,2 - Commissioning - Older people Pool,Older People - Fenland,Nursing Independent Sector
Cambridgeshire County Council,27-Oct-16,21882715-14280812,-650,Cedar Court Care Ltd,Care Establishment,2 - Commissioning - Older people Pool,Older People - Fenland,Nursing Independent Sector
Cambridgeshire County Council,27-Oct-16,21882719-14280814,-650,Cedar Court Care Ltd,Care Establishment,2 - Commissioning - Older people Pool,Older People - Fenland,Nursing Independent Sector
Cambridgeshire County Council,27-Oct-16,21882722-14280815,-650,Cedar Court Care Ltd,Care Establishment,2 - Commissioning - Older people Pool,Older People - Fenland,Nursing Independent Sector
Cambridgeshire County Council,27-Oct-16,21882723-14280816,-650,Cedar Court Care Ltd,Care Establishment,2 - Commissioning - Older people Pool,Older People - Fenland,Nursing Independent Sector
Cambridgeshire County Council,27-Oct-16,21882724-14280817,-650,Cedar Court Care Ltd,Care Establishment,2 - Commissioning - Older people Pool,Older People - Fenland,Nursing Independent Sector
Cambridgeshire County Council,27-Oct-16,21882731-14280818,-650,Cedar Court Care Ltd,Care Establishment,2 - Commissioning - Older people Pool,Older People - Fenland,Nursing Independent Sector
Cambridgeshire County Council,27-Oct-16,21882733-14280819,-650,Cedar Court Care Ltd,Care Establishment,2 - Commissioning - Older people Pool,Older People - Fenland,Nursing Independent Sector
